Body Name,Body,Service Area Catergorisation,Service Division Catergorisation,Responsible Unit,Expenses Type,Detailed Expenses Type,Expenses Code,Date,Transaction Number,Amount,Capital / Revenue,Supplier Name,Supplier ID
North East Lincolnshire Council,http://statistics.data.gov.uk/id/local-authority/00FC),Cap Dep Chief Exec,Ad Adult Serv-Hlth Improvement,Hps-Disabled Fac. Grants,Cap Grants To O/Side Sources,Cap Grants To O/Side Sources,YJ101,3/5/2018,505936,15727,CAPITAL,VIC HANSEN BUILDING & JOINERY LTD,103981
North East Lincolnshire Council,http://statistics.data.gov.uk/id/local-authority/00FC),Cap Dep Chief Exec,Ad Adult Serv-Hlth Improvement,Hps-Disabled Fac. Grants,Cap Grants To O/Side Sources,Cap Grants To O/Side Sources,YJ101,3/15/2018,507611,3973,CAPITAL,OBAM LIFT SERVICES LTD,112666
North East Lincolnshire Council,http://statistics.data.gov.uk/id/local-authority/00FC),Cap Dep Chief Exec,Ad Adult Serv-Hlth Improvement,Hps-Disabled Fac. Grants,Cap Grants To O/Side Sources,Cap Grants To O/Side Sources,YJ101,3/15/2018,508090,7222.1,CAPITAL,KES BUILDING MAINTENANCE LIMITED,100786
North East Lincolnshire Council,http://statistics.data.gov.uk/id/local-authority/00FC),Cap Dep Chief Exec,Ad Adult Serv-Hlth Improvement,Hps-Disabled Fac. Grants,Cap Grants To O/Side Sources,Cap Grants To O/Side Sources,YJ101,3/12/2018,507023,10792.24,CAPITAL,OBAM LIFT SERVICES LTD,112666
North East Lincolnshire Council,http://statistics.data.gov.uk/id/local-authority/00FC),Cap Dep Chief Exec,Ad Adult Serv-Hlth Improvement,Hps-Disabled Fac. Grants,Cap Grants To O/Side Sources,Cap Grants To O/Side Sources,YJ101,3/15/2018,508189,5744.71,CAPITAL,F R TOWNSEND & CO LTD,104217
North East Lincolnshire Council,http://statistics.data.gov.uk/id/local-authority/00FC),Cap Dep Chief Exec,Ad Adult Serv-Hlth Improvement,Hps-Disabled Fac. Grants,Cap Grants To O/Side Sources,Cap Grants To O/Side Sources,YJ101,3/22/2018,509307,13094.87,CAPITAL,ENGIE SERVICES LTD,133267
North East Lincolnshire Council,http://statistics.data.gov.uk/id/local-authority/00FC),Cap Dep Chief Exec,Ad Adult Serv-Hlth Improvement,Hps-Disabled Fac. Grants,Cap Grants To O/Side Sources,Cap Grants To O/Side Sources,YJ101,3/29/2018,510257,25392.47,CAPITAL,ENGIE SERVICES LTD,133267
North East Lincolnshire Council,http://statistics.data.gov.uk/id/local-authority/00FC),Cap Dep Chief Exec,Ad Adult Serv-Hlth Improvement,Hps-Disabled Fac. Grants,Cap Grants To O/Side Sources,Cap Grants To O/Side Sources,YJ101,3/8/2018,506721,10959.5,CAPITAL,VIC HANSEN BUILDING & JOINERY LTD,103981
North East Lincolnshire Council,http://statistics.data.gov.uk/id/local-authority/00FC),Cap Dep Chief Exec,Ad Adult Serv-Hlth Improvement,Hps-Disabled Fac. Grants,Cap Grants To O/Side Sources,Cap Grants To O/Side Sources,YJ101,3/22/2018,509225,456.96,CAPITAL,ABLE 4 ENTERPRISE LTD,120159
North East Lincolnshire Council,http://statistics.data.gov.uk/id/local-authority/00FC),Cap Dep Chief Exec,Ad Adult Serv-Hlth Improvement,Hps-Disabled Fac. Grants,Cap Grants To O/Side Sources,Cap Grants To O/Side Sources,YJ101,3/27/2018,510230,3767,CAPITAL,HANDICARE ACCESSIIBILITY LTD,102647
North East Lincolnshire Council,http://statistics.data.gov.uk/id/local-authority/00FC),Cap Dep Chief Exec,Ad Adult Serv-Hlth Improvement,Hps-Disabled Fac. Grants,Cap Grants To O/Side Sources,Cap Grants To O/Side Sources,YJ101,3/20/2018,508565,815,CAPITAL,KES BUILDING MAINTENANCE LIMITED,100786
North East Lincolnshire Council,http://statistics.data.gov.uk/id/local-authority/00FC),Cap Dep Chief Exec,Ad Adult Serv-Hlth Improvement,Hps-Disabled Fac. Grants,Cap Grants To O/Side Sources,Cap Grants To O/Side Sources,YJ101,3/5/2018,505933,12138.78,CAPITAL,KES BUILDING MAINTENANCE LIMITED,100786
North East Lincolnshire Council,http://statistics.data.gov.uk/id/local-authority/00FC),Cap Dep Chief Exec,Ad Adult Serv-Hlth Improvement,Hps-Disabled Fac. Grants,Cap Grants To O/Side Sources,Cap Grants To O/Side Sources,YJ101,3/26/2018,509659,5518.55,CAPITAL,F R TOWNSEND & CO LTD,104217
North East Lincolnshire Council,http://statistics.data.gov.uk/id/local-authority/00FC),Cap Dep Chief Exec,Ad Adult Serv-Hlth Improvement,Hps-Disabled Fac. Grants,Cap Grants To O/Side Sources,Cap Grants To O/Side Sources,YJ101,3/5/2018,505691,5725,CAPITAL,OBAM LIFT SERVICES LTD,112666
North East Lincolnshire Council,http://statistics.data.gov.uk/id/local-authority/00FC),Cap Dep Chief Exec,Ad Adult Serv-Hlth Improvement,Hps-Disabled Fac. Grants,Cap Grants To O/Side Sources,Cap Grants To O/Side Sources,YJ101,3/5/2018,505902,8105.98,CAPITAL,KES BUILDING MAINTENANCE LIMITED,100786
North East Lincolnshire Council,http://statistics.data.gov.uk/id/local-authority/00FC),Cap Dep Chief Exec,Ad Adult Serv-Hlth Improvement,Hps-Disabled Fac. Grants,Cap Grants To O/Side Sources,Cap Grants To O/Side Sources,YJ101,3/8/2018,506781,4521.07,CAPITAL,TOPCON CONSTRUCTION LTD,108462
North East Lincolnshire Council,http://statistics.data.gov.uk/id/local-authority/00FC),Cap Dep Chief Exec,Ad Adult Serv-Hlth Improvement,Hps-Disabled Fac. Grants,Cap Grants To O/Side Sources,Cap Grants To O/Side Sources,YJ101,3/29/2018,510845,7159.3,CAPITAL,TOPCON CONSTRUCTION LTD,108462
North East Lincolnshire Council,http://statistics.data.gov.uk/id/local-authority/00FC),Cap Dep Chief Exec,Ad Adult Serv-Hlth Improvement,Hps-Disabled Fac. Grants,Cap Grants To O/Side Sources,Cap Grants To O/Side Sources,YJ101,3/12/2018,507123,11047.2,CAPITAL,VIC HANSEN BUILDING & JOINERY LTD,103981
North East Lincolnshire Council,http://statistics.data.gov.uk/id/local-authority/00FC),Cap Dep Chief Exec,Ad Adult Serv-Hlth Improvement,Hps-Disabled Fac. Grants,Cap Grants To O/Side Sources,Cap Grants To O/Side Sources,YJ101,3/29/2018,510991,3881.37,CAPITAL,DOLPHIN MOBILITY EAST MIDLANDS LTD,101317
North East Lincolnshire Council,http://statistics.data.gov.uk/id/local-authority/00FC),Cap Dep Chief Exec,Ad Adult Serv-Hlth Improvement,Hps-Disabled Fac. Grants,Cap Grants To O/Side Sources,Cap Grants To O/Side Sources,YJ101,3/29/2018,510464,4083.75,CAPITAL,F R TOWNSEND & CO LTD,104217
North East Lincolnshire Council,http://statistics.data.gov.uk/id/local-authority/00FC),Cap Dep Chief Exec,Ad Adult Serv-Hlth Improvement,Hps-Disabled Fac. Grants,Cap Grants To O/Side Sources,Cap Grants To O/Side Sources,YJ101,3/26/2018,509590,13690,CAPITAL,OBAM LIFT SERVICES LTD,112666
North East Lincolnshire Council,http://statistics.data.gov.uk/id/local-authority/00FC),Cap Dep Chief Exec,Ad Adult Serv-Hlth Improvement,Hps-Disabled Fac. Grants,Cap Grants To O/Side Sources,Cap Grants To O/Side Sources,YJ101,3/15/2018,507553,4238,CAPITAL,TOTAL HYGIENE LTD,100849
North East Lincolnshire Council,http://statistics.data.gov.uk/id/local-authority/00FC),Cap Dep Chief Exec,Ad Adult Serv-Hlth Improvement,Hps-Disabled Fac. Grants,Cap Grants To O/Side Sources,Cap Grants To O/Side Sources,YJ101,3/26/2018,509658,5901.95,CAPITAL,F R TOWNSEND & CO LTD,104217
North East Lincolnshire Council,http://statistics.data.gov.uk/id/local-authority/00FC),Cap Dep Chief Exec,Ad Adult Serv-Hlth Improvement,Hps-Disabled Fac. Grants,Cap Grants To O/Side Sources,Cap Grants To O/Side Sources,YJ101,3/5/2018,505924,1585,CAPITAL,OBAM LIFT SERVICES LTD,112666
North East Lincolnshire Council,http://statistics.data.gov.uk/id/local-authority/00FC),Cap Dep Chief Exec,Ad Adult Serv-Hlth Improvement,Hps-Disabled Fac. Grants,Cap Grants To O/Side Sources,Cap Grants To O/Side Sources,YJ101,3/20/2018,508694,1285,CAPITAL,MARK BENNETT,101838
North East Lincolnshire Council,http://statistics.data.gov.uk/id/local-authority/00FC),Cap Dep Chief Exec,Ad Adult Serv-Hlth Improvement,Hps-Disabled Fac. Grants,Cap Grants To O/Side Sources,Cap Grants To O/Side Sources,YJ101,3/26/2018,508761,8748,CAPITAL,ABLE 4 ENTERPRISE LTD,120159
North East Lincolnshire Council,http://statistics.data.gov.uk/id/local-authority/00FC),Cap Dep Chief Exec,Ad Adult Serv-Hlth Improvement,Hps-Disabled Fac. Grants,Cap Grants To O/Side Sources,Cap Grants To O/Side Sources,YJ101,3/5/2018,505935,1974,CAPITAL,OBAM LIFT SERVICES LTD,112666
North East Lincolnshire Council,http://statistics.data.gov.uk/id/local-authority/00FC),Cap Dep Chief Exec,Ad Adult Serv-Hlth Improvement,Hps-Disabled Fac. Grants,Cap Grants To O/Side Sources,Cap Grants To O/Side Sources,YJ101,3/5/2018,505758,270,CAPITAL,ENGIE SERVICES LTD,133267
North East Lincolnshire Council,http://statistics.data.gov.uk/id/local-authority/00FC),Cap Dep Chief Exec,Ad Adult Serv-Hlth Improvement,Hps-Disabled Fac. Grants,Cap Grants To O/Side Sources,Cap Grants To O/Side Sources,YJ101,3/26/2018,508759,6077.02,CAPITAL,ABLE 4 ENTERPRISE LTD,120159
North East Lincolnshire Council,http://statistics.data.gov.uk/id/local-authority/00FC),Cap Dep Chief Exec,Ad Adult Serv-Hlth Improvement,Hps-Disabled Fac. Grants,Cap Grants To O/Side Sources,Cap Grants To O/Side Sources,YJ101,3/20/2018,508562,4320,CAPITAL,OBAM LIFT SERVICES LTD,112666
North East Lincolnshire Council,http://statistics.data.gov.uk/id/local-authority/00FC),Cap Dep Chief Exec,Ad Adult Serv-Hlth Improvement,Hps-Disabled Fac. Grants,Cap Grants To O/Side Sources,Cap Grants To O/Side Sources,YJ101,3/26/2018,509654,5229.87,CAPITAL,F R TOWNSEND & CO LTD,104217
North East Lincolnshire Council,http://statistics.data.gov.uk/id/local-authority/00FC),Cap Dep Chief Exec,Ad Adult Serv-Hlth Improvement,Hps-Disabled Fac. Grants,Cap Grants To O/Side Sources,Cap Grants To O/Side Sources,YJ101,3/29/2018,510235,4500,CAPITAL,ABLE 4 ENTERPRISE LTD,120159
North East Lincolnshire Council,http://statistics.data.gov.uk/id/local-authority/00FC),Cap Dep Chief Exec,Ad Adult Serv-Hlth Improvement,Hps-Disabled Fac. Grants,Cap Grants To O/Side Sources,Cap Grants To O/Side Sources,YJ101,3/22/2018,509029,10276.11,CAPITAL,F R TOWNSEND & CO LTD,104217
North East Lincolnshire Council,http://statistics.data.gov.uk/id/local-authority/00FC),Cap Dep Chief Exec,Ad Adult Serv-Hlth Improvement,Hps-Disabled Fac. Grants,Cap Grants To O/Side Sources,Cap Grants To O/Side Sources,YJ101,3/15/2018,507927,8375.3,CAPITAL,P G INGOLDBY & SONS LTD,100591
North East Lincolnshire Council,http://statistics.data.gov.uk/id/local-authority/00FC),Cap Dep Chief Exec,Ad Adult Serv-Hlth Improvement,Hps-Disabled Fac. Grants,Cap Grants To O/Side Sources,Cap Grants To O/Side Sources,YJ101,3/8/2018,505730,6629,CAPITAL,MARK BENNETT,101838
North East Lincolnshire Council,http://statistics.data.gov.uk/id/local-authority/00FC),Cap Dep Chief Exec,Ad Adult Serv-Hlth Improvement,Hps-Disabled Fac. Grants,Cap Grants To O/Side Sources,Cap Grants To O/Side Sources,YJ101,3/26/2018,509660,7216,CAPITAL,MARK BENNETT,101838
North East Lincolnshire Council,http://statistics.data.gov.uk/id/local-authority/00FC),Cap Dep Chief Exec,Ad Adult Serv-Hlth Improvement,Hps-Disabled Fac. Grants,Cap Grants To O/Side Sources,Cap Grants To O/Side Sources,YJ101,3/29/2018,510422,7831.27,CAPITAL,TOPCON CONSTRUCTION LTD,108462
North East Lincolnshire Council,http://statistics.data.gov.uk/id/local-authority/00FC),Cap Dep Chief Exec,Ad Adult Serv-Hlth Improvement,Hps-Disabled Fac. Grants,Cap Grants To O/Side Sources,Cap Grants To O/Side Sources,YJ101,3/8/2018,505716,7245.72,CAPITAL,KES BUILDING MAINTENANCE LIMITED,100786
North East Lincolnshire Council,http://statistics.data.gov.uk/id/local-authority/00FC),Cap Dep Chief Exec,Ad Adult Serv-Hlth Improvement,Hps-Disabled Fac. Grants,Cap Grants To O/Side Sources,Cap Grants To O/Side Sources,YJ101,3/8/2018,506757,305,CAPITAL,STEPHEN HEYWOOD DESIGN LTD,132818
North East Lincolnshire Council,http://statistics.data.gov.uk/id/local-authority/00FC),Cap Dep Chief Exec,Ad Adult Serv-Hlth Improvement,Hps-Disabled Fac. Grants,Cap Grants To O/Side Sources,Cap Grants To O/Side Sources,YJ101,3/26/2018,510205,2060.14,CAPITAL,DOLPHIN MOBILITY EAST MIDLANDS LTD,101317
North East Lincolnshire Council,http://statistics.data.gov.uk/id/local-authority/00FC),Cap Dep Chief Exec,Ad Adult Serv-Hlth Improvement,Hps-Disabled Fac. Grants,Cap Grants To O/Side Sources,Cap Grants To O/Side Sources,YJ101,3/15/2018,508073,750,CAPITAL,DOLPHIN MOBILITY EAST MIDLANDS LTD,101317
North East Lincolnshire Council,http://statistics.data.gov.uk/id/local-authority/00FC),Cap Dep Chief Exec,Ad Adult Serv-Hlth Improvement,Hps-Disabled Fac. Grants,Cap Grants To O/Side Sources,Cap Grants To O/Side Sources,YJ101,3/12/2018,506398,520,CAPITAL,OBAM LIFT SERVICES LTD,112666
North East Lincolnshire Council,http://statistics.data.gov.uk/id/local-authority/00FC),Cap Dep Chief Exec,Ad Adult Serv-Hlth Improvement,Housing Assist Grants And Loan,Cap Grants To O/Side Sources,Cap Grants To O/Side Sources,YJ101,3/22/2018,509307,1828.56,CAPITAL,ENGIE SERVICES LTD,133267
North East Lincolnshire Council,http://statistics.data.gov.uk/id/local-authority/00FC),Cap Dep Chief Exec,Ad Adult Serv-Hlth Improvement,Housing Assist Grants And Loan,Cap Grants To O/Side Sources,Cap Grants To O/Side Sources,YJ101,3/29/2018,510257,698.47,CAPITAL,ENGIE SERVICES LTD,133267
North East Lincolnshire Council,http://statistics.data.gov.uk/id/local-authority/00FC),Cap Dep Chief Exec,Ad Adult Serv-Hlth Improvement,Housing Assist Grants And Loan,Cap Grants To O/Side Sources,Cap Grants To O/Side Sources,YJ101,3/15/2018,508223,3075,CAPITAL,MARK BENNETT,101838
North East Lincolnshire Council,http://statistics.data.gov.uk/id/local-authority/00FC),Cap Dep Chief Exec,Ad Adult Serv-Hlth Improvement,Housing Assist Grants And Loan,Cap Grants To O/Side Sources,Cap Grants To O/Side Sources,YJ101,3/20/2018,508757,1079.81,CAPITAL,YES ENERGY SOLUTIONS,138575
North East Lincolnshire Council,http://statistics.data.gov.uk/id/local-authority/00FC),Cap Dep Chief Exec,Ad Adult Serv-Hlth Improvement,Housing Assist Grants And Loan,Cap Grants To O/Side Sources,Cap Grants To O/Side Sources,YJ101,3/29/2018,510484,260,CAPITAL,ARDENT MANAGEMENT LIMITED,138372
North East Lincolnshire Council,http://statistics.data.gov.uk/id/local-authority/00FC),Cap Dep Chief Exec,Ad Adult Serv-Hlth Improvement,Housing Assist Grants And Loan,Cap Grants To O/Side Sources,Cap Grants To O/Side Sources,YJ101,3/8/2018,506422,250,CAPITAL,VIC HANSEN BUILDING & JOINERY LTD,103981
North East Lincolnshire Council,http://statistics.data.gov.uk/id/local-authority/00FC),Cap Dep Chief Exec,Ad Adult Serv-Hlth Improvement,Social Care Grant,Cap Land/Build-Build Enh Wrk,Cap Land/Build-Build Enh Wrk,YA102,3/15/2018,508218,108000,CAPITAL,NHS NORTH EAST LINCOLNSHIRE CCG,121549
North East Lincolnshire Council,http://statistics.data.gov.uk/id/local-authority/00FC),Cap Dep Chief Exec,Director Of Public Health,Scartho Rd / Barratts Rec Site,Cap Land/Build-Build Enh Wrk,Cap Land/Build-Build Enh Wrk,YA102,3/29/2018,510246,3945,CAPITAL,STRATEGIC LEISURE LIMITED,132216
North East Lincolnshire Council,http://statistics.data.gov.uk/id/local-authority/00FC),Cap Dep Chief Exec,Director Of Public Health,Immingham Hub,Cap Land/Build-Build Enh Wrk,Cap Land/Build-Build Enh Wrk,YA102,3/26/2018,510033,1550,CAPITAL,ENGIE SERVICES LTD,133267
North East Lincolnshire Council,http://statistics.data.gov.uk/id/local-authority/00FC),Cap Dep Chief Exec,Director Of Public Health,Playing Pitch Reprovision,Cap Land/Build-Build Enh Wrk,Cap Land/Build-Build Enh Wrk,YA102,3/1/2018,505706,2302.5,CAPITAL,ROBINSON LOW FRANCIS LLP,136534
North East Lincolnshire Council,http://statistics.data.gov.uk/id/local-authority/00FC),Cap Dep Chief Exec,Director Of Public Health,Library Self Service Equipment,Cap Veh Plt Eqp-Purchase,Cap Veh Plt Eqp-Purchase,YB101,3/8/2018,499912,6370,CAPITAL,D-TECH INTERNATIONAL LTD,102138
North East Lincolnshire Council,http://statistics.data.gov.uk/id/local-authority/00FC),Cap Dep Chief Exec,Director Of Public Health,Library Self Service Equipment,Cap Veh Plt Eqp-Purchase,Cap Veh Plt Eqp-Purchase,YB101,3/15/2018,503435,33780,CAPITAL,D-TECH INTERNATIONAL LTD,102138
North East Lincolnshire Council,http://statistics.data.gov.uk/id/local-authority/00FC),Chief Executive,Director Of Finance,Backlog Maintenance,Cap Land/Build-Build Enh Wrk,Cap Land/Build-Build Enh Wrk,YA102,3/13/2018,507827,4120.01,CAPITAL,ENGIE SERVICES LTD,133267
North East Lincolnshire Council,http://statistics.data.gov.uk/id/local-authority/00FC),Chief Executive,Director Of Finance,Backlog Maintenance,Cap Land/Build-Build Enh Wrk,Cap Land/Build-Build Enh Wrk,YA102,3/15/2018,508204,8915,CAPITAL,ETON-LINCS LIMITED,101510
North East Lincolnshire Council,http://statistics.data.gov.uk/id/local-authority/00FC),Chief Executive,Director Of Finance,Backlog Maintenance,Cap Land/Build-Build Enh Wrk,Cap Land/Build-Build Enh Wrk,YA102,3/22/2018,509752,3343,CAPITAL,ETON-LINCS LIMITED,101510
North East Lincolnshire Council,http://statistics.data.gov.uk/id/local-authority/00FC),Chief Executive,Director Of Finance,Backlog Maintenance,Cap Land/Build-Prof Fees,Cap Land/Build-Prof Fees,YA103,3/22/2018,509707,1685.19,CAPITAL,ENGIE SERVICES LTD,133267
North East Lincolnshire Council,http://statistics.data.gov.uk/id/local-authority/00FC),Chief Executive,Director Of Finance,Backlog Maintenance,Cap Land/Build-Prof Fees,Cap Land/Build-Prof Fees,YA103,3/22/2018,509701,2457.87,CAPITAL,ENGIE SERVICES LTD,133267
North East Lincolnshire Council,http://statistics.data.gov.uk/id/local-authority/00FC),Chief Executive,Director Of Finance,Backlog Maintenance,Cap Land/Build-Build Enh Wrk,Cap Land/Build-Build Enh Wrk,YA102,3/22/2018,509711,3210,CAPITAL,ETON-LINCS LIMITED,101510
North East Lincolnshire Council,http://statistics.data.gov.uk/id/local-authority/00FC),Chief Executive,Director Of Finance,Backlog Maintenance,Cap Land/Build-Build Enh Wrk,Cap Land/Build-Build Enh Wrk,YA102,3/22/2018,509686,1855,CAPITAL,ETON-LINCS LIMITED,101510
North East Lincolnshire Council,http://statistics.data.gov.uk/id/local-authority/00FC),Chief Executive,Director Of Finance,Backlog Maintenance,Cap Land/Build-Build Enh Wrk,Cap Land/Build-Build Enh Wrk,YA102,3/15/2018,507916,1685.3,CAPITAL,KES BUILDING MAINTENANCE LIMITED,100786
North East Lincolnshire Council,http://statistics.data.gov.uk/id/local-authority/00FC),Chief Executive,Director Of Finance,Backlog Maintenance,Cap Land/Build-Prof Fees,Cap Land/Build-Prof Fees,YA103,3/22/2018,509705,321.75,CAPITAL,ENGIE SERVICES LTD,133267
North East Lincolnshire Council,http://statistics.data.gov.uk/id/local-authority/00FC),Chief Executive,Director Of Finance,Backlog Maintenance,Cap Land/Build-Prof Fees,Cap Land/Build-Prof Fees,YA103,3/22/2018,509694,386.1,CAPITAL,ENGIE SERVICES LTD,133267
North East Lincolnshire Council,http://statistics.data.gov.uk/id/local-authority/00FC),Chief Executive,Director Of Finance,Backlog Maintenance,Cap Land/Build-Build Enh Wrk,Cap Land/Build-Build Enh Wrk,YA102,3/15/2018,508163,11950,CAPITAL,NEWBY LEISURE LTD,101227
North East Lincolnshire Council,http://statistics.data.gov.uk/id/local-authority/00FC),Chief Executive,Director Of Finance,Backlog Maintenance,Cap Land/Build-Build Enh Wrk,Cap Land/Build-Build Enh Wrk,YA102,3/22/2018,509386,457.86,CAPITAL,ENGIE SERVICES LTD,133267
North East Lincolnshire Council,http://statistics.data.gov.uk/id/local-authority/00FC),Chief Executive,Director Of Finance,Backlog Maintenance,Cap Land/Build-Build Enh Wrk,Cap Land/Build-Build Enh Wrk,YA102,3/22/2018,509387,1446.46,CAPITAL,ENGIE SERVICES LTD,133267
North East Lincolnshire Council,http://statistics.data.gov.uk/id/local-authority/00FC),Chief Executive,Director Of Finance,Backlog Maintenance,Cap Land/Build-Build Enh Wrk,Cap Land/Build-Build Enh Wrk,YA102,3/26/2018,509762,300,CAPITAL,ENGIE SERVICES LTD,133267
North East Lincolnshire Council,http://statistics.data.gov.uk/id/local-authority/00FC),Chief Executive,Director Of Finance,Backlog Maintenance,Cap Land/Build-Build Enh Wrk,Cap Land/Build-Build Enh Wrk,YA102,3/13/2018,507820,1498.4,CAPITAL,ENGIE SERVICES LTD,133267
North East Lincolnshire Council,http://statistics.data.gov.uk/id/local-authority/00FC),Chief Executive,Director Of Finance,Backlog Maintenance,Cap Land/Build-Build Enh Wrk,Cap Land/Build-Build Enh Wrk,YA102,3/15/2018,507963,2220.4,CAPITAL,KES BUILDING MAINTENANCE LIMITED,100786
North East Lincolnshire Council,http://statistics.data.gov.uk/id/local-authority/00FC),Chief Executive,Director Of Finance,Backlog Maintenance,Cap Land/Build-Build Enh Wrk,Cap Land/Build-Build Enh Wrk,YA102,3/15/2018,507959,25969.03,CAPITAL,S VOASE BUILDERS LTD,103594
North East Lincolnshire Council,http://statistics.data.gov.uk/id/local-authority/00FC),Chief Executive,Director Of Finance,Backlog Maintenance,Cap Land/Build-Build Enh Wrk,Cap Land/Build-Build Enh Wrk,YA102,3/15/2018,507962,2088,CAPITAL,ETON-LINCS LIMITED,101510
North East Lincolnshire Council,http://statistics.data.gov.uk/id/local-authority/00FC),Chief Executive,Director Of Finance,Backlog Maintenance,Cap Land/Build-Build Enh Wrk,Cap Land/Build-Build Enh Wrk,YA102,3/15/2018,507961,6950,CAPITAL,TOPCON CONSTRUCTION LTD,108462
North East Lincolnshire Council,http://statistics.data.gov.uk/id/local-authority/00FC),Chief Executive,Director Of Finance,Backlog Maintenance,Cap Land/Build-Prof Fees,Cap Land/Build-Prof Fees,YA103,3/22/2018,509708,350,CAPITAL,ENGIE SERVICES LTD,133267
North East Lincolnshire Council,http://statistics.data.gov.uk/id/local-authority/00FC),Chief Executive,Director Of Finance,Backlog Maintenance,Cap Land/Build-Prof Fees,Cap Land/Build-Prof Fees,YA103,3/22/2018,509692,737.62,CAPITAL,ENGIE SERVICES LTD,133267
North East Lincolnshire Council,http://statistics.data.gov.uk/id/local-authority/00FC),Chief Executive,Director Of Finance,Backlog Maintenance,Cap Land/Build-Prof Fees,Cap Land/Build-Prof Fees,YA103,3/22/2018,509703,258.31,CAPITAL,ENGIE SERVICES LTD,133267
North East Lincolnshire Council,http://statistics.data.gov.uk/id/local-authority/00FC),Chief Executive,Director Of Finance,Backlog Maintenance,Cap Land/Build-Prof Fees,Cap Land/Build-Prof Fees,YA103,3/15/2018,507943,330.85,CAPITAL,ENGIE SERVICES LTD,133267
North East Lincolnshire Council,http://statistics.data.gov.uk/id/local-authority/00FC),Chief Executive,Director Of Finance,Backlog Maintenance,Cap Land/Build-Prof Fees,Cap Land/Build-Prof Fees,YA103,3/15/2018,507948,2492.1,CAPITAL,ENGIE SERVICES LTD,133267
North East Lincolnshire Council,http://statistics.data.gov.uk/id/local-authority/00FC),Chief Executive,Director Of Finance,Backlog Maintenance,Cap Land/Build-Prof Fees,Cap Land/Build-Prof Fees,YA103,3/15/2018,507940,278.85,CAPITAL,ENGIE SERVICES LTD,133267
North East Lincolnshire Council,http://statistics.data.gov.uk/id/local-authority/00FC),Chief Executive,Director Of Finance,Backlog Maintenance,Cap Land/Build-Prof Fees,Cap Land/Build-Prof Fees,YA103,3/15/2018,507944,500.5,CAPITAL,ENGIE SERVICES LTD,133267
North East Lincolnshire Council,http://statistics.data.gov.uk/id/local-authority/00FC),Chief Executive,Director Of Finance,Backlog Maintenance,Cap Land/Build-Prof Fees,Cap Land/Build-Prof Fees,YA103,3/15/2018,507949,326.56,CAPITAL,ENGIE SERVICES LTD,133267
North East Lincolnshire Council,http://statistics.data.gov.uk/id/local-authority/00FC),Chief Executive,Director Of Finance,Backlog Maintenance,Cap Land/Build-Build Enh Wrk,Cap Land/Build-Build Enh Wrk,YA102,3/13/2018,507819,8338.19,CAPITAL,ENGIE SERVICES LTD,133267
North East Lincolnshire Council,http://statistics.data.gov.uk/id/local-authority/00FC),Chief Executive,Director Of Finance,Backlog Maintenance,Cap Land/Build-Prof Fees,Cap Land/Build-Prof Fees,YA103,3/15/2018,507942,1276.6,CAPITAL,ENGIE SERVICES LTD,133267
North East Lincolnshire Council,http://statistics.data.gov.uk/id/local-authority/00FC),Chief Executive,Director Of Finance,Backlog Maintenance,Cap Land/Build-Prof Fees,Cap Land/Build-Prof Fees,YA103,3/26/2018,510058,14105.37,CAPITAL,ENGIE SERVICES LTD,133267
North East Lincolnshire Council,http://statistics.data.gov.uk/id/local-authority/00FC),Chief Executive,Director Of Finance,Backlog Maintenance,Cap Land/Build-Prof Fees,Cap Land/Build-Prof Fees,YA103,3/26/2018,510059,11513.28,CAPITAL,ENGIE SERVICES LTD,133267
North East Lincolnshire Council,http://statistics.data.gov.uk/id/local-authority/00FC),Chief Executive,Director Of Finance,Backlog Maintenance,Cap Land/Build-Prof Fees,Cap Land/Build-Prof Fees,YA103,3/26/2018,510060,8947.5,CAPITAL,ENGIE SERVICES LTD,133267
North East Lincolnshire Council,http://statistics.data.gov.uk/id/local-authority/00FC),Chief Executive,Director Of Finance,Backlog Maintenance,Cap Land/Build-Prof Fees,Cap Land/Build-Prof Fees,YA103,3/27/2018,510212,1577.13,CAPITAL,ENGIE SERVICES LTD,133267
North East Lincolnshire Council,http://statistics.data.gov.uk/id/local-authority/00FC),Chief Executive,Director Of Finance,Backlog Maintenance,Cap Land/Build-Prof Fees,Cap Land/Build-Prof Fees,YA103,3/27/2018,510213,1652.52,CAPITAL,ENGIE SERVICES LTD,133267
North East Lincolnshire Council,http://statistics.data.gov.uk/id/local-authority/00FC),Chief Executive,Director Of Finance,Backlog Maintenance,Cap Land/Build-Prof Fees,Cap Land/Build-Prof Fees,YA103,3/27/2018,510214,1462.05,CAPITAL,ENGIE SERVICES LTD,133267
North East Lincolnshire Council,http://statistics.data.gov.uk/id/local-authority/00FC),Chief Executive,Director Of Finance,Backlog Maintenance,Cap Land/Build-Prof Fees,Cap Land/Build-Prof Fees,YA103,3/27/2018,510215,13503.18,CAPITAL,ENGIE SERVICES LTD,133267
North East Lincolnshire Council,http://statistics.data.gov.uk/id/local-authority/00FC),Chief Executive,Director Of Finance,Backlog Maintenance,Cap Land/Build-Prof Fees,Cap Land/Build-Prof Fees,YA103,3/27/2018,510216,7929.15,CAPITAL,ENGIE SERVICES LTD,133267
North East Lincolnshire Council,http://statistics.data.gov.uk/id/local-authority/00FC),Chief Executive,Director Of Finance,Backlog Maintenance,Cap Land/Build-Prof Fees,Cap Land/Build-Prof Fees,YA103,3/27/2018,510217,4555.26,CAPITAL,ENGIE SERVICES LTD,133267
North East Lincolnshire Council,http://statistics.data.gov.uk/id/local-authority/00FC),Chief Executive,Director Of Finance,Backlog Maintenance,Cap Land/Build-Prof Fees,Cap Land/Build-Prof Fees,YA103,3/22/2018,509690,460.85,CAPITAL,ENGIE SERVICES LTD,133267
North East Lincolnshire Council,http://statistics.data.gov.uk/id/local-authority/00FC),Chief Executive,Director Of Finance,Backlog Maintenance,Cap Land/Build-Prof Fees,Cap Land/Build-Prof Fees,YA103,3/15/2018,507941,275.32,CAPITAL,ENGIE SERVICES LTD,133267
North East Lincolnshire Council,http://statistics.data.gov.uk/id/local-authority/00FC),Chief Executive,Director Of Finance,Backlog Maintenance,Cap Land/Build-Prof Fees,Cap Land/Build-Prof Fees,YA103,3/26/2018,509709,271.44,CAPITAL,ENGIE SERVICES LTD,133267
North East Lincolnshire Council,http://statistics.data.gov.uk/id/local-authority/00FC),Chief Executive,Director Of Finance,Backlog Maintenance,Cap Land/Build-Prof Fees,Cap Land/Build-Prof Fees,YA103,3/15/2018,507935,320.91,CAPITAL,ENGIE SERVICES LTD,133267
North East Lincolnshire Council,http://statistics.data.gov.uk/id/local-authority/00FC),Chief Executive,Director Of Finance,Backlog Maintenance,Cap Land/Build-Build Enh Wrk,Cap Land/Build-Build Enh Wrk,YA102,3/13/2018,507507,3910,CAPITAL,J W PLATER LTD,100555
North East Lincolnshire Council,http://statistics.data.gov.uk/id/local-authority/00FC),Chief Executive,Director Of Finance,Backlog Maintenance,Cap Land/Build-Build Enh Wrk,Cap Land/Build-Build Enh Wrk,YA102,3/13/2018,507506,5000,CAPITAL,J MELTON LTD,100636
North East Lincolnshire Council,http://statistics.data.gov.uk/id/local-authority/00FC),Chief Executive,Director Of Finance,Backlog Maintenance,Cap Land/Build-Build Enh Wrk,Cap Land/Build-Build Enh Wrk,YA102,3/26/2018,510031,1931.64,CAPITAL,ENGIE SERVICES LTD,133267
North East Lincolnshire Council,http://statistics.data.gov.uk/id/local-authority/00FC),Chief Executive,Director Of Finance,Backlog Maintenance,Cap Land/Build-Build Enh Wrk,Cap Land/Build-Build Enh Wrk,YA102,3/20/2018,508697,4858.8,CAPITAL,J MELTON LTD,100636
North East Lincolnshire Council,http://statistics.data.gov.uk/id/local-authority/00FC),Chief Executive,Director Of Finance,Backlog Maintenance,Cap Land/Build-Prof Fees,Cap Land/Build-Prof Fees,YA103,3/22/2018,509755,1158.3,CAPITAL,ENGIE SERVICES LTD,133267
North East Lincolnshire Council,http://statistics.data.gov.uk/id/local-authority/00FC),Chief Executive,Director Of Finance,Backlog Maintenance,Cap Land/Build-Prof Fees,Cap Land/Build-Prof Fees,YA103,3/15/2018,507937,986,CAPITAL,ENGIE SERVICES LTD,133267
North East Lincolnshire Council,http://statistics.data.gov.uk/id/local-authority/00FC),Chief Executive,Director Of Finance,Backlog Maintenance,Cap Land/Build-Prof Fees,Cap Land/Build-Prof Fees,YA103,3/15/2018,507890,288.65,CAPITAL,ENGIE SERVICES LTD,133267
North East Lincolnshire Council,http://statistics.data.gov.uk/id/local-authority/00FC),Chief Executive,Director Of Finance,Backlog Maintenance,Cap Land/Build-Prof Fees,Cap Land/Build-Prof Fees,YA103,3/15/2018,507945,443.17,CAPITAL,ENGIE SERVICES LTD,133267
North East Lincolnshire Council,http://statistics.data.gov.uk/id/local-authority/00FC),Chief Executive,Director Of Finance,Backlog Maintenance,Cap Land/Build-Prof Fees,Cap Land/Build-Prof Fees,YA103,3/15/2018,507934,7420.28,CAPITAL,ENGIE SERVICES LTD,133267
North East Lincolnshire Council,http://statistics.data.gov.uk/id/local-authority/00FC),Chief Executive,Director Of Finance,Backlog Maintenance,Cap Land/Build-Prof Fees,Cap Land/Build-Prof Fees,YA103,3/15/2018,507938,804.86,CAPITAL,ENGIE SERVICES LTD,133267
North East Lincolnshire Council,http://statistics.data.gov.uk/id/local-authority/00FC),Chief Executive,Director Of Finance,Backlog Maintenance,Cap Land/Build-Build Enh Wrk,Cap Land/Build-Build Enh Wrk,YA102,3/15/2018,508177,1365,CAPITAL,ETON-LINCS LIMITED,101510
North East Lincolnshire Council,http://statistics.data.gov.uk/id/local-authority/00FC),Chief Executive,Director Of Finance,Backlog Maintenance,Cap Land/Build-Prof Fees,Cap Land/Build-Prof Fees,YA103,3/22/2018,509700,3555.5,CAPITAL,ENGIE SERVICES LTD,133267
North East Lincolnshire Council,http://statistics.data.gov.uk/id/local-authority/00FC),Chief Executive,Director Of Finance,Backlog Maintenance,Cap Land/Build-Prof Fees,Cap Land/Build-Prof Fees,YA103,3/22/2018,509696,1553.5,CAPITAL,ENGIE SERVICES LTD,133267
North East Lincolnshire Council,http://statistics.data.gov.uk/id/local-authority/00FC),Chief Executive,Director Of Finance,Backlog Maintenance,Cap Land/Build-Build Enh Wrk,Cap Land/Build-Build Enh Wrk,YA102,3/22/2018,509687,16010.27,CAPITAL,KES BUILDING MAINTENANCE LIMITED,100786
North East Lincolnshire Council,http://statistics.data.gov.uk/id/local-authority/00FC),Chief Executive,Director Of Finance,Backlog Maintenance,Cap Land/Build-Prof Fees,Cap Land/Build-Prof Fees,YA103,3/22/2018,509698,859.95,CAPITAL,ENGIE SERVICES LTD,133267
North East Lincolnshire Council,http://statistics.data.gov.uk/id/local-authority/00FC),Chief Executive,Director Of Finance,Backlog Maintenance,Cap Land/Build-Prof Fees,Cap Land/Build-Prof Fees,YA103,3/22/2018,509699,1010.66,CAPITAL,ENGIE SERVICES LTD,133267
North East Lincolnshire Council,http://statistics.data.gov.uk/id/local-authority/00FC),Chief Executive,Director Of Finance,Backlog Maintenance,Cap Land/Build-Build Enh Wrk,Cap Land/Build-Build Enh Wrk,YA102,3/22/2018,509388,1761.88,CAPITAL,E BACON & CO LTD,104090
North East Lincolnshire Council,http://statistics.data.gov.uk/id/local-authority/00FC),Chief Executive,Director Of Finance,Property Rationalisation Prog,Cap Land/Build-Build Enh Wrk,Cap Land/Build-Build Enh Wrk,YA102,3/22/2018,509037,1975,CAPITAL,ENGIE SERVICES LTD,133267
North East Lincolnshire Council,http://statistics.data.gov.uk/id/local-authority/00FC),Chief Executive,Director Of Finance,Property Rationalisation Prog,Cap Land/Build-Build Enh Wrk,Cap Land/Build-Build Enh Wrk,YA102,3/26/2018,510033,250,CAPITAL,ENGIE SERVICES LTD,133267
North East Lincolnshire Council,http://statistics.data.gov.uk/id/local-authority/00FC),Chief Executive,Director Of Finance,Property Rationalisation Prog,Cap Land/Build-Prof Fees,Cap Land/Build-Prof Fees,YA103,3/15/2018,507947,294.33,CAPITAL,ENGIE SERVICES LTD,133267
North East Lincolnshire Council,http://statistics.data.gov.uk/id/local-authority/00FC),Chief Executive,Director Of Finance,Property Rationalisation Prog,Cap Land/Build-Build Enh Wrk,Cap Land/Build-Build Enh Wrk,YA102,3/13/2018,507818,2200,CAPITAL,ENGIE SERVICES LTD,133267
North East Lincolnshire Council,http://statistics.data.gov.uk/id/local-authority/00FC),Chief Executive,Director Of Finance,Cctv East Marsh,Cap Land/Build-Build Enh Wrk,Cap Land/Build-Build Enh Wrk,YA102,3/13/2018,507505,675,CAPITAL,ODP CONTRACTING LTD,137288
North East Lincolnshire Council,http://statistics.data.gov.uk/id/local-authority/00FC),Chief Executive,Director Of Finance,Dig Strat Del/Imp Civica/Edrms,Cap Land/Build-Build Enh Wrk,Cap Land/Build-Build Enh Wrk,YA102,3/5/2018,505637,1115.78,CAPITAL,XMA LIMITED,100699
North East Lincolnshire Council,http://statistics.data.gov.uk/id/local-authority/00FC),Chief Executive,Director Of Finance,Dig Strat Del/Imp Civica/Edrms,Cap Land/Build-Build Enh Wrk,Cap Land/Build-Build Enh Wrk,YA102,3/22/2018,508859,1673.67,CAPITAL,XMA LIMITED,100699
North East Lincolnshire Council,http://statistics.data.gov.uk/id/local-authority/00FC),Chief Executive,Director Of Finance,Dig Strat Del/Imp Civica/Edrms,Cap Veh Plt Eqp-Purchase,Cap Veh Plt Eqp-Purchase,YB101,3/29/2018,511006,5175,CAPITAL,NORTH LINCOLNSHIRE COUNCIL,101186
North East Lincolnshire Council,http://statistics.data.gov.uk/id/local-authority/00FC),Chief Executive,Director Of Finance,Dig Strat Del/Imp Civica/Edrms,Cap Veh Plt Eqp-Purchase,Cap Veh Plt Eqp-Purchase,YB101,3/12/2018,507127,9420,CAPITAL,EXPERIAN LTD,139357
North East Lincolnshire Council,http://statistics.data.gov.uk/id/local-authority/00FC),Chief Executive,Director Of Finance,Dig Strat Del/Imp Civica/Edrms,Cap Veh Plt Eqp-Purchase,Cap Veh Plt Eqp-Purchase,YB101,3/27/2018,510185,10000,CAPITAL,PENTAGULL LIMITED,139611
North East Lincolnshire Council,http://statistics.data.gov.uk/id/local-authority/00FC),Chief Executive,Director Of Finance,Dig Strat Del/Imp Civica/Edrms,Cap Veh Plt Eqp-Prof Fees,Cap Veh Plt Eqp-Prof Fees,YB103,3/19/2018,508580,71834.7,CAPITAL,FUTUREGOV.LTD,135412
North East Lincolnshire Council,http://statistics.data.gov.uk/id/local-authority/00FC),Chief Executive,Shared Services,Ict Refresh 16-17,Cap Land/Build-Build Enh Wrk,Cap Land/Build-Build Enh Wrk,YA102,3/8/2018,506687,2138.9,CAPITAL,INSIGHT DIRECT (UK) LTD,101011
North East Lincolnshire Council,http://statistics.data.gov.uk/id/local-authority/00FC),Chief Executive,Shared Services,Ict Refresh 16-17,Cap Land/Build-Build Enh Wrk,Cap Land/Build-Build Enh Wrk,YA102,3/15/2018,507443,3721.1,CAPITAL,INSIGHT DIRECT (UK) LTD,101011
North East Lincolnshire Council,http://statistics.data.gov.uk/id/local-authority/00FC),Chief Executive,Shared Services,Ict Refresh 16-17,Cap Land/Build-Build Enh Wrk,Cap Land/Build-Build Enh Wrk,YA102,3/19/2018,508610,470.17,CAPITAL,INSIGHT DIRECT (UK) LTD,101011
North East Lincolnshire Council,http://statistics.data.gov.uk/id/local-authority/00FC),Chief Executive,Shared Services,Ict Refresh 16-17,Cap Intangible Assets,Cap Intangible Assets,YH101,3/12/2018,506402,525,CAPITAL,NORTHGATE PUBLIC SERVICES (UK) LTD,101841
North East Lincolnshire Council,http://statistics.data.gov.uk/id/local-authority/00FC),Chief Executive,Shared Services,Ict Refresh 16-17,Cap Intangible Assets,Cap Intangible Assets,YH101,3/27/2018,509112,93186,CAPITAL,TRUSTMARQUE SOLUTIONS LTD,101275
North East Lincolnshire Council,http://statistics.data.gov.uk/id/local-authority/00FC),Chief Executive,Shared Services,Ict Refresh 16-17,Cap Intangible Assets,Cap Intangible Assets,YH101,3/27/2018,509111,79235,CAPITAL,TRUSTMARQUE SOLUTIONS LTD,101275
North East Lincolnshire Council,http://statistics.data.gov.uk/id/local-authority/00FC),Chief Executive,Shared Services,Ict Refresh 16-17,Cap Intangible Assets,Cap Intangible Assets,YH101,3/27/2018,509110,710,CAPITAL,TRUSTMARQUE SOLUTIONS LTD,101275
North East Lincolnshire Council,http://statistics.data.gov.uk/id/local-authority/00FC),Chief Executive,Shared Services,Ict Refresh 16-17,Cap Intangible Assets,Cap Intangible Assets,YH101,3/27/2018,508053,6631.69,CAPITAL,TRUSTMARQUE SOLUTIONS LTD,101275
North East Lincolnshire Council,http://statistics.data.gov.uk/id/local-authority/00FC),Chief Executive,Ad Environment,Fleet Replacement Programme,Cap Veh Plt Eqp-Purchase,Cap Veh Plt Eqp-Purchase,YB101,3/15/2018,507452,24134.65,CAPITAL,FORD MOTOR COMPANY LTD,137829
North East Lincolnshire Council,http://statistics.data.gov.uk/id/local-authority/00FC),Chief Executive,Ad Environment,Fleet Replacement Programme,Cap Veh Plt Eqp-Purchase,Cap Veh Plt Eqp-Purchase,YB101,3/15/2018,507447,24134.65,CAPITAL,FORD MOTOR COMPANY LTD,137829
North East Lincolnshire Council,http://statistics.data.gov.uk/id/local-authority/00FC),Chief Executive,Ad Environment,Fleet Replacement Programme,Cap Veh Plt Eqp-Purchase,Cap Veh Plt Eqp-Purchase,YB101,3/15/2018,507448,24134.65,CAPITAL,FORD MOTOR COMPANY LTD,137829
North East Lincolnshire Council,http://statistics.data.gov.uk/id/local-authority/00FC),Chief Executive,Ad Environment,Fleet Replacement Programme,Cap Veh Plt Eqp-Purchase,Cap Veh Plt Eqp-Purchase,YB101,3/15/2018,507451,24134.65,CAPITAL,FORD MOTOR COMPANY LTD,137829
North East Lincolnshire Council,http://statistics.data.gov.uk/id/local-authority/00FC),Chief Executive,Ad Environment,Fleet Replacement Programme,Cap Veh Plt Eqp-Purchase,Cap Veh Plt Eqp-Purchase,YB101,3/15/2018,507446,24134.65,CAPITAL,FORD MOTOR COMPANY LTD,137829
North East Lincolnshire Council,http://statistics.data.gov.uk/id/local-authority/00FC),Chief Executive,Ad Environment,Fleet Replacement Programme,Cap Veh Plt Eqp-Purchase,Cap Veh Plt Eqp-Purchase,YB101,3/15/2018,507449,24134.65,CAPITAL,FORD MOTOR COMPANY LTD,137829
North East Lincolnshire Council,http://statistics.data.gov.uk/id/local-authority/00FC),Chief Executive,Ad Environment,Fleet Replacement Programme,Cap Veh Plt Eqp-Purchase,Cap Veh Plt Eqp-Purchase,YB101,3/15/2018,507450,24134.65,CAPITAL,FORD MOTOR COMPANY LTD,137829
North East Lincolnshire Council,http://statistics.data.gov.uk/id/local-authority/00FC),Chief Executive,Ad Environment,Fleet Replacement Programme,Cap Veh Plt Eqp-Purchase,Cap Veh Plt Eqp-Purchase,YB101,3/15/2018,507456,24134.65,CAPITAL,FORD MOTOR COMPANY LTD,137829
North East Lincolnshire Council,http://statistics.data.gov.uk/id/local-authority/00FC),Chief Executive,Ad Environment,Fleet Replacement Programme,Cap Veh Plt Eqp-Purchase,Cap Veh Plt Eqp-Purchase,YB101,3/15/2018,507452,306,CAPITAL,FORD MOTOR COMPANY LTD,137829
North East Lincolnshire Council,http://statistics.data.gov.uk/id/local-authority/00FC),Chief Executive,Ad Environment,Fleet Replacement Programme,Cap Veh Plt Eqp-Purchase,Cap Veh Plt Eqp-Purchase,YB101,3/15/2018,507447,306,CAPITAL,FORD MOTOR COMPANY LTD,137829
North East Lincolnshire Council,http://statistics.data.gov.uk/id/local-authority/00FC),Chief Executive,Ad Environment,Fleet Replacement Programme,Cap Veh Plt Eqp-Purchase,Cap Veh Plt Eqp-Purchase,YB101,3/15/2018,507448,306,CAPITAL,FORD MOTOR COMPANY LTD,137829
North East Lincolnshire Council,http://statistics.data.gov.uk/id/local-authority/00FC),Chief Executive,Ad Environment,Fleet Replacement Programme,Cap Veh Plt Eqp-Purchase,Cap Veh Plt Eqp-Purchase,YB101,3/15/2018,507451,306,CAPITAL,FORD MOTOR COMPANY LTD,137829
North East Lincolnshire Council,http://statistics.data.gov.uk/id/local-authority/00FC),Chief Executive,Ad Environment,Fleet Replacement Programme,Cap Veh Plt Eqp-Purchase,Cap Veh Plt Eqp-Purchase,YB101,3/15/2018,507446,306,CAPITAL,FORD MOTOR COMPANY LTD,137829
North East Lincolnshire Council,http://statistics.data.gov.uk/id/local-authority/00FC),Chief Executive,Ad Environment,Fleet Replacement Programme,Cap Veh Plt Eqp-Purchase,Cap Veh Plt Eqp-Purchase,YB101,3/15/2018,507449,306,CAPITAL,FORD MOTOR COMPANY LTD,137829
North East Lincolnshire Council,http://statistics.data.gov.uk/id/local-authority/00FC),Chief Executive,Ad Environment,Fleet Replacement Programme,Cap Veh Plt Eqp-Purchase,Cap Veh Plt Eqp-Purchase,YB101,3/15/2018,507450,306,CAPITAL,FORD MOTOR COMPANY LTD,137829
North East Lincolnshire Council,http://statistics.data.gov.uk/id/local-authority/00FC),Chief Executive,Ad Environment,Fleet Replacement Programme,Cap Veh Plt Eqp-Purchase,Cap Veh Plt Eqp-Purchase,YB101,3/15/2018,507456,306,CAPITAL,FORD MOTOR COMPANY LTD,137829
North East Lincolnshire Council,http://statistics.data.gov.uk/id/local-authority/00FC),Chief Executive,Ad Environment,Fleet Replacement Programme,Cap Veh Plt Eqp-Purchase,Cap Veh Plt Eqp-Purchase,YB101,3/12/2018,506421,16145,CAPITAL,THE BURDENS GROUP LTD,104002
North East Lincolnshire Council,http://statistics.data.gov.uk/id/local-authority/00FC),Chief Executive,Director Of Economy & Growth,Local Transport Plan Schemes,Cap Infrastr-Build Enh Wrk,Cap Infrastr-Build Enh Wrk,YC102,3/29/2018,510622,5470,CAPITAL,SUSTRANS LTD,133423
North East Lincolnshire Council,http://statistics.data.gov.uk/id/local-authority/00FC),Chief Executive,Director Of Economy & Growth,Local Transport Plan Schemes,Cap Infrastr-Build Enh Wrk,Cap Infrastr-Build Enh Wrk,YC102,3/5/2018,505678,1000,CAPITAL,ENGIE SERVICES LTD,133267
North East Lincolnshire Council,http://statistics.data.gov.uk/id/local-authority/00FC),Chief Executive,Director Of Economy & Growth,Local Transport Plan Schemes,Cap Infrastr-Build Enh Wrk,Cap Infrastr-Build Enh Wrk,YC102,3/26/2018,509609,540,CAPITAL,LOCAL TRANSPORT PROJECTS LTD,121248
North East Lincolnshire Council,http://statistics.data.gov.uk/id/local-authority/00FC),Chief Executive,Director Of Economy & Growth,Local Transport Plan Schemes,Cap Infrastr-Build Enh Wrk,Cap Infrastr-Build Enh Wrk,YC102,3/6/2018,505647,471.18,CAPITAL,ENGIE SERVICES LTD,133267
North East Lincolnshire Council,http://statistics.data.gov.uk/id/local-authority/00FC),Chief Executive,Director Of Economy & Growth,Local Transport Plan Schemes,Cap Land/Build-Build Enh Wrk,Cap Land/Build-Build Enh Wrk,YA102,3/12/2018,507005,565.08,CAPITAL,LOCAL WORLD LIMITED,118774
North East Lincolnshire Council,http://statistics.data.gov.uk/id/local-authority/00FC),Chief Executive,Director Of Economy & Growth,Local Transport Plan Schemes,Cap Land/Build-Build Enh Wrk,Cap Land/Build-Build Enh Wrk,YA102,3/15/2018,508100,565.08,CAPITAL,LOCAL WORLD LIMITED,118774
North East Lincolnshire Council,http://statistics.data.gov.uk/id/local-authority/00FC),Chief Executive,Director Of Economy & Growth,Local Transport Plan Schemes,Cap Infrastr-Build Enh Wrk,Cap Infrastr-Build Enh Wrk,YC102,3/26/2018,509646,54794.48,CAPITAL,SPECIALIST SURFACING LIMITED,100579
North East Lincolnshire Council,http://statistics.data.gov.uk/id/local-authority/00FC),Chief Executive,Director Of Economy & Growth,Local Transport Plan Schemes,Cap Infrastr-Build Enh Wrk,Cap Infrastr-Build Enh Wrk,YC102,3/5/2018,505642,3000,CAPITAL,ENGIE SERVICES LTD,133267
North East Lincolnshire Council,http://statistics.data.gov.uk/id/local-authority/00FC),Chief Executive,Director Of Economy & Growth,Local Transport Plan Schemes,Cap Infrastr-Build Enh Wrk,Cap Infrastr-Build Enh Wrk,YC102,3/20/2018,507603,2672.49,CAPITAL,J MCCANN & CO LTD,100841
North East Lincolnshire Council,http://statistics.data.gov.uk/id/local-authority/00FC),Chief Executive,Director Of Economy & Growth,Local Transport Plan Schemes,Cap Infrastr-Build Enh Wrk,Cap Infrastr-Build Enh Wrk,YC102,3/29/2018,510236,2100,CAPITAL,ONEWAY TM LIMITED,128602
North East Lincolnshire Council,http://statistics.data.gov.uk/id/local-authority/00FC),Chief Executive,Director Of Economy & Growth,Local Transport Plan Schemes,Cap Infrastr-Build Enh Wrk,Cap Infrastr-Build Enh Wrk,YC102,3/15/2018,508049,1920,CAPITAL,ONEWAY TM LIMITED,128602
North East Lincolnshire Council,http://statistics.data.gov.uk/id/local-authority/00FC),Chief Executive,Director Of Economy & Growth,Local Transport Plan Schemes,Cap Infrastr-Build Enh Wrk,Cap Infrastr-Build Enh Wrk,YC102,3/22/2018,509019,39008.11,CAPITAL,PROTEK FENCING LTD,136253
North East Lincolnshire Council,http://statistics.data.gov.uk/id/local-authority/00FC),Chief Executive,Director Of Economy & Growth,Local Transport Plan Schemes,Cap Infrastr-Build Enh Wrk,Cap Infrastr-Build Enh Wrk,YC102,3/5/2018,505644,1500,CAPITAL,ENGIE SERVICES LTD,133267
North East Lincolnshire Council,http://statistics.data.gov.uk/id/local-authority/00FC),Chief Executive,Director Of Economy & Growth,Local Transport Plan Schemes,Cap Infrastr-Build Enh Wrk,Cap Infrastr-Build Enh Wrk,YC102,3/5/2018,505639,7000,CAPITAL,ENGIE SERVICES LTD,133267
North East Lincolnshire Council,http://statistics.data.gov.uk/id/local-authority/00FC),Chief Executive,Director Of Economy & Growth,Local Transport Plan Schemes,Cap Infrastr-Build Enh Wrk,Cap Infrastr-Build Enh Wrk,YC102,3/5/2018,505641,1311.49,CAPITAL,ENGIE SERVICES LTD,133267
North East Lincolnshire Council,http://statistics.data.gov.uk/id/local-authority/00FC),Chief Executive,Director Of Economy & Growth,Local Transport Plan Schemes,Cap Infrastr-Build Enh Wrk,Cap Infrastr-Build Enh Wrk,YC102,3/19/2018,508255,40000,CAPITAL,SPECIALIST SURFACING LIMITED,100579
North East Lincolnshire Council,http://statistics.data.gov.uk/id/local-authority/00FC),Chief Executive,Director Of Economy & Growth,Local Transport Plan Schemes,Cap Infrastr-Build Enh Wrk,Cap Infrastr-Build Enh Wrk,YC102,3/26/2018,509644,122500,CAPITAL,SPECIALIST SURFACING LIMITED,100579
North East Lincolnshire Council,http://statistics.data.gov.uk/id/local-authority/00FC),Chief Executive,Director Of Economy & Growth,Local Transport Plan Schemes,Cap Infrastr-Build Enh Wrk,Cap Infrastr-Build Enh Wrk,YC102,3/26/2018,509606,1192.57,CAPITAL,HUMBERSIDE MATERIALS LABORATORY LTD,122103
North East Lincolnshire Council,http://statistics.data.gov.uk/id/local-authority/00FC),Chief Executive,Director Of Economy & Growth,Local Transport Plan Schemes,Cap Infrastr-Build Enh Wrk,Cap Infrastr-Build Enh Wrk,YC102,3/26/2018,509604,674.89,CAPITAL,HUMBERSIDE MATERIALS LABORATORY LTD,122103
North East Lincolnshire Council,http://statistics.data.gov.uk/id/local-authority/00FC),Chief Executive,Director Of Economy & Growth,Local Transport Plan Schemes,Cap Infrastr-Build Enh Wrk,Cap Infrastr-Build Enh Wrk,YC102,3/26/2018,509605,855.69,CAPITAL,HUMBERSIDE MATERIALS LABORATORY LTD,122103
North East Lincolnshire Council,http://statistics.data.gov.uk/id/local-authority/00FC),Chief Executive,Director Of Economy & Growth,Local Transport Plan Schemes,Cap Infrastr-Build Enh Wrk,Cap Infrastr-Build Enh Wrk,YC102,3/26/2018,509607,905.43,CAPITAL,HUMBERSIDE MATERIALS LABORATORY LTD,122103
North East Lincolnshire Council,http://statistics.data.gov.uk/id/local-authority/00FC),Chief Executive,Director Of Economy & Growth,Local Transport Plan Schemes,Cap Infrastr-Build Enh Wrk,Cap Infrastr-Build Enh Wrk,YC102,3/5/2018,505646,656.3,CAPITAL,ENGIE SERVICES LTD,133267
North East Lincolnshire Council,http://statistics.data.gov.uk/id/local-authority/00FC),Chief Executive,Director Of Economy & Growth,Local Transport Plan Schemes,Cap Infrastr-Build Enh Wrk,Cap Infrastr-Build Enh Wrk,YC102,3/8/2018,506376,3000,CAPITAL,ENGIE SERVICES LTD,133267
North East Lincolnshire Council,http://statistics.data.gov.uk/id/local-authority/00FC),Chief Executive,Director Of Economy & Growth,Local Transport Plan Schemes,Cap Infrastr-Build Enh Wrk,Cap Infrastr-Build Enh Wrk,YC102,3/26/2018,509601,1686.63,CAPITAL,HUMBERSIDE MATERIALS LABORATORY LTD,122103
North East Lincolnshire Council,http://statistics.data.gov.uk/id/local-authority/00FC),Chief Executive,Director Of Economy & Growth,Local Transport Plan Schemes,Cap Infrastr-Build Enh Wrk,Cap Infrastr-Build Enh Wrk,YC102,3/26/2018,509602,1283.51,CAPITAL,HUMBERSIDE MATERIALS LABORATORY LTD,122103
North East Lincolnshire Council,http://statistics.data.gov.uk/id/local-authority/00FC),Chief Executive,Director Of Economy & Growth,Local Transport Plan Schemes,Cap Infrastr-Build Enh Wrk,Cap Infrastr-Build Enh Wrk,YC102,3/26/2018,510022,944.63,CAPITAL,HUMBERSIDE MATERIALS LABORATORY LTD,122103
North East Lincolnshire Council,http://statistics.data.gov.uk/id/local-authority/00FC),Chief Executive,Director Of Economy & Growth,Local Transport Plan Schemes,Cap Infrastr-Build Enh Wrk,Cap Infrastr-Build Enh Wrk,YC102,3/6/2018,505643,2000,CAPITAL,ENGIE SERVICES LTD,133267
North East Lincolnshire Council,http://statistics.data.gov.uk/id/local-authority/00FC),Chief Executive,Director Of Economy & Growth,Local Transport Plan Schemes,Cap Infrastr-Build Enh Wrk,Cap Infrastr-Build Enh Wrk,YC102,3/26/2018,509603,508.87,CAPITAL,HUMBERSIDE MATERIALS LABORATORY LTD,122103
North East Lincolnshire Council,http://statistics.data.gov.uk/id/local-authority/00FC),Chief Executive,Director Of Economy & Growth,Local Transport Plan Schemes,Cap Infrastr-Build Enh Wrk,Cap Infrastr-Build Enh Wrk,YC102,3/5/2018,505679,6000,CAPITAL,ENGIE SERVICES LTD,133267
North East Lincolnshire Council,http://statistics.data.gov.uk/id/local-authority/00FC),Chief Executive,Director Of Economy & Growth,Local Transport Plan Schemes,Cap Infrastr-Build Enh Wrk,Cap Infrastr-Build Enh Wrk,YC102,3/8/2018,506356,2434,CAPITAL,ADVANTAGE TSC & D LTD,109136
North East Lincolnshire Council,http://statistics.data.gov.uk/id/local-authority/00FC),Chief Executive,Director Of Economy & Growth,Local Transport Plan Schemes,Cap Infrastr-Build Enh Wrk,Cap Infrastr-Build Enh Wrk,YC102,3/8/2018,506729,3316,CAPITAL,ADVANTAGE TSC & D LTD,109136
North East Lincolnshire Council,http://statistics.data.gov.uk/id/local-authority/00FC),Chief Executive,Director Of Economy & Growth,Local Transport Plan Schemes,Cap Infrastr-Build Enh Wrk,Cap Infrastr-Build Enh Wrk,YC102,3/19/2018,508253,30886.72,CAPITAL,C R REYNOLDS (CONSTRUCTION) LTD,103021
North East Lincolnshire Council,http://statistics.data.gov.uk/id/local-authority/00FC),Chief Executive,Director Of Economy & Growth,Local Transport Plan Schemes,Cap Infrastr-Build Enh Wrk,Cap Infrastr-Build Enh Wrk,YC102,3/26/2018,509643,127156.24,CAPITAL,C R REYNOLDS (CONSTRUCTION) LTD,103021
North East Lincolnshire Council,http://statistics.data.gov.uk/id/local-authority/00FC),Chief Executive,Director Of Economy & Growth,Local Transport Plan Schemes,Cap Infrastr-Build Enh Wrk,Cap Infrastr-Build Enh Wrk,YC102,3/19/2018,508582,1150,CAPITAL,LOCAL TRANSPORT PROJECTS LTD,121248
North East Lincolnshire Council,http://statistics.data.gov.uk/id/local-authority/00FC),Chief Executive,Director Of Economy & Growth,Local Transport Plan Schemes,Cap Infrastr-Purchase,Cap Infrastr-Purchase,YC101,3/8/2018,507130,34236.46,CAPITAL,SPECIALIST SURFACING LIMITED,100579
North East Lincolnshire Council,http://statistics.data.gov.uk/id/local-authority/00FC),Chief Executive,Director Of Economy & Growth,Local Transport Plan Schemes,Cap Infrastr-Purchase,Cap Infrastr-Purchase,YC101,3/5/2018,505677,3235.46,CAPITAL,ENGIE SERVICES LTD,133267
North East Lincolnshire Council,http://statistics.data.gov.uk/id/local-authority/00FC),Chief Executive,Director Of Economy & Growth,Local Transport Plan Schemes,Cap Infrastr-Build Enh Wrk,Cap Infrastr-Build Enh Wrk,YC102,3/19/2018,508050,40000,CAPITAL,SPECIALIST SURFACING LIMITED,100579
North East Lincolnshire Council,http://statistics.data.gov.uk/id/local-authority/00FC),Chief Executive,Director Of Economy & Growth,Local Transport Plan Schemes,Cap Infrastr-Build Enh Wrk,Cap Infrastr-Build Enh Wrk,YC102,3/26/2018,509645,39928,CAPITAL,SPECIALIST SURFACING LIMITED,100579
North East Lincolnshire Council,http://statistics.data.gov.uk/id/local-authority/00FC),Chief Executive,Director Of Economy & Growth,Cartergate Access Scheme,Cap Infrastr-Build Enh Wrk,Cap Infrastr-Build Enh Wrk,YC102,3/15/2018,507926,4176.77,CAPITAL,DEREK LEWIS LTD,108385
North East Lincolnshire Council,http://statistics.data.gov.uk/id/local-authority/00FC),Chief Executive,Director Of Economy & Growth,Gllep Junction Improvement,Cap Land/Build-Build Enh Wrk,Cap Land/Build-Build Enh Wrk,YA102,3/8/2018,506358,4299,CAPITAL,ADVANTAGE TSC & D LTD,109136
North East Lincolnshire Council,http://statistics.data.gov.uk/id/local-authority/00FC),Chief Executive,Director Of Economy & Growth,Gllep Junction Improvement,Cap Land/Build-Build Enh Wrk,Cap Land/Build-Build Enh Wrk,YA102,3/20/2018,508556,213739.26,CAPITAL,BT PAYMENT SERVICES LTD,103932
North East Lincolnshire Council,http://statistics.data.gov.uk/id/local-authority/00FC),Chief Executive,Director Of Economy & Growth,Gllep Junction Improvement,Cap Land/Build-Build Enh Wrk,Cap Land/Build-Build Enh Wrk,YA102,3/26/2018,509642,265,CAPITAL,ENGIE SERVICES LTD,133267
North East Lincolnshire Council,http://statistics.data.gov.uk/id/local-authority/00FC),Chief Executive,Director Of Economy & Growth,Gllep Junction Improvement,Cap Land/Build-Build Enh Wrk,Cap Land/Build-Build Enh Wrk,YA102,3/5/2018,505648,18000,CAPITAL,ENGIE SERVICES LTD,133267
North East Lincolnshire Council,http://statistics.data.gov.uk/id/local-authority/00FC),Chief Executive,Director Of Economy & Growth,Victoria St Refresh,Cap Infrastr-Build Enh Wrk,Cap Infrastr-Build Enh Wrk,YC102,3/29/2018,510252,861.79,CAPITAL,SPECIALIST SURFACING LIMITED,100579
North East Lincolnshire Council,http://statistics.data.gov.uk/id/local-authority/00FC),Chief Executive,Director Of Economy & Growth,Victoria St Refresh,Cap Infrastr-Build Enh Wrk,Cap Infrastr-Build Enh Wrk,YC102,3/5/2018,504551,7339.4,CAPITAL,P H CONSTRUCTION SERVICES LTD,102107
North East Lincolnshire Council,http://statistics.data.gov.uk/id/local-authority/00FC),Chief Executive,Director Of Economy & Growth,Victoria St Refresh,Cap Infrastr-Build Enh Wrk,Cap Infrastr-Build Enh Wrk,YC102,3/15/2018,507604,1470,CAPITAL,P H CONSTRUCTION SERVICES LTD,102107
North East Lincolnshire Council,http://statistics.data.gov.uk/id/local-authority/00FC),Chief Executive,Director Of Economy & Growth,Car Pk Ticket Machine Upgrade,Cap Land/Build-Build Enh Wrk,Cap Land/Build-Build Enh Wrk,YA102,3/19/2018,508142,660,CAPITAL,PARKEON LTD,134124
North East Lincolnshire Council,http://statistics.data.gov.uk/id/local-authority/00FC),Chief Executive,Director Of Economy & Growth,Car Pk Ticket Machine Upgrade,Cap Land/Build-Build Enh Wrk,Cap Land/Build-Build Enh Wrk,YA102,3/5/2018,505640,4000,CAPITAL,ENGIE SERVICES LTD,133267
North East Lincolnshire Council,http://statistics.data.gov.uk/id/local-authority/00FC),Chief Executive,Director Of Economy & Growth,Shiip Scheme,Cap Infrastr-Prof Fees,Cap Infrastr-Prof Fees,YC103,3/13/2018,507810,1256,CAPITAL,ANGLIAN WATER SERVICES LIMITED,125923
North East Lincolnshire Council,http://statistics.data.gov.uk/id/local-authority/00FC),Chief Executive,Director Of Economy & Growth,Shiip Scheme,Cap Infrastr-Prof Fees,Cap Infrastr-Prof Fees,YC103,3/15/2018,507897,2577.5,CAPITAL,BEVAN BRITTAN LLP,131317
North East Lincolnshire Council,http://statistics.data.gov.uk/id/local-authority/00FC),Chief Executive,Director Of Economy & Growth,Shiip Scheme,Cap Infrastr-Prof Fees,Cap Infrastr-Prof Fees,YC103,3/15/2018,507899,2664.9,CAPITAL,BEVAN BRITTAN LLP,131317
North East Lincolnshire Council,http://statistics.data.gov.uk/id/local-authority/00FC),Chief Executive,Director Of Economy & Growth,Shiip Scheme,Cap Infrastr-Prof Fees,Cap Infrastr-Prof Fees,YC103,3/15/2018,507909,512,CAPITAL,BEVAN BRITTAN LLP,131317
North East Lincolnshire Council,http://statistics.data.gov.uk/id/local-authority/00FC),Chief Executive,Director Of Economy & Growth,Shiip Scheme,Cap Infrastr-Prof Fees,Cap Infrastr-Prof Fees,YC103,3/15/2018,507903,540.3,CAPITAL,BEVAN BRITTAN LLP,131317
North East Lincolnshire Council,http://statistics.data.gov.uk/id/local-authority/00FC),Chief Executive,Director Of Economy & Growth,Shiip Scheme,Cap Infrastr-Prof Fees,Cap Infrastr-Prof Fees,YC103,3/20/2018,507900,1177.1,CAPITAL,BEVAN BRITTAN LLP,131317
North East Lincolnshire Council,http://statistics.data.gov.uk/id/local-authority/00FC),Chief Executive,Director Of Economy & Growth,Shiip Scheme,Cap Infrastr-Prof Fees,Cap Infrastr-Prof Fees,YC103,3/20/2018,507902,3228.88,CAPITAL,BEVAN BRITTAN LLP,131317
North East Lincolnshire Council,http://statistics.data.gov.uk/id/local-authority/00FC),Chief Executive,Director Of Economy & Growth,Shiip Scheme,Cap Infrastr-Prof Fees,Cap Infrastr-Prof Fees,YC103,3/6/2018,506003,7450,CAPITAL,ENGIE SERVICES LTD,133267
North East Lincolnshire Council,http://statistics.data.gov.uk/id/local-authority/00FC),Chief Executive,Director Of Economy & Growth,Shiip Scheme,Cap Infrastr-Prof Fees,Cap Infrastr-Prof Fees,YC103,3/8/2018,506348,2395.5,CAPITAL,SCARBOROUGH NIXON ASSOCIATES LTD,118766
North East Lincolnshire Council,http://statistics.data.gov.uk/id/local-authority/00FC),Chief Executive,Director Of Economy & Growth,Shiip Scheme,Cap Infrastr-Prof Fees,Cap Infrastr-Prof Fees,YC103,3/13/2018,507560,1590,CAPITAL,AVIAN ECOLOGY LTD,138319
North East Lincolnshire Council,http://statistics.data.gov.uk/id/local-authority/00FC),Chief Executive,Director Of Economy & Growth,Shiip Scheme,Cap Infrastr-Prof Fees,Cap Infrastr-Prof Fees,YC103,3/15/2018,507461,715.16,CAPITAL,BEVAN BRITTAN LLP,131317
North East Lincolnshire Council,http://statistics.data.gov.uk/id/local-authority/00FC),Chief Executive,Director Of Economy & Growth,Shiip Scheme,Cap Infrastr-Prof Fees,Cap Infrastr-Prof Fees,YC103,3/15/2018,507572,4491.08,CAPITAL,BEVAN BRITTAN LLP,131317
North East Lincolnshire Council,http://statistics.data.gov.uk/id/local-authority/00FC),Chief Executive,Director Of Economy & Growth,Catch Offshore,Cap Infrastr-Prof Fees,Cap Infrastr-Prof Fees,YC103,3/29/2018,511223,800,CAPITAL,ENGIE SERVICES LTD,133267
North East Lincolnshire Council,http://statistics.data.gov.uk/id/local-authority/00FC),Chief Executive,Director Of Economy & Growth,Catch Offshore,Cap Infrastr-Build Enh Wrk,Cap Infrastr-Build Enh Wrk,YC102,3/5/2018,505674,44719.57,CAPITAL,WRIGHT CIVIL ENGINEERING LTD,100624
North East Lincolnshire Council,http://statistics.data.gov.uk/id/local-authority/00FC),Chief Executive,Director Of Economy & Growth,Conv Rd Apartment Block,Cap Land/Build-Prof Fees,Cap Land/Build-Prof Fees,YA103,3/26/2018,509640,1250,CAPITAL,ENGIE SERVICES LTD,133267
North East Lincolnshire Council,http://statistics.data.gov.uk/id/local-authority/00FC),Chief Executive,Director Of Economy & Growth,Conv Rd Apartment Block,Cap Land/Build-Prof Fees,Cap Land/Build-Prof Fees,YA103,3/26/2018,509800,3250,CAPITAL,ENGIE SERVICES LTD,133267
North East Lincolnshire Council,http://statistics.data.gov.uk/id/local-authority/00FC),Chief Executive,Director Of Economy & Growth,Immingham Lock Floor Def Gates,Cap Land/Build-Build Enh Wrk,Cap Land/Build-Build Enh Wrk,YA102,3/20/2018,508676,1800000,CAPITAL,ASSOCIATED BRITISH PORTS,100834
North East Lincolnshire Council,http://statistics.data.gov.uk/id/local-authority/00FC),Chief Executive,Director Of Economy & Growth,Unlocking The Potential,Cap Infrastr-Build Enh Wrk,Cap Infrastr-Build Enh Wrk,YC102,3/29/2018,510910,3404,CAPITAL,ENGIE SERVICES LTD,133267
North East Lincolnshire Council,http://statistics.data.gov.uk/id/local-authority/00FC),Chief Executive,Director Of Economy & Growth,Unlocking The Potential,Cap Infrastr-Prof Fees,Cap Infrastr-Prof Fees,YC103,3/20/2018,508528,5000,CAPITAL,GRIMSBY MINSTER,106153
North East Lincolnshire Council,http://statistics.data.gov.uk/id/local-authority/00FC),Chief Executive,Director Of Economy & Growth,Unlocking The Potential,Cap Infrastr-Prof Fees,Cap Infrastr-Prof Fees,YC103,3/8/2018,506706,22500,CAPITAL,ENGIE SERVICES LTD,133267
North East Lincolnshire Council,http://statistics.data.gov.uk/id/local-authority/00FC),Chief Executive,Director Of Economy & Growth,Scartho Road Hosp Junc Imp,Cap Infrastr-Build Enh Wrk,Cap Infrastr-Build Enh Wrk,YC102,3/5/2018,505680,3000,CAPITAL,ENGIE SERVICES LTD,133267
North East Lincolnshire Council,http://statistics.data.gov.uk/id/local-authority/00FC),Chief Executive,Director Of Economy & Growth,Coastal Communities Fund,Cap Infrastr-Build Enh Wrk,Cap Infrastr-Build Enh Wrk,YC102,3/8/2018,506760,40000,CAPITAL,ENGIE SERVICES LTD,133267
North East Lincolnshire Council,http://statistics.data.gov.uk/id/local-authority/00FC),Chief Executive,Ad Environment,Safer Communities P/Ship,Miscellaneous Expenses,Hospitality,LL112,3/22/2018,509568,269.25,REVENUE,GRIMSBY AUDITORIUM,128160
North East Lincolnshire Council,http://statistics.data.gov.uk/id/local-authority/00FC),Chief Executive,Ad Environment,Safer Communities P/Ship,Voluntary Associations,Third Pp - Third Sector,PF101,3/22/2018,509129,15000,REVENUE,EMPOWER EMPLOYABILITY MENTORING PROGRAMME,118831
North East Lincolnshire Council,http://statistics.data.gov.uk/id/local-authority/00FC),Chief Executive,Ad Environment,Grounds & Bereavement Services,Grounds Maintenance Costs,Grounds Maintenance,GJ101,3/12/2018,506397,803,REVENUE,E BACON & CO LTD,104090
North East Lincolnshire Council,http://statistics.data.gov.uk/id/local-authority/00FC),Chief Executive,Ad Environment,Grounds & Bereavement Services,Equip / Furniture / Materials,Equipment - Maintenance,LA104,3/29/2018,510533,1095,REVENUE,SOCOTEC UK LIMITED,102685
North East Lincolnshire Council,http://statistics.data.gov.uk/id/local-authority/00FC),Chief Executive,Ad Environment,Grounds & Bereavement Services,Equip / Furniture / Materials,Equipment - Purchase,LA101,3/29/2018,510858,276,REVENUE,VIRGIN MEDIA,107612
North East Lincolnshire Council,http://statistics.data.gov.uk/id/local-authority/00FC),Chief Executive,Ad Environment,Grounds & Bereavement Services,Equip / Furniture / Materials,Equipment - Purchase,LA101,3/29/2018,510440,549,REVENUE,S P DAVIS MEMORIALS LIMITED,130000
North East Lincolnshire Council,http://statistics.data.gov.uk/id/local-authority/00FC),Chief Executive,Ad Environment,Grounds & Bereavement Services,Equip / Furniture / Materials,Equipment - Purchase,LA101,3/8/2018,505906,606.5,REVENUE,THE COLUMBARIA COMPANY,100621
North East Lincolnshire Council,http://statistics.data.gov.uk/id/local-authority/00FC),Chief Executive,Ad Environment,Grounds & Bereavement Services,Equip / Furniture / Materials,Equipment - Purchase,LA101,3/5/2018,505681,269.7,REVENUE,BRIDGE INSURANCE BROKERS LTD,128411
North East Lincolnshire Council,http://statistics.data.gov.uk/id/local-authority/00FC),Chief Executive,Ad Environment,Grounds & Bereavement Services,Equip / Furniture / Materials,Equipment - Purchase,LA101,3/15/2018,508060,267.8,REVENUE,EDEN SPRINGS UK LTD - COFFEE (CEMS/CREMS),101556
North East Lincolnshire Council,http://statistics.data.gov.uk/id/local-authority/00FC),Chief Executive,Ad Environment,Grounds & Bereavement Services,Equip / Furniture / Materials,Equipment - Purchase,LA101,3/15/2018,508221,448,REVENUE,F G MARSHALL LTD,100549
North East Lincolnshire Council,http://statistics.data.gov.uk/id/local-authority/00FC),Chief Executive,Ad Environment,Grounds & Bereavement Services,Rep Alterations Maint Building,Buildings - Repairs And Maint,GA102,3/26/2018,509624,6000,REVENUE,BSB SERVICES,102305
North East Lincolnshire Council,http://statistics.data.gov.uk/id/local-authority/00FC),Chief Executive,Ad Environment,Grounds & Bereavement Services,Rep Alterations Maint Building,Buildings - Repairs And Maint,GA102,3/29/2018,511001,1050,REVENUE,ENGIE SERVICES LTD,133267
North East Lincolnshire Council,http://statistics.data.gov.uk/id/local-authority/00FC),Chief Executive,Ad Environment,Grounds & Bereavement Services,Rep Alterations Maint Building,Buildings - Repairs And Maint,GA102,3/27/2018,510139,495,REVENUE,BSB SERVICES,102305
North East Lincolnshire Council,http://statistics.data.gov.uk/id/local-authority/00FC),Chief Executive,Ad Environment,Grounds & Bereavement Services,Rep Alterations Maint Building,Buildings - Repairs And Maint,GA102,3/29/2018,510132,250,REVENUE,BSB SERVICES,102305
North East Lincolnshire Council,http://statistics.data.gov.uk/id/local-authority/00FC),Chief Executive,Ad Environment,Grounds & Bereavement Services,Rep Alterations Maint Building,Buildings - Repairs And Maint,GA102,3/29/2018,510132,340,REVENUE,BSB SERVICES,102305
North East Lincolnshire Council,http://statistics.data.gov.uk/id/local-authority/00FC),Chief Executive,Ad Environment,Grounds & Bereavement Services,Grounds Maintenance Costs,Grounds Maintenance,GJ101,3/29/2018,510296,1200,REVENUE,J MELTON TREE SERVICES LTD,101809
North East Lincolnshire Council,http://statistics.data.gov.uk/id/local-authority/00FC),Chief Executive,Ad Environment,Grounds & Bereavement Services,Direct Transport Costs,Vehicles - Running Costs,JA104,3/15/2018,507925,463.75,REVENUE,ALLSTAR BUSINESS SOLUTIONS LTD,108278
North East Lincolnshire Council,http://statistics.data.gov.uk/id/local-authority/00FC),Chief Executive,Ad Environment,Grounds & Bereavement Services,Equip / Furniture / Materials,Equipment - Purchase,LA101,3/26/2018,510039,2000,REVENUE,WOOD PARK COMMUNITY GROUP,139590
North East Lincolnshire Council,http://statistics.data.gov.uk/id/local-authority/00FC),Chief Executive,Ad Environment,Grounds & Bereavement Services,Equip / Furniture / Materials,Equipment - Purchase,LA101,3/22/2018,509588,26000,REVENUE,HAGS - SMP LTD,120107
North East Lincolnshire Council,http://statistics.data.gov.uk/id/local-authority/00FC),Chief Executive,Ad Environment,Grounds & Bereavement Services,Equip / Furniture / Materials,Equipment - Purchase,LA101,3/12/2018,505188,550,REVENUE,AHS LTD,105516
North East Lincolnshire Council,http://statistics.data.gov.uk/id/local-authority/00FC),Chief Executive,Ad Environment,Grounds & Bereavement Services,Equip / Furniture / Materials,Equipment - Purchase,LA101,3/12/2018,505188,928,REVENUE,AHS LTD,105516
North East Lincolnshire Council,http://statistics.data.gov.uk/id/local-authority/00FC),Chief Executive,Ad Environment,Grounds & Bereavement Services,Equip / Furniture / Materials,Equipment - Purchase,LA101,3/12/2018,505188,536.4,REVENUE,AHS LTD,105516
North East Lincolnshire Council,http://statistics.data.gov.uk/id/local-authority/00FC),Chief Executive,Ad Environment,Grounds & Bereavement Services,Equip / Furniture / Materials,Equipment - Purchase,LA101,3/8/2018,504589,345,REVENUE,F G ADAMSON & SON,100752
North East Lincolnshire Council,http://statistics.data.gov.uk/id/local-authority/00FC),Chief Executive,Ad Environment,Grounds & Bereavement Services,Equip / Furniture / Materials,Equipment - Purchase,LA101,3/8/2018,505399,5112,REVENUE,TUDOR (UK) LTD T/A TUDOR ENVIRONMENT,138362
North East Lincolnshire Council,http://statistics.data.gov.uk/id/local-authority/00FC),Chief Executive,Ad Environment,Grounds & Bereavement Services,Equip / Furniture / Materials,Equipment - Purchase,LA101,3/27/2018,509652,987.75,REVENUE,SMI,134794
North East Lincolnshire Council,http://statistics.data.gov.uk/id/local-authority/00FC),Chief Executive,Ad Environment,Grounds & Bereavement Services,Equip / Furniture / Materials,Equipment - Purchase,LA101,3/8/2018,506020,1120.92,REVENUE,LYRECO UK LIMITED,101120
North East Lincolnshire Council,http://statistics.data.gov.uk/id/local-authority/00FC),Chief Executive,Ad Environment,Grounds & Bereavement Services,Clothes Uniforms And Laundry,Protective Clothing,LC101,3/12/2018,505925,510.99,REVENUE,SMI,134794
North East Lincolnshire Council,http://statistics.data.gov.uk/id/local-authority/00FC),Chief Executive,Ad Environment,Grounds & Bereavement Services,Communications And Computing,Telephones,LF112,3/26/2018,509667,324,REVENUE,RADPHONE LTD,101671
North East Lincolnshire Council,http://statistics.data.gov.uk/id/local-authority/00FC),Chief Executive,Ad Environment,Grounds & Bereavement Services,Private Contractors,Third Party Prov - Private,PH101,3/26/2018,510016,2231.25,REVENUE,GRIMSBY OPERATIONS LTD,101116
North East Lincolnshire Council,http://statistics.data.gov.uk/id/local-authority/00FC),Chief Executive,Ad Environment,Grounds & Bereavement Services,Private Contractors,Third Party Prov - Private,PH101,3/29/2018,510595,949.8,REVENUE,J MCCANN & CO LTD,100841
North East Lincolnshire Council,http://statistics.data.gov.uk/id/local-authority/00FC),Chief Executive,Ad Environment,Grounds & Bereavement Services,Private Contractors,Third Party Prov - Private,PH101,3/29/2018,510273,360,REVENUE,ENGIE SERVICES LTD,133267
North East Lincolnshire Council,http://statistics.data.gov.uk/id/local-authority/00FC),Chief Executive,Ad Environment,Grounds & Bereavement Services,Private Contractors,Third Party Prov - Private,PH101,3/29/2018,510594,2360,REVENUE,ONEWAY TM LIMITED,128602
North East Lincolnshire Council,http://statistics.data.gov.uk/id/local-authority/00FC),Chief Executive,Ad Environment,Grounds & Bereavement Services,Rep Alterations Maint Building,Buildings - Repairs And Maint,GA102,3/8/2018,504608,1500,REVENUE,BCJ CONSTRUCTION LTD,112224
North East Lincolnshire Council,http://statistics.data.gov.uk/id/local-authority/00FC),Chief Executive,Ad Environment,Grounds & Bereavement Services,Rep Alterations Maint Building,Buildings - Repairs And Maint,GA102,3/8/2018,504609,2958.95,REVENUE,BCJ CONSTRUCTION LTD,112224
North East Lincolnshire Council,http://statistics.data.gov.uk/id/local-authority/00FC),Chief Executive,Ad Environment,Grounds & Bereavement Services,Rep Alterations Maint Building,Buildings - Repairs And Maint,GA102,3/29/2018,510133,250,REVENUE,BSB SERVICES,102305
North East Lincolnshire Council,http://statistics.data.gov.uk/id/local-authority/00FC),Chief Executive,Ad Environment,Grounds & Bereavement Services,Rep Alterations Maint Building,Buildings - Repairs And Maint,GA102,3/12/2018,505172,1387.5,REVENUE,BCJ CONSTRUCTION LTD,112224
North East Lincolnshire Council,http://statistics.data.gov.uk/id/local-authority/00FC),Chief Executive,Ad Environment,Grounds & Bereavement Services,Rep Alterations Maint Building,Buildings - Repairs And Maint,GA102,3/12/2018,504983,663.89,REVENUE,BCJ CONSTRUCTION LTD,112224
North East Lincolnshire Council,http://statistics.data.gov.uk/id/local-authority/00FC),Chief Executive,Ad Environment,Garage & Fleet Strategy,Direct Transport Costs,Vehicles - Repairs And Maint,JA105,3/20/2018,508511,2752.02,REVENUE,FLEET FACTORS LTD,100886
North East Lincolnshire Council,http://statistics.data.gov.uk/id/local-authority/00FC),Chief Executive,Ad Environment,Garage & Fleet Strategy,Direct Transport Costs,Vehicles - Repairs And Maint,JA105,3/19/2018,508318,3158.58,REVENUE,FLEET FACTORS LTD,100886
North East Lincolnshire Council,http://statistics.data.gov.uk/id/local-authority/00FC),Chief Executive,Ad Environment,Garage & Fleet Strategy,Direct Transport Costs,Vehicles - Repairs And Maint,JA105,3/15/2018,508184,734.66,REVENUE,FLEET FACTORS LTD,100886
North East Lincolnshire Council,http://statistics.data.gov.uk/id/local-authority/00FC),Chief Executive,Ad Environment,Garage & Fleet Strategy,Direct Transport Costs,Vehicles - Repairs And Maint,JA105,3/8/2018,506743,430,REVENUE,B A BUSH & SON LTD,101828
North East Lincolnshire Council,http://statistics.data.gov.uk/id/local-authority/00FC),Chief Executive,Ad Environment,Garage & Fleet Strategy,Direct Transport Costs,Vehicles - Repairs And Maint,JA105,3/8/2018,506744,1290,REVENUE,B A BUSH & SON LTD,101828
North East Lincolnshire Council,http://statistics.data.gov.uk/id/local-authority/00FC),Chief Executive,Ad Environment,Garage & Fleet Strategy,Direct Transport Costs,Vehicles - Repairs And Maint,JA105,3/8/2018,506756,595.32,REVENUE,B A BUSH & SON LTD,101828
North East Lincolnshire Council,http://statistics.data.gov.uk/id/local-authority/00FC),Chief Executive,Ad Environment,Garage & Fleet Strategy,Direct Transport Costs,Vehicles - Repairs And Maint,JA105,3/8/2018,506741,2886.75,REVENUE,FLEET FACTORS LTD,100886
North East Lincolnshire Council,http://statistics.data.gov.uk/id/local-authority/00FC),Chief Executive,Ad Environment,Garage & Fleet Strategy,Direct Transport Costs,Vehicles - Repairs And Maint,JA105,3/8/2018,506754,605.46,REVENUE,FLEET FACTORS LTD,100886
North East Lincolnshire Council,http://statistics.data.gov.uk/id/local-authority/00FC),Chief Executive,Ad Environment,Garage & Fleet Strategy,Direct Transport Costs,Vehicles - Repairs And Maint,JA105,3/8/2018,506755,2662.9,REVENUE,FLEET FACTORS LTD,100886
North East Lincolnshire Council,http://statistics.data.gov.uk/id/local-authority/00FC),Chief Executive,Ad Environment,Garage & Fleet Strategy,Direct Transport Costs,Vehicles - Repairs And Maint,JA105,3/19/2018,508304,289.57,REVENUE,B A BUSH & SON LTD,101828
North East Lincolnshire Council,http://statistics.data.gov.uk/id/local-authority/00FC),Chief Executive,Ad Environment,Garage & Fleet Strategy,Direct Transport Costs,Vehicles - Repairs And Maint,JA105,3/19/2018,508311,430,REVENUE,B A BUSH & SON LTD,101828
North East Lincolnshire Council,http://statistics.data.gov.uk/id/local-authority/00FC),Chief Executive,Ad Environment,Garage & Fleet Strategy,Direct Transport Costs,Vehicles - Repairs And Maint,JA105,3/19/2018,508321,430,REVENUE,B A BUSH & SON LTD,101828
North East Lincolnshire Council,http://statistics.data.gov.uk/id/local-authority/00FC),Chief Executive,Ad Environment,Garage & Fleet Strategy,Direct Transport Costs,Vehicles - Repairs And Maint,JA105,3/22/2018,509114,430,REVENUE,B A BUSH & SON LTD,101828
North East Lincolnshire Council,http://statistics.data.gov.uk/id/local-authority/00FC),Chief Executive,Ad Environment,Garage & Fleet Strategy,Direct Transport Costs,Vehicles - Repairs And Maint,JA105,3/26/2018,509264,250,REVENUE,B A BUSH & SON LTD,101828
North East Lincolnshire Council,http://statistics.data.gov.uk/id/local-authority/00FC),Chief Executive,Ad Environment,Garage & Fleet Strategy,Direct Transport Costs,Vehicles - Repairs And Maint,JA105,3/26/2018,509267,260.61,REVENUE,B A BUSH & SON LTD,101828
North East Lincolnshire Council,http://statistics.data.gov.uk/id/local-authority/00FC),Chief Executive,Ad Environment,Garage & Fleet Strategy,Direct Transport Costs,Vehicles - Repairs And Maint,JA105,3/29/2018,510636,3671.19,REVENUE,FLEET FACTORS LTD,100886
North East Lincolnshire Council,http://statistics.data.gov.uk/id/local-authority/00FC),Chief Executive,Ad Environment,Garage & Fleet Strategy,Direct Transport Costs,Vehicles - Repairs And Maint,JA105,3/29/2018,510637,2763.59,REVENUE,FLEET FACTORS LTD,100886
North East Lincolnshire Council,http://statistics.data.gov.uk/id/local-authority/00FC),Chief Executive,Ad Environment,Garage & Fleet Strategy,Direct Transport Costs,Vehicles - Repairs And Maint,JA105,3/29/2018,510834,581,REVENUE,CARRERA ENGINEERING SERVICES LTD,102267
North East Lincolnshire Council,http://statistics.data.gov.uk/id/local-authority/00FC),Chief Executive,Ad Environment,Garage & Fleet Strategy,Equip / Furniture / Materials,Equipment - Maintenance,LA104,3/29/2018,510828,460,REVENUE,SMART GARAGE EQUIPMENT SERVICES LTD,103640
North East Lincolnshire Council,http://statistics.data.gov.uk/id/local-authority/00FC),Chief Executive,Ad Environment,Garage & Fleet Strategy,Equip / Furniture / Materials,Equipment - Maintenance,LA104,3/29/2018,510829,795,REVENUE,SMART GARAGE EQUIPMENT SERVICES LTD,103640
North East Lincolnshire Council,http://statistics.data.gov.uk/id/local-authority/00FC),Chief Executive,Ad Environment,Garage & Fleet Strategy,Clothes Uniforms And Laundry,Laundry,LC103,3/20/2018,508526,390.55,REVENUE,JOHNSONS APPARELMASTER,100810
North East Lincolnshire Council,http://statistics.data.gov.uk/id/local-authority/00FC),Chief Executive,Ad Environment,Garage & Fleet Strategy,Clothes Uniforms And Laundry,Protective Clothing,LC101,3/20/2018,508269,441.61,REVENUE,SMI,134794
North East Lincolnshire Council,http://statistics.data.gov.uk/id/local-authority/00FC),Chief Executive,Ad Environment,Street Cleansing,Clothes Uniforms And Laundry,Protective Clothing,LC101,3/8/2018,505672,897.36,REVENUE,TAYCARE MEDICAL LIMITED,137104
North East Lincolnshire Council,http://statistics.data.gov.uk/id/local-authority/00FC),Chief Executive,Ad Environment,Street Cleansing,Communications And Computing,Computer H/Ware - Purchases,LF105,3/27/2018,508117,255,REVENUE,INSIGHT DIRECT (UK) LTD,101011
North East Lincolnshire Council,http://statistics.data.gov.uk/id/local-authority/00FC),Chief Executive,Ad Environment,Street Cleansing,Communications And Computing,Computer H/Ware - Purchases,LF105,3/15/2018,508119,433.27,REVENUE,INSIGHT DIRECT (UK) LTD,101011
North East Lincolnshire Council,http://statistics.data.gov.uk/id/local-authority/00FC),Chief Executive,Ad Environment,Street Cleansing,Private Contractors,Third Party Prov - Private,PH101,3/8/2018,504032,643.08,REVENUE,HEALTHCARE ENVIRONMENTAL SERVICES LTD,137118
North East Lincolnshire Council,http://statistics.data.gov.uk/id/local-authority/00FC),Chief Executive,Ad Environment,Street Cleansing,Private Contractors,Third Party Prov - Private,PH101,3/20/2018,508525,424.08,REVENUE,HEALTHCARE ENVIRONMENTAL SERVICES LTD,137118
North East Lincolnshire Council,http://statistics.data.gov.uk/id/local-authority/00FC),Chief Executive,Ad Environment,Waste Services,Direct Transport Costs,Vehicles - Repairs And Maint,JA105,3/29/2018,509653,545.2,REVENUE,SIGN OF THE TIMES,100575
North East Lincolnshire Council,http://statistics.data.gov.uk/id/local-authority/00FC),Chief Executive,Ad Environment,Waste Services,Direct Transport Costs,Vehicles - Repairs And Maint,JA105,3/29/2018,509653,297.6,REVENUE,SIGN OF THE TIMES,100575
North East Lincolnshire Council,http://statistics.data.gov.uk/id/local-authority/00FC),Chief Executive,Ad Environment,Waste Services,Direct Transport Costs,Vehicles - Repairs And Maint,JA105,3/29/2018,509653,1088,REVENUE,SIGN OF THE TIMES,100575
North East Lincolnshire Council,http://statistics.data.gov.uk/id/local-authority/00FC),Chief Executive,Ad Environment,Waste Services,Direct Transport Costs,Vehicles - Repairs And Maint,JA105,3/29/2018,509653,380.8,REVENUE,SIGN OF THE TIMES,100575
North East Lincolnshire Council,http://statistics.data.gov.uk/id/local-authority/00FC),Chief Executive,Ad Environment,Waste Services,Direct Transport Costs,Vehicles - Repairs And Maint,JA105,3/29/2018,509653,550,REVENUE,SIGN OF THE TIMES,100575
North East Lincolnshire Council,http://statistics.data.gov.uk/id/local-authority/00FC),Chief Executive,Ad Environment,Waste Services,Direct Transport Costs,Vehicles - Repairs And Maint,JA105,3/29/2018,509653,957,REVENUE,SIGN OF THE TIMES,100575
North East Lincolnshire Council,http://statistics.data.gov.uk/id/local-authority/00FC),Chief Executive,Ad Environment,Waste Services,Clothes Uniforms And Laundry,Protective Clothing,LC101,3/8/2018,504951,375.7,REVENUE,SMI,134794
North East Lincolnshire Council,http://statistics.data.gov.uk/id/local-authority/00FC),Chief Executive,Ad Environment,Waste Services,Clothes Uniforms And Laundry,Protective Clothing,LC101,3/8/2018,504302,529.6,REVENUE,SMI,134794
North East Lincolnshire Council,http://statistics.data.gov.uk/id/local-authority/00FC),Chief Executive,Ad Environment,Waste Services,Clothes Uniforms And Laundry,Protective Clothing,LC101,3/12/2018,505923,395.2,REVENUE,SMI,134794
North East Lincolnshire Council,http://statistics.data.gov.uk/id/local-authority/00FC),Chief Executive,Ad Environment,Waste Services,Private Contractors,Third Party Prov - Private,PH101,3/15/2018,506703,1280.2,REVENUE,STRAIGHT MANUFACTURING LTD,134185
North East Lincolnshire Council,http://statistics.data.gov.uk/id/local-authority/00FC),Chief Executive,Ad Environment,Waste Services,Private Contractors,Third Party Prov - Private,PH101,3/15/2018,506703,2609.2,REVENUE,STRAIGHT MANUFACTURING LTD,134185
North East Lincolnshire Council,http://statistics.data.gov.uk/id/local-authority/00FC),Chief Executive,Ad Environment,Waste Services,Private Contractors,Third Party Prov - Private,PH101,3/26/2018,509617,10110,REVENUE,MGB,101544
North East Lincolnshire Council,http://statistics.data.gov.uk/id/local-authority/00FC),Chief Executive,Ad Environment,Waste Services,Private Contractors,Third Party Prov - Private,PH101,3/22/2018,508611,10110,REVENUE,MGB,101544
North East Lincolnshire Council,http://statistics.data.gov.uk/id/local-authority/00FC),Chief Executive,Ad Environment,Waste Disposal And Strategy,Private Contractors,Contract Payments,PH105,3/19/2018,508594,REDACTED COMMERCIALLY SENSITIVE,REVENUE,NEWLINCS DEVELOPMENT LTD,101125
North East Lincolnshire Council,http://statistics.data.gov.uk/id/local-authority/00FC),Chief Executive,Ad Environment,Waste Disposal And Strategy,Private Contractors,Contract Payments Landfill Tax,PH106,3/19/2018,508594,REDACTED COMMERCIALLY SENSITIVE,REVENUE,NEWLINCS DEVELOPMENT LTD,101125
North East Lincolnshire Council,http://statistics.data.gov.uk/id/local-authority/00FC),Chief Executive,Ad Environment,Safer Communities - Nelc,Communications And Computing,Computer S/Ware - Purchases,LF101,3/27/2018,510186,429.3,REVENUE,PENTAGULL LIMITED,139611
North East Lincolnshire Council,http://statistics.data.gov.uk/id/local-authority/00FC),Chief Executive,Ad Environment,Safer Communities - Nelc,Miscellaneous Expenses,Other Supplies & Services,LL110,3/13/2018,507661,2162.4,REVENUE,COMPLETE OFFICE SOLUTIONS (UK) LTD,123664
North East Lincolnshire Council,http://statistics.data.gov.uk/id/local-authority/00FC),Chief Executive,Ad Environment,Community Protection,Private Contractors,Third Party Prov - Private,PH101,3/6/2018,506340,3397.2,REVENUE,SANGREAT KENNELS,103270
North East Lincolnshire Council,http://statistics.data.gov.uk/id/local-authority/00FC),Chief Executive,Ad Environment,Community Protection,Private Contractors,Third Party Prov - Private,PH101,3/26/2018,509616,255.25,REVENUE,OCVC LTD,132623
North East Lincolnshire Council,http://statistics.data.gov.uk/id/local-authority/00FC),Chief Executive,Ad Environment,Community Protection,Private Contractors,Third Party Prov - Private,PH101,3/22/2018,509309,294.5,REVENUE,KES BUILDING MAINTENANCE LIMITED,100786
North East Lincolnshire Council,http://statistics.data.gov.uk/id/local-authority/00FC),Chief Executive,Ad Environment,Community Protection,Other Agencies,Statutory Burials,PJ147,3/29/2018,510853,1322.5,REVENUE,LINCOLNSHIRE CO-OP FUNERAL SERVICES,130721
North East Lincolnshire Council,http://statistics.data.gov.uk/id/local-authority/00FC),Chief Executive,Ad Environment,Community Protection,Equip / Furniture / Materials,Equipment - Purchase,LA101,3/19/2018,508309,750,REVENUE,CHARTERED INSTITUTE OF ENVIRONMENTAL HEALTH,119802
North East Lincolnshire Council,http://statistics.data.gov.uk/id/local-authority/00FC),Chief Executive,Ad Environment,Community Protection,Miscellaneous Expenses,Environmental/Health Analysis,LL120,3/29/2018,510131,810,REVENUE,FERA SCIENCE LTD,131671
North East Lincolnshire Council,http://statistics.data.gov.uk/id/local-authority/00FC),Chief Executive,Ad Environment,Community Protection,Miscellaneous Expenses,Environmental/Health Analysis,LL120,3/29/2018,510130,810,REVENUE,FERA SCIENCE LTD,131671
North East Lincolnshire Council,http://statistics.data.gov.uk/id/local-authority/00FC),Chief Executive,Ad Environment,Community Protection,Miscellaneous Expenses,Environmental/Health Analysis,LL120,3/22/2018,509121,327.24,REVENUE,EUROFINS WATER HYGIENE TESTING UK LTD,139602
North East Lincolnshire Council,http://statistics.data.gov.uk/id/local-authority/00FC),Chief Executive,Ad Environment,Community Protection,Miscellaneous Expenses,Environmental/Health Analysis,LL120,3/22/2018,509302,357.26,REVENUE,ALS ENVIRONMENTAL LTD,138114
North East Lincolnshire Council,http://statistics.data.gov.uk/id/local-authority/00FC),Chief Executive,Ad Environment,Community Protection,Miscellaneous Expenses,Other Supplies & Services,LL110,3/19/2018,508271,6565.76,REVENUE,ARCADIS UK LTD,136258
North East Lincolnshire Council,http://statistics.data.gov.uk/id/local-authority/00FC),Chief Executive,Director Of Finance,Chief Finance Officer,Consultancy,Consultancy,PL101,3/1/2018,505115,1600,REVENUE,IAN GIRDLEY,137191
North East Lincolnshire Council,http://statistics.data.gov.uk/id/local-authority/00FC),Chief Executive,Director Of Finance,Chief Exec & Support,Miscellaneous Expenses,Hospitality,LL112,3/20/2018,508563,328.38,REVENUE,PEROS LTD,119430
North East Lincolnshire Council,http://statistics.data.gov.uk/id/local-authority/00FC),Chief Executive,Director Of Finance,Chief Exec & Support,Contributions To Provisions,Contributions - Communities,LK101,3/19/2018,508698,1000,REVENUE,PARK WARD ACTION GROUP,139597
North East Lincolnshire Council,http://statistics.data.gov.uk/id/local-authority/00FC),Chief Executive,Director Of Finance,Chief Exec & Support,Contributions To Provisions,Contributions - Communities,LK101,3/19/2018,508678,750,REVENUE,SUSSEX PAVILION COMMUNITY GROUP,126810
North East Lincolnshire Council,http://statistics.data.gov.uk/id/local-authority/00FC),Chief Executive,Director Of Finance,Chief Exec & Support,Contributions To Provisions,Contributions - Communities,LK101,3/26/2018,510280,10000,REVENUE,GRIMSBY ICE RINK,137898
North East Lincolnshire Council,http://statistics.data.gov.uk/id/local-authority/00FC),Chief Executive,Director Of Finance,Chief Exec & Support,Contributions To Provisions,Contributions - Third Sector,LK102,3/19/2018,508574,500,REVENUE,FRESHNEY FORWARD,139591
North East Lincolnshire Council,http://statistics.data.gov.uk/id/local-authority/00FC),Chief Executive,Director Of Finance,Chief Exec & Support,Contributions To Provisions,Contributions - Third Sector,LK102,3/19/2018,508573,300,REVENUE,WOOD PARK COMMUNITY GROUP,139590
North East Lincolnshire Council,http://statistics.data.gov.uk/id/local-authority/00FC),Chief Executive,Director Of Finance,Chief Exec & Support,Contributions To Provisions,Contributions - Third Sector,LK102,3/19/2018,508578,800,REVENUE,HAVERSTOE WARD FORUM,129463
North East Lincolnshire Council,http://statistics.data.gov.uk/id/local-authority/00FC),Chief Executive,Director Of Finance,Chief Exec & Support,Contributions To Provisions,Contributions - Third Sector,LK102,3/19/2018,508671,250,REVENUE,SCARTHO COMMUNITY GARDEN,133333
North East Lincolnshire Council,http://statistics.data.gov.uk/id/local-authority/00FC),Chief Executive,Director Of Finance,Chief Exec & Support,Contributions To Provisions,Contributions - Third Sector,LK102,3/19/2018,508677,300,REVENUE,FORESIGHT NEL LTD,102869
North East Lincolnshire Council,http://statistics.data.gov.uk/id/local-authority/00FC),Chief Executive,Director Of Finance,Chief Exec & Support,Contributions To Provisions,Contributions - Third Sector,LK102,3/19/2018,508566,500,REVENUE,CHELMSFORD AVENUE NEIGHBOURHOOD,121015
North East Lincolnshire Council,http://statistics.data.gov.uk/id/local-authority/00FC),Chief Executive,Director Of Finance,Chief Exec & Support,Contributions To Provisions,Contributions - Third Sector,LK102,3/26/2018,510268,250,REVENUE,THE GRANGE TOGETHER,111112
North East Lincolnshire Council,http://statistics.data.gov.uk/id/local-authority/00FC),Chief Executive,Director Of Finance,Chief Exec & Support,Contributions To Provisions,Contributions - Third Sector,LK102,3/19/2018,508577,632,REVENUE,ASHBY CUM FENBY PARISH COUNCIL,102017
North East Lincolnshire Council,http://statistics.data.gov.uk/id/local-authority/00FC),Chief Executive,Director Of Finance,Chief Exec & Support,Contributions To Provisions,Contributions - Third Sector,LK102,3/19/2018,508669,500,REVENUE,BARNOLDBY LE BECK PARISH COUNCIL,100656
North East Lincolnshire Council,http://statistics.data.gov.uk/id/local-authority/00FC),Chief Executive,Director Of Finance,Chief Exec & Support,Contributions To Provisions,Contributions - Third Sector,LK102,3/8/2018,506031,250,REVENUE,H R HUDSON LTD,139480
North East Lincolnshire Council,http://statistics.data.gov.uk/id/local-authority/00FC),Chief Executive,Director Of Finance,Chief Exec & Support,Contributions To Provisions,Contributions - Third Sector,LK102,3/19/2018,508686,250,REVENUE,NATIONAL RHEUMATOID ARTHRITIS SOCIETY,139596
North East Lincolnshire Council,http://statistics.data.gov.uk/id/local-authority/00FC),Chief Executive,Director Of Finance,Cfs Assets & Pc Programme,Rep Alterations Maint Building,Buildings - Repairs And Maint,GA102,3/15/2018,507946,517.92,REVENUE,ENGIE SERVICES LTD,133267
North East Lincolnshire Council,http://statistics.data.gov.uk/id/local-authority/00FC),Chief Executive,Director Of Finance,Cfs Assets & Pc Programme,Rep Alterations Maint Building,Buildings - Repairs And Maint,GA102,3/22/2018,508609,297.86,REVENUE,KES BUILDING MAINTENANCE LIMITED,100786
North East Lincolnshire Council,http://statistics.data.gov.uk/id/local-authority/00FC),Chief Executive,Director Of Finance,Cfs Assets & Pc Programme,Rep Alterations Maint Building,Buildings - Repairs And Maint,GA102,3/29/2018,510051,250,REVENUE,ENGIE SERVICES LTD,133267
North East Lincolnshire Council,http://statistics.data.gov.uk/id/local-authority/00FC),Chief Executive,Director Of Finance,Cfs Assets & Pc Programme,Rep Alterations Maint Building,Buildings - Repairs And Maint,GA102,3/29/2018,510051,350,REVENUE,ENGIE SERVICES LTD,133267
North East Lincolnshire Council,http://statistics.data.gov.uk/id/local-authority/00FC),Chief Executive,Director Of Finance,Cfs Assets & Pc Programme,Rep Alterations Maint Building,Buildings - Repairs And Maint,GA102,3/29/2018,510051,300,REVENUE,ENGIE SERVICES LTD,133267
North East Lincolnshire Council,http://statistics.data.gov.uk/id/local-authority/00FC),Chief Executive,Director Of Finance,Cfs Assets & Pc Programme,Print Stationery / Gen Off Exp,Advertising,LD104,3/15/2018,507875,282.54,REVENUE,LOCAL WORLD LIMITED,118774
North East Lincolnshire Council,http://statistics.data.gov.uk/id/local-authority/00FC),Chief Executive,Director Of Finance,Facilities Management,Rep Alterations Maint Building,Buildings - Repairs And Maint,GA102,3/26/2018,509789,654.38,REVENUE,ENGIE SERVICES LTD,133267
North East Lincolnshire Council,http://statistics.data.gov.uk/id/local-authority/00FC),Chief Executive,Director Of Finance,Facilities Management,Rep Alterations Maint Building,Buildings - Repairs And Maint,GA102,3/26/2018,509789,299.14,REVENUE,ENGIE SERVICES LTD,133267
North East Lincolnshire Council,http://statistics.data.gov.uk/id/local-authority/00FC),Chief Executive,Director Of Finance,Facilities Management,Rep Alterations Maint Building,Buildings - Repairs And Maint,GA102,3/26/2018,509789,920,REVENUE,ENGIE SERVICES LTD,133267
North East Lincolnshire Council,http://statistics.data.gov.uk/id/local-authority/00FC),Chief Executive,Director Of Finance,Facilities Management,Rep Alterations Maint Building,Buildings - Repairs And Maint,GA102,3/26/2018,509789,720,REVENUE,ENGIE SERVICES LTD,133267
North East Lincolnshire Council,http://statistics.data.gov.uk/id/local-authority/00FC),Chief Executive,Director Of Finance,Facilities Management,Rep Alterations Maint Building,Buildings - Repairs And Maint,GA102,3/26/2018,509789,380,REVENUE,ENGIE SERVICES LTD,133267
North East Lincolnshire Council,http://statistics.data.gov.uk/id/local-authority/00FC),Chief Executive,Director Of Finance,Facilities Management,Rep Alterations Maint Building,Buildings - Repairs And Maint,GA102,3/6/2018,506415,336.07,REVENUE,ENGIE SERVICES LTD,133267
North East Lincolnshire Council,http://statistics.data.gov.uk/id/local-authority/00FC),Chief Executive,Director Of Finance,Facilities Management,Rep Alterations Maint Building,Buildings - Repairs And Maint,GA102,3/6/2018,506415,738,REVENUE,ENGIE SERVICES LTD,133267
North East Lincolnshire Council,http://statistics.data.gov.uk/id/local-authority/00FC),Chief Executive,Director Of Finance,Facilities Management,Rep Alterations Maint Building,Buildings - Repairs And Maint,GA102,3/15/2018,507936,409.73,REVENUE,ENGIE SERVICES LTD,133267
North East Lincolnshire Council,http://statistics.data.gov.uk/id/local-authority/00FC),Chief Executive,Director Of Finance,Facilities Management,Rep Alterations Maint Building,Buildings - Repairs And Maint,GA102,3/6/2018,506415,880,REVENUE,ENGIE SERVICES LTD,133267
North East Lincolnshire Council,http://statistics.data.gov.uk/id/local-authority/00FC),Chief Executive,Director Of Finance,Facilities Management,Rep Alterations Maint Building,Buildings - Repairs And Maint,GA102,3/6/2018,506415,734.92,REVENUE,ENGIE SERVICES LTD,133267
North East Lincolnshire Council,http://statistics.data.gov.uk/id/local-authority/00FC),Chief Executive,Director Of Finance,Facilities Management,Energy Costs,Electricity,GB102,3/8/2018,506357,1001.23,REVENUE,NPOWER LIMITED,101414
North East Lincolnshire Council,http://statistics.data.gov.uk/id/local-authority/00FC),Chief Executive,Director Of Finance,Facilities Management,Energy Costs,Gas,GB101,3/29/2018,510992,1110.08,REVENUE,BRITISH GAS TRADING LTD,101507
North East Lincolnshire Council,http://statistics.data.gov.uk/id/local-authority/00FC),Chief Executive,Director Of Finance,Facilities Management,Cleaning And Domestic Supplies,Cleaning - Services,GH102,3/6/2018,506412,628.65,REVENUE,FUTURE CLEANING SERVICES LTD,102557
North East Lincolnshire Council,http://statistics.data.gov.uk/id/local-authority/00FC),Chief Executive,Director Of Finance,Facilities Management,Cleaning And Domestic Supplies,Cleaning - Services,GH102,3/15/2018,508169,940,REVENUE,KINGDOM SERVICES GROUP LTD,138536
North East Lincolnshire Council,http://statistics.data.gov.uk/id/local-authority/00FC),Chief Executive,Director Of Finance,Facilities Management,Cleaning And Domestic Supplies,Refuse Collection,GH104,3/13/2018,507499,485.94,REVENUE,ELLGIA LIMITED,101433
North East Lincolnshire Council,http://statistics.data.gov.uk/id/local-authority/00FC),Chief Executive,Director Of Finance,Facilities Management,Rep Alterations Maint Building,Buildings - Repairs And Maint,GA102,3/26/2018,509786,784.77,REVENUE,ENGIE SERVICES LTD,133267
North East Lincolnshire Council,http://statistics.data.gov.uk/id/local-authority/00FC),Chief Executive,Director Of Finance,Facilities Management,Rep Alterations Maint Building,Buildings - Repairs And Maint,GA102,3/26/2018,509786,260,REVENUE,ENGIE SERVICES LTD,133267
North East Lincolnshire Council,http://statistics.data.gov.uk/id/local-authority/00FC),Chief Executive,Director Of Finance,Facilities Management,Water Services,Water,GE101,3/20/2018,508735,289.01,REVENUE,ANGLIAN WATER BUSINESS,136587
North East Lincolnshire Council,http://statistics.data.gov.uk/id/local-authority/00FC),Chief Executive,Director Of Finance,Facilities Management,Cleaning And Domestic Supplies,Cleaning - Services,GH102,3/5/2018,505755,524,REVENUE,FIRST STEPS GRIMSBY LIMITED,101411
North East Lincolnshire Council,http://statistics.data.gov.uk/id/local-authority/00FC),Chief Executive,Director Of Finance,Facilities Management,Rep Alterations Maint Building,Buildings - Repairs And Maint,GA102,3/26/2018,509784,580.02,REVENUE,ENGIE SERVICES LTD,133267
North East Lincolnshire Council,http://statistics.data.gov.uk/id/local-authority/00FC),Chief Executive,Director Of Finance,Facilities Management,Rep Alterations Maint Building,Buildings - Repairs And Maint,GA102,3/8/2018,506624,582.4,REVENUE,ENGIE SERVICES LTD,133267
North East Lincolnshire Council,http://statistics.data.gov.uk/id/local-authority/00FC),Chief Executive,Director Of Finance,Facilities Management,Rep Alterations Maint Building,Buildings - Repairs And Maint,GA102,3/26/2018,509784,360,REVENUE,ENGIE SERVICES LTD,133267
North East Lincolnshire Council,http://statistics.data.gov.uk/id/local-authority/00FC),Chief Executive,Director Of Finance,Facilities Management,Rep Alterations Maint Building,Buildings - Repairs And Maint,GA102,3/29/2018,510460,1178.62,REVENUE,WILLOWS PRIMARY ACADEMY,120478
North East Lincolnshire Council,http://statistics.data.gov.uk/id/local-authority/00FC),Chief Executive,Director Of Finance,Facilities Management,Rep Alterations Maint Building,Buildings - Repairs And Maint,GA102,3/29/2018,510461,396,REVENUE,WILLOWS PRIMARY ACADEMY,120478
North East Lincolnshire Council,http://statistics.data.gov.uk/id/local-authority/00FC),Chief Executive,Director Of Finance,Facilities Management,Energy Costs,Electricity,GB102,3/8/2018,506338,302.42,REVENUE,NPOWER LIMITED,101414
North East Lincolnshire Council,http://statistics.data.gov.uk/id/local-authority/00FC),Chief Executive,Director Of Finance,Facilities Management,Energy Costs,Electricity,GB102,3/8/2018,506351,266.62,REVENUE,NPOWER LIMITED,101414
North East Lincolnshire Council,http://statistics.data.gov.uk/id/local-authority/00FC),Chief Executive,Director Of Finance,Facilities Management,Energy Costs,Gas,GB101,3/12/2018,505127,278,REVENUE,MACAULAY PRIMARY ACADEMY,112680
North East Lincolnshire Council,http://statistics.data.gov.uk/id/local-authority/00FC),Chief Executive,Director Of Finance,Facilities Management,Rep Alterations Maint Building,Buildings - Repairs And Maint,GA102,3/26/2018,509791,990,REVENUE,ENGIE SERVICES LTD,133267
North East Lincolnshire Council,http://statistics.data.gov.uk/id/local-authority/00FC),Chief Executive,Director Of Finance,Facilities Management,Water Services,Water,GE101,3/27/2018,510552,536.61,REVENUE,ANGLIAN WATER BUSINESS,136587
North East Lincolnshire Council,http://statistics.data.gov.uk/id/local-authority/00FC),Chief Executive,Director Of Finance,Facilities Management,Water Services,Water,GE101,3/27/2018,510554,798.9,REVENUE,ANGLIAN WATER BUSINESS,136587
North East Lincolnshire Council,http://statistics.data.gov.uk/id/local-authority/00FC),Chief Executive,Director Of Finance,Facilities Management,Cleaning And Domestic Supplies,Cleaning - Services,GH102,3/15/2018,507960,648.32,REVENUE,FOR UNDER FIVES LTD,100647
North East Lincolnshire Council,http://statistics.data.gov.uk/id/local-authority/00FC),Chief Executive,Director Of Finance,Facilities Management,Rep Alterations Maint Building,Buildings - Repairs And Maint,GA102,3/26/2018,509794,635.79,REVENUE,ENGIE SERVICES LTD,133267
North East Lincolnshire Council,http://statistics.data.gov.uk/id/local-authority/00FC),Chief Executive,Director Of Finance,Facilities Management,Rep Alterations Maint Building,Buildings - Repairs And Maint,GA102,3/26/2018,509794,285.64,REVENUE,ENGIE SERVICES LTD,133267
North East Lincolnshire Council,http://statistics.data.gov.uk/id/local-authority/00FC),Chief Executive,Director Of Finance,Facilities Management,Energy Costs,Electricity,GB102,3/8/2018,506121,311.91,REVENUE,NPOWER LIMITED,101414
North East Lincolnshire Council,http://statistics.data.gov.uk/id/local-authority/00FC),Chief Executive,Director Of Finance,Facilities Management,Energy Costs,Electricity,GB102,3/8/2018,506299,473.38,REVENUE,NPOWER LIMITED,101414
North East Lincolnshire Council,http://statistics.data.gov.uk/id/local-authority/00FC),Chief Executive,Director Of Finance,Facilities Management,Energy Costs,Electricity,GB102,3/8/2018,506122,306.92,REVENUE,NPOWER LIMITED,101414
North East Lincolnshire Council,http://statistics.data.gov.uk/id/local-authority/00FC),Chief Executive,Director Of Finance,Facilities Management,Energy Costs,Electricity,GB102,3/8/2018,506300,301.55,REVENUE,NPOWER LIMITED,101414
North East Lincolnshire Council,http://statistics.data.gov.uk/id/local-authority/00FC),Chief Executive,Director Of Finance,Facilities Management,Energy Costs,Electricity,GB102,3/8/2018,506123,311.55,REVENUE,NPOWER LIMITED,101414
North East Lincolnshire Council,http://statistics.data.gov.uk/id/local-authority/00FC),Chief Executive,Director Of Finance,Facilities Management,Energy Costs,Electricity,GB102,3/1/2018,505695,-376.64,REVENUE,NPOWER LIMITED,101414
North East Lincolnshire Council,http://statistics.data.gov.uk/id/local-authority/00FC),Chief Executive,Director Of Finance,Facilities Management,Energy Costs,Electricity,GB102,3/1/2018,505697,-364.43,REVENUE,NPOWER LIMITED,101414
North East Lincolnshire Council,http://statistics.data.gov.uk/id/local-authority/00FC),Chief Executive,Director Of Finance,Facilities Management,Energy Costs,Electricity,GB102,3/1/2018,505698,-364.43,REVENUE,NPOWER LIMITED,101414
North East Lincolnshire Council,http://statistics.data.gov.uk/id/local-authority/00FC),Chief Executive,Director Of Finance,Facilities Management,Energy Costs,Electricity,GB102,3/1/2018,505699,-376.64,REVENUE,NPOWER LIMITED,101414
North East Lincolnshire Council,http://statistics.data.gov.uk/id/local-authority/00FC),Chief Executive,Director Of Finance,Facilities Management,Energy Costs,Electricity,GB102,3/1/2018,505703,-498.53,REVENUE,NPOWER LIMITED,101414
North East Lincolnshire Council,http://statistics.data.gov.uk/id/local-authority/00FC),Chief Executive,Director Of Finance,Facilities Management,Energy Costs,Electricity,GB102,3/1/2018,505707,-372.16,REVENUE,NPOWER LIMITED,101414
North East Lincolnshire Council,http://statistics.data.gov.uk/id/local-authority/00FC),Chief Executive,Director Of Finance,Facilities Management,Energy Costs,Electricity,GB102,3/8/2018,506337,330.33,REVENUE,NPOWER LIMITED,101414
North East Lincolnshire Council,http://statistics.data.gov.uk/id/local-authority/00FC),Chief Executive,Director Of Finance,Facilities Management,Energy Costs,Electricity,GB102,3/8/2018,506341,330.33,REVENUE,NPOWER LIMITED,101414
North East Lincolnshire Council,http://statistics.data.gov.uk/id/local-authority/00FC),Chief Executive,Director Of Finance,Facilities Management,Energy Costs,Electricity,GB102,3/8/2018,506359,301.55,REVENUE,NPOWER LIMITED,101414
North East Lincolnshire Council,http://statistics.data.gov.uk/id/local-authority/00FC),Chief Executive,Director Of Finance,Facilities Management,Energy Costs,Electricity,GB102,3/12/2018,506304,311.55,REVENUE,NPOWER LIMITED,101414
North East Lincolnshire Council,http://statistics.data.gov.uk/id/local-authority/00FC),Chief Executive,Director Of Finance,Facilities Management,Energy Costs,Electricity,GB102,3/1/2018,505757,-364.43,REVENUE,BRITISH GAS TRADING LTD,101507
North East Lincolnshire Council,http://statistics.data.gov.uk/id/local-authority/00FC),Chief Executive,Director Of Finance,Facilities Management,Rep Alterations Maint Building,Buildings - Repairs And Maint,GA102,3/26/2018,509792,615.79,REVENUE,ENGIE SERVICES LTD,133267
North East Lincolnshire Council,http://statistics.data.gov.uk/id/local-authority/00FC),Chief Executive,Director Of Finance,Facilities Management,Energy Costs,Electricity,GB102,3/22/2018,509734,796.84,REVENUE,REYNOLDS PRIMARY ACADEMY,122175
North East Lincolnshire Council,http://statistics.data.gov.uk/id/local-authority/00FC),Chief Executive,Director Of Finance,Facilities Management,Energy Costs,Electricity,GB102,3/22/2018,509682,-1215.85,REVENUE,REYNOLDS PRIMARY ACADEMY,122175
North East Lincolnshire Council,http://statistics.data.gov.uk/id/local-authority/00FC),Chief Executive,Director Of Finance,Facilities Management,Energy Costs,Electricity,GB102,3/22/2018,509729,1893.21,REVENUE,REYNOLDS PRIMARY ACADEMY,122175
North East Lincolnshire Council,http://statistics.data.gov.uk/id/local-authority/00FC),Chief Executive,Director Of Finance,Facilities Management,Energy Costs,Electricity,GB102,3/22/2018,509733,1215.85,REVENUE,REYNOLDS PRIMARY ACADEMY,122175
North East Lincolnshire Council,http://statistics.data.gov.uk/id/local-authority/00FC),Chief Executive,Director Of Finance,Facilities Management,Energy Costs,Gas,GB101,3/20/2018,508674,1247.17,REVENUE,REYNOLDS PRIMARY ACADEMY,122175
North East Lincolnshire Council,http://statistics.data.gov.uk/id/local-authority/00FC),Chief Executive,Director Of Finance,Facilities Management,Cleaning And Domestic Supplies,Refuse Collection,GH104,3/13/2018,507496,449.28,REVENUE,ELLGIA LIMITED,101433
North East Lincolnshire Council,http://statistics.data.gov.uk/id/local-authority/00FC),Chief Executive,Director Of Finance,Facilities Management,Rep Alterations Maint Building,Buildings - Repairs And Maint,GA102,3/26/2018,509796,598.61,REVENUE,ENGIE SERVICES LTD,133267
North East Lincolnshire Council,http://statistics.data.gov.uk/id/local-authority/00FC),Chief Executive,Director Of Finance,Facilities Management,Rep Alterations Maint Building,Buildings - Repairs And Maint,GA102,3/26/2018,509796,535,REVENUE,ENGIE SERVICES LTD,133267
North East Lincolnshire Council,http://statistics.data.gov.uk/id/local-authority/00FC),Chief Executive,Director Of Finance,Facilities Management,Rep Alterations Maint Building,Buildings - Repairs And Maint,GA102,3/26/2018,509796,308,REVENUE,ENGIE SERVICES LTD,133267
North East Lincolnshire Council,http://statistics.data.gov.uk/id/local-authority/00FC),Chief Executive,Director Of Finance,Facilities Management,Energy Costs,Electricity,GB102,3/22/2018,509389,579.81,REVENUE,EASTFIELD PRIMARY ACADEMY,121907
North East Lincolnshire Council,http://statistics.data.gov.uk/id/local-authority/00FC),Chief Executive,Director Of Finance,Facilities Management,Energy Costs,Electricity,GB102,3/1/2018,505020,445.11,REVENUE,EASTFIELD PRIMARY ACADEMY,121907
North East Lincolnshire Council,http://statistics.data.gov.uk/id/local-authority/00FC),Chief Executive,Director Of Finance,Facilities Management,Water Services,Water,GE101,3/19/2018,508530,1560.26,REVENUE,EASTFIELD PRIMARY ACADEMY,121907
North East Lincolnshire Council,http://statistics.data.gov.uk/id/local-authority/00FC),Chief Executive,Director Of Finance,Facilities Management,Cleaning And Domestic Supplies,Cleaning - Services,GH102,3/15/2018,508168,1250,REVENUE,KINGDOM SERVICES GROUP LTD,138536
North East Lincolnshire Council,http://statistics.data.gov.uk/id/local-authority/00FC),Chief Executive,Director Of Finance,Facilities Management,Rep Alterations Maint Building,Buildings - Repairs And Maint,GA102,3/26/2018,509797,864.94,REVENUE,ENGIE SERVICES LTD,133267
North East Lincolnshire Council,http://statistics.data.gov.uk/id/local-authority/00FC),Chief Executive,Director Of Finance,Facilities Management,Energy Costs,Electricity,GB102,3/20/2018,508755,641.23,REVENUE,WILLOWS PRIMARY ACADEMY,120478
North East Lincolnshire Council,http://statistics.data.gov.uk/id/local-authority/00FC),Chief Executive,Director Of Finance,Facilities Management,Energy Costs,Gas,GB101,3/19/2018,508652,387.12,REVENUE,WILLOWS PRIMARY ACADEMY,120478
North East Lincolnshire Council,http://statistics.data.gov.uk/id/local-authority/00FC),Chief Executive,Director Of Finance,Facilities Management,Energy Costs,Gas,GB101,3/20/2018,508754,416.82,REVENUE,WILLOWS PRIMARY ACADEMY,120478
North East Lincolnshire Council,http://statistics.data.gov.uk/id/local-authority/00FC),Chief Executive,Director Of Finance,Facilities Management,Cleaning And Domestic Supplies,Cleaning - Services,GH102,3/6/2018,506413,820.06,REVENUE,FUTURE CLEANING SERVICES LTD,102557
North East Lincolnshire Council,http://statistics.data.gov.uk/id/local-authority/00FC),Chief Executive,Director Of Finance,Facilities Management,Cleaning And Domestic Supplies,Refuse Collection,GH104,3/1/2018,505721,429.52,REVENUE,BIFFA WASTE SERVICES LTD,100515
North East Lincolnshire Council,http://statistics.data.gov.uk/id/local-authority/00FC),Chief Executive,Director Of Finance,Facilities Management,Rep Alterations Maint Building,Buildings - Repairs And Maint,GA102,3/8/2018,506625,350,REVENUE,ENGIE SERVICES LTD,133267
North East Lincolnshire Council,http://statistics.data.gov.uk/id/local-authority/00FC),Chief Executive,Director Of Finance,Facilities Management,Energy Costs,Electricity,GB102,3/22/2018,508630,391.24,REVENUE,YARBOROUGH ACADEMY,112852
North East Lincolnshire Council,http://statistics.data.gov.uk/id/local-authority/00FC),Chief Executive,Director Of Finance,Facilities Management,Cleaning And Domestic Supplies,Cleaning - Services,GH102,3/6/2018,506410,1021.08,REVENUE,FUTURE CLEANING SERVICES LTD,102557
North East Lincolnshire Council,http://statistics.data.gov.uk/id/local-authority/00FC),Chief Executive,Director Of Finance,Facilities Management,Cleaning And Domestic Supplies,Cleaning - Services,GH102,3/6/2018,506388,1021.08,REVENUE,FUTURE CLEANING SERVICES LTD,102557
North East Lincolnshire Council,http://statistics.data.gov.uk/id/local-authority/00FC),Chief Executive,Director Of Finance,Facilities Management,Cleaning And Domestic Supplies,Refuse Collection,GH104,3/15/2018,507911,485.94,REVENUE,ELLGIA LIMITED,101433
North East Lincolnshire Council,http://statistics.data.gov.uk/id/local-authority/00FC),Chief Executive,Director Of Finance,Facilities Management,Rep Alterations Maint Building,Buildings - Repairs And Maint,GA102,3/6/2018,506416,276.54,REVENUE,ENGIE SERVICES LTD,133267
North East Lincolnshire Council,http://statistics.data.gov.uk/id/local-authority/00FC),Chief Executive,Director Of Finance,Facilities Management,Rep Alterations Maint Building,Buildings - Repairs And Maint,GA102,3/26/2018,509781,305.34,REVENUE,ENGIE SERVICES LTD,133267
North East Lincolnshire Council,http://statistics.data.gov.uk/id/local-authority/00FC),Chief Executive,Director Of Finance,Facilities Management,Rep Alterations Maint Building,Buildings - Repairs And Maint,GA102,3/6/2018,506416,334.35,REVENUE,ENGIE SERVICES LTD,133267
North East Lincolnshire Council,http://statistics.data.gov.uk/id/local-authority/00FC),Chief Executive,Director Of Finance,Facilities Management,Cleaning And Domestic Supplies,Cleaning - Services,GH102,3/6/2018,506411,582.75,REVENUE,FUTURE CLEANING SERVICES LTD,102557
North East Lincolnshire Council,http://statistics.data.gov.uk/id/local-authority/00FC),Chief Executive,Director Of Finance,Facilities Management,Rep Alterations Maint Building,Buildings - Repairs And Maint,GA102,3/22/2018,509689,11391.75,REVENUE,ENGIE SERVICES LTD,133267
North East Lincolnshire Council,http://statistics.data.gov.uk/id/local-authority/00FC),Chief Executive,Director Of Finance,Facilities Management,Rep Alterations Maint Building,Buildings - Repairs And Maint,GA102,3/15/2018,508160,1990,REVENUE,VERITAS PROPERTY MANAGEMENT,138462
North East Lincolnshire Council,http://statistics.data.gov.uk/id/local-authority/00FC),Chief Executive,Director Of Finance,Facilities Management,Rep Alterations Maint Building,Buildings - Repairs And Maint,GA102,3/19/2018,508159,3400,REVENUE,VERITAS PROPERTY MANAGEMENT,138462
North East Lincolnshire Council,http://statistics.data.gov.uk/id/local-authority/00FC),Chief Executive,Director Of Finance,Facilities Management,Rep Alterations Maint Building,Buildings - Repairs And Maint,GA102,3/29/2018,510283,500,REVENUE,ENGIE SERVICES LTD,133267
North East Lincolnshire Council,http://statistics.data.gov.uk/id/local-authority/00FC),Chief Executive,Director Of Finance,Facilities Management,Rep Alterations Maint Building,Buildings - Repairs And Maint,GA102,3/29/2018,510263,375,REVENUE,ENGIE SERVICES LTD,133267
North East Lincolnshire Council,http://statistics.data.gov.uk/id/local-authority/00FC),Chief Executive,Director Of Finance,Facilities Management,Energy Costs,Electricity,GB102,3/6/2018,506334,1070.13,REVENUE,E-ON (GAS),101983
North East Lincolnshire Council,http://statistics.data.gov.uk/id/local-authority/00FC),Chief Executive,Director Of Finance,Facilities Management,Energy Costs,Gas,GB101,3/15/2018,508180,647.49,REVENUE,BRITISH GAS TRADING LTD,101507
North East Lincolnshire Council,http://statistics.data.gov.uk/id/local-authority/00FC),Chief Executive,Director Of Finance,Facilities Management,Cleaning And Domestic Supplies,Cleaning - Services,GH102,3/22/2018,509427,1948.57,REVENUE,CANNON HYGIENE LIMITED,139198
North East Lincolnshire Council,http://statistics.data.gov.uk/id/local-authority/00FC),Chief Executive,Director Of Finance,Facilities Management,Cleaning And Domestic Supplies,Cleaning - Services,GH102,3/26/2018,509461,47054.07,REVENUE,KINGDOM SERVICES GROUP LTD,138536
North East Lincolnshire Council,http://statistics.data.gov.uk/id/local-authority/00FC),Chief Executive,Director Of Finance,Facilities Management,Cleaning And Domestic Supplies,Cleaning - Services,GH102,3/1/2018,504877,47054.07,REVENUE,KINGDOM SERVICES GROUP LTD,138536
North East Lincolnshire Council,http://statistics.data.gov.uk/id/local-authority/00FC),Chief Executive,Director Of Finance,Facilities Management,Energy Costs,Electricity,GB102,3/19/2018,508550,1496.94,REVENUE,ASSOCIATED BRITISH PORTS,100834
North East Lincolnshire Council,http://statistics.data.gov.uk/id/local-authority/00FC),Chief Executive,Director Of Finance,Facilities Management,Water Services,Water,GE101,3/19/2018,508551,417.04,REVENUE,ASSOCIATED BRITISH PORTS,100834
North East Lincolnshire Council,http://statistics.data.gov.uk/id/local-authority/00FC),Chief Executive,Director Of Finance,Facilities Management,Energy Costs,Heating Fuel,GB103,3/22/2018,509044,775.22,REVENUE,OIL NRG,138198
North East Lincolnshire Council,http://statistics.data.gov.uk/id/local-authority/00FC),Chief Executive,Director Of Finance,Facilities Management,Energy Costs,Heating Fuel,GB103,3/22/2018,509125,474.4,REVENUE,OIL NRG,138198
North East Lincolnshire Council,http://statistics.data.gov.uk/id/local-authority/00FC),Chief Executive,Director Of Finance,Facilities Management,Energy Costs,Heating Fuel,GB103,3/22/2018,509045,988.8,REVENUE,OIL NRG,138198
North East Lincolnshire Council,http://statistics.data.gov.uk/id/local-authority/00FC),Chief Executive,Director Of Finance,Facilities Management,Energy Costs,Heating Fuel,GB103,3/29/2018,510121,982.31,REVENUE,OIL NRG,138198
North East Lincolnshire Council,http://statistics.data.gov.uk/id/local-authority/00FC),Chief Executive,Director Of Finance,Facilities Management,Energy Costs,Heating Fuel,GB103,3/29/2018,510208,737.1,REVENUE,OIL NRG,138198
North East Lincolnshire Council,http://statistics.data.gov.uk/id/local-authority/00FC),Chief Executive,Director Of Finance,Facilities Management,Energy Costs,Heating Fuel,GB103,3/26/2018,510200,982.8,REVENUE,OIL NRG,138198
North East Lincolnshire Council,http://statistics.data.gov.uk/id/local-authority/00FC),Chief Executive,Director Of Finance,Facilities Management,Rents,Service Charge,GC102,3/13/2018,507524,1027.2,REVENUE,WYKELAND GROUP LTD,101729
North East Lincolnshire Council,http://statistics.data.gov.uk/id/local-authority/00FC),Chief Executive,Director Of Finance,Facilities Management,Cleaning And Domestic Supplies,Cleaning - Services,GH102,3/22/2018,509542,-5006.32,REVENUE,KINGDOM SERVICES GROUP LTD,138536
North East Lincolnshire Council,http://statistics.data.gov.uk/id/local-authority/00FC),Chief Executive,Director Of Finance,Facilities Management,Rep Alterations Maint Building,Buildings - Repairs And Maint,GA102,3/26/2018,509455,617.41,REVENUE,INTEGRATED UTILITY SERVICES,104162
North East Lincolnshire Council,http://statistics.data.gov.uk/id/local-authority/00FC),Chief Executive,Director Of Finance,Facilities Management,Energy Costs,Electricity,GB102,3/22/2018,508650,437.83,REVENUE,OLD CLEE PRIMARY ACADEMY,119822
North East Lincolnshire Council,http://statistics.data.gov.uk/id/local-authority/00FC),Chief Executive,Director Of Finance,Facilities Management,Energy Costs,Gas,GB101,3/13/2018,507504,473.67,REVENUE,OLD CLEE PRIMARY ACADEMY,119822
North East Lincolnshire Council,http://statistics.data.gov.uk/id/local-authority/00FC),Chief Executive,Director Of Finance,Facilities Management,Energy Costs,Gas,GB101,3/22/2018,508608,450.64,REVENUE,OLD CLEE PRIMARY ACADEMY,119822
North East Lincolnshire Council,http://statistics.data.gov.uk/id/local-authority/00FC),Chief Executive,Director Of Finance,Facilities Management,Rents,Rent,GC101,3/22/2018,508598,1250,REVENUE,THE GRIMSBY INSTITUTE OF FURTHER,102742
North East Lincolnshire Council,http://statistics.data.gov.uk/id/local-authority/00FC),Chief Executive,Director Of Finance,Facilities Management,Rents,Service Charge,GC102,3/22/2018,508598,1100,REVENUE,THE GRIMSBY INSTITUTE OF FURTHER,102742
North East Lincolnshire Council,http://statistics.data.gov.uk/id/local-authority/00FC),Chief Executive,Director Of Finance,Facilities Management,Rep Alterations Maint Building,Buildings - Repairs And Maint,GA102,3/22/2018,509758,7769.54,REVENUE,ENGIE SERVICES LTD,133267
North East Lincolnshire Council,http://statistics.data.gov.uk/id/local-authority/00FC),Chief Executive,Director Of Finance,Facilities Management,Rep Alterations Maint Building,Buildings - Repairs And Maint,GA102,3/29/2018,510284,8049.4,REVENUE,ENGIE SERVICES LTD,133267
North East Lincolnshire Council,http://statistics.data.gov.uk/id/local-authority/00FC),Chief Executive,Director Of Finance,Facilities Management,Energy Costs,Electricity,GB102,3/22/2018,509685,-1059.71,REVENUE,REYNOLDS PRIMARY ACADEMY,122175
North East Lincolnshire Council,http://statistics.data.gov.uk/id/local-authority/00FC),Chief Executive,Director Of Finance,Facilities Management,Energy Costs,Electricity,GB102,3/22/2018,509735,700.67,REVENUE,REYNOLDS PRIMARY ACADEMY,122175
North East Lincolnshire Council,http://statistics.data.gov.uk/id/local-authority/00FC),Chief Executive,Director Of Finance,Facilities Management,Energy Costs,Electricity,GB102,3/22/2018,509737,1059.71,REVENUE,REYNOLDS PRIMARY ACADEMY,122175
North East Lincolnshire Council,http://statistics.data.gov.uk/id/local-authority/00FC),Chief Executive,Director Of Finance,Facilities Management,Energy Costs,Electricity,GB102,3/19/2018,508653,828.79,REVENUE,REYNOLDS PRIMARY ACADEMY,122175
North East Lincolnshire Council,http://statistics.data.gov.uk/id/local-authority/00FC),Chief Executive,Director Of Finance,Facilities Management,Energy Costs,Electricity,GB102,3/26/2018,509727,1191.21,REVENUE,REYNOLDS PRIMARY ACADEMY,122175
North East Lincolnshire Council,http://statistics.data.gov.uk/id/local-authority/00FC),Chief Executive,Director Of Finance,Facilities Management,Energy Costs,Gas,GB101,3/22/2018,509757,254.12,REVENUE,REYNOLDS PRIMARY ACADEMY,122175
North East Lincolnshire Council,http://statistics.data.gov.uk/id/local-authority/00FC),Chief Executive,Director Of Finance,Facilities Management,Energy Costs,Gas,GB101,3/22/2018,509751,274.41,REVENUE,REYNOLDS PRIMARY ACADEMY,122175
North East Lincolnshire Council,http://statistics.data.gov.uk/id/local-authority/00FC),Chief Executive,Director Of Finance,Security,Rep Alterations Maint Building,Security Alarms And Cctv,GA101,3/26/2018,509760,1336.86,REVENUE,ENGIE SERVICES LTD,133267
North East Lincolnshire Council,http://statistics.data.gov.uk/id/local-authority/00FC),Chief Executive,Director Of Finance,Security,Rep Alterations Maint Building,Security Alarms And Cctv,GA101,3/29/2018,510285,16637.21,REVENUE,ENGIE SERVICES LTD,133267
North East Lincolnshire Council,http://statistics.data.gov.uk/id/local-authority/00FC),Chief Executive,Director Of Finance,Commercial Estate,Grounds Maintenance Costs,Grounds Maintenance,GJ101,3/29/2018,510258,2232.75,REVENUE,ENGIE SERVICES LTD,133267
North East Lincolnshire Council,http://statistics.data.gov.uk/id/local-authority/00FC),Chief Executive,Director Of Finance,Commercial Estate,Cleaning And Domestic Supplies,Refuse Collection,GH104,3/22/2018,509536,300,REVENUE,BRIANPLANT (HUMBERSIDE) LTD,100583
North East Lincolnshire Council,http://statistics.data.gov.uk/id/local-authority/00FC),Chief Executive,Director Of Finance,Commercial Estate,Grounds Maintenance Costs,Grounds Maintenance,GJ101,3/29/2018,510258,531.38,REVENUE,ENGIE SERVICES LTD,133267
North East Lincolnshire Council,http://statistics.data.gov.uk/id/local-authority/00FC),Chief Executive,Director Of Finance,Commercial Estate,Water Services,Water,GE101,3/15/2018,508131,1505.19,REVENUE,ANGLIAN WATER BUSINESS,136587
North East Lincolnshire Council,http://statistics.data.gov.uk/id/local-authority/00FC),Chief Executive,Director Of Finance,Commercial Estate,Grounds Maintenance Costs,Grounds Maintenance,GJ101,3/29/2018,510258,716.62,REVENUE,ENGIE SERVICES LTD,133267
North East Lincolnshire Council,http://statistics.data.gov.uk/id/local-authority/00FC),Chief Executive,Director Of Finance,Commercial Estate,Grounds Maintenance Costs,Grounds Maintenance,GJ101,3/29/2018,510258,849.25,REVENUE,ENGIE SERVICES LTD,133267
North East Lincolnshire Council,http://statistics.data.gov.uk/id/local-authority/00FC),Chief Executive,Director Of Finance,Commercial Estate,Grounds Maintenance Costs,Grounds Maintenance,GJ101,3/29/2018,510258,1350.37,REVENUE,ENGIE SERVICES LTD,133267
North East Lincolnshire Council,http://statistics.data.gov.uk/id/local-authority/00FC),Chief Executive,Director Of Finance,Commercial Estate,Grounds Maintenance Costs,Grounds Maintenance,GJ101,3/29/2018,510258,575.25,REVENUE,ENGIE SERVICES LTD,133267
North East Lincolnshire Council,http://statistics.data.gov.uk/id/local-authority/00FC),Chief Executive,Director Of Finance,Commercial Estate,Grounds Maintenance Costs,Grounds Maintenance,GJ101,3/29/2018,510258,1501.47,REVENUE,ENGIE SERVICES LTD,133267
North East Lincolnshire Council,http://statistics.data.gov.uk/id/local-authority/00FC),Chief Executive,Director Of Finance,Commercial Estate,Cleaning And Domestic Supplies,Refuse Collection,GH104,3/20/2018,508656,554.4,REVENUE,ELLGIA LIMITED,101433
North East Lincolnshire Council,http://statistics.data.gov.uk/id/local-authority/00FC),Chief Executive,Director Of Finance,Commercial Estate,Cleaning And Domestic Supplies,Refuse Collection,GH104,3/22/2018,509460,310.8,REVENUE,ELLGIA LIMITED,101433
North East Lincolnshire Council,http://statistics.data.gov.uk/id/local-authority/00FC),Chief Executive,Director Of Finance,Commercial Estate,Grounds Maintenance Costs,Grounds Maintenance,GJ101,3/29/2018,510258,679.25,REVENUE,ENGIE SERVICES LTD,133267
North East Lincolnshire Council,http://statistics.data.gov.uk/id/local-authority/00FC),Chief Executive,Director Of Finance,Commercial Estate,Grounds Maintenance Costs,Grounds Maintenance,GJ101,3/29/2018,510258,661.43,REVENUE,ENGIE SERVICES LTD,133267
North East Lincolnshire Council,http://statistics.data.gov.uk/id/local-authority/00FC),Chief Executive,Director Of Finance,Commercial Estate,Cleaning And Domestic Supplies,Refuse Collection,GH104,3/20/2018,508656,386.68,REVENUE,ELLGIA LIMITED,101433
North East Lincolnshire Council,http://statistics.data.gov.uk/id/local-authority/00FC),Chief Executive,Director Of Finance,Commercial Estate,Cleaning And Domestic Supplies,Refuse Collection,GH104,3/13/2018,507462,292,REVENUE,ELLGIA LIMITED,101433
North East Lincolnshire Council,http://statistics.data.gov.uk/id/local-authority/00FC),Chief Executive,Director Of Finance,Commercial Estate,Grounds Maintenance Costs,Grounds Maintenance,GJ101,3/29/2018,510258,947.43,REVENUE,ENGIE SERVICES LTD,133267
North East Lincolnshire Council,http://statistics.data.gov.uk/id/local-authority/00FC),Chief Executive,Director Of Finance,Commercial Estate,Energy Costs,Gas,GB101,3/8/2018,506395,626.67,REVENUE,BRITISH GAS TRADING LTD,101507
North East Lincolnshire Council,http://statistics.data.gov.uk/id/local-authority/00FC),Chief Executive,Director Of Finance,Commercial Estate,Grounds Maintenance Costs,Grounds Maintenance,GJ101,3/29/2018,510258,1215.48,REVENUE,ENGIE SERVICES LTD,133267
North East Lincolnshire Council,http://statistics.data.gov.uk/id/local-authority/00FC),Chief Executive,Director Of Finance,Commercial Estate,Grounds Maintenance Costs,Grounds Maintenance,GJ101,3/29/2018,510258,679.25,REVENUE,ENGIE SERVICES LTD,133267
North East Lincolnshire Council,http://statistics.data.gov.uk/id/local-authority/00FC),Chief Executive,Director Of Finance,Commercial Estate,Rents,Service Charge,GC102,3/29/2018,510260,3000,REVENUE,ENGIE SERVICES LTD,133267
North East Lincolnshire Council,http://statistics.data.gov.uk/id/local-authority/00FC),Chief Executive,Director Of Finance,Commercial Estate,Grounds Maintenance Costs,Grounds Maintenance,GJ101,3/29/2018,510258,661.43,REVENUE,ENGIE SERVICES LTD,133267
North East Lincolnshire Council,http://statistics.data.gov.uk/id/local-authority/00FC),Chief Executive,Director Of Finance,Commercial Estate,Cleaning And Domestic Supplies,Cleaning - Consumables,GH103,3/20/2018,508696,304.72,REVENUE,PETER HOGARTH & SONS LTD,100815
North East Lincolnshire Council,http://statistics.data.gov.uk/id/local-authority/00FC),Chief Executive,Director Of Finance,Commercial Estate,Rep Alterations Maint Building,Buildings - Repairs And Maint,GA102,3/22/2018,509702,903.5,REVENUE,ENGIE SERVICES LTD,133267
North East Lincolnshire Council,http://statistics.data.gov.uk/id/local-authority/00FC),Chief Executive,Director Of Finance,Commercial Estate,Energy Costs,Electricity,GB102,3/15/2018,508259,3085.6,REVENUE,BRITISH GAS TRADING LTD,101507
North East Lincolnshire Council,http://statistics.data.gov.uk/id/local-authority/00FC),Chief Executive,Director Of Finance,Bus Support & Customer Serv,Miscellaneous Expenses,Other Expenses General,LL119,3/19/2018,508595,465,REVENUE,HARLEQUIN OFFICE FURNITURE LTD,103530
North East Lincolnshire Council,http://statistics.data.gov.uk/id/local-authority/00FC),Chief Executive,Director Of Finance,Bus Support & Customer Serv,Communications And Computing,Postage,LF111,3/5/2018,505686,761.88,REVENUE,WHISTL UK LTD,135925
North East Lincolnshire Council,http://statistics.data.gov.uk/id/local-authority/00FC),Chief Executive,Director Of Finance,Bus Support & Customer Serv,Communications And Computing,Postage,LF111,3/8/2018,506745,624.93,REVENUE,WHISTL UK LTD,135925
North East Lincolnshire Council,http://statistics.data.gov.uk/id/local-authority/00FC),Chief Executive,Director Of Finance,Bus Support & Customer Serv,Communications And Computing,Postage,LF111,3/8/2018,506747,8429.95,REVENUE,WHISTL UK LTD,135925
North East Lincolnshire Council,http://statistics.data.gov.uk/id/local-authority/00FC),Chief Executive,Director Of Finance,Bus Support & Customer Serv,Communications And Computing,Postage,LF111,3/12/2018,507131,282.95,REVENUE,WHISTL UK LTD,135925
North East Lincolnshire Council,http://statistics.data.gov.uk/id/local-authority/00FC),Chief Executive,Director Of Finance,Bus Support & Customer Serv,Communications And Computing,Postage,LF111,3/19/2018,508249,973.51,REVENUE,WHISTL UK LTD,135925
North East Lincolnshire Council,http://statistics.data.gov.uk/id/local-authority/00FC),Chief Executive,Director Of Finance,Bus Support & Customer Serv,Communications And Computing,Postage,LF111,3/19/2018,508316,319.8,REVENUE,WHISTL UK LTD,135925
North East Lincolnshire Council,http://statistics.data.gov.uk/id/local-authority/00FC),Chief Executive,Director Of Finance,Bus Support & Customer Serv,Communications And Computing,Postage,LF111,3/22/2018,509546,427.93,REVENUE,WHISTL UK LTD,135925
North East Lincolnshire Council,http://statistics.data.gov.uk/id/local-authority/00FC),Chief Executive,Director Of Finance,Bus Support & Customer Serv,Communications And Computing,Postage,LF111,3/22/2018,509547,369.52,REVENUE,WHISTL UK LTD,135925
North East Lincolnshire Council,http://statistics.data.gov.uk/id/local-authority/00FC),Chief Executive,Director Of Finance,Bus Support & Customer Serv,Communications And Computing,Postage,LF111,3/22/2018,509548,1662.34,REVENUE,WHISTL UK LTD,135925
North East Lincolnshire Council,http://statistics.data.gov.uk/id/local-authority/00FC),Chief Executive,Director Of Finance,Bus Support & Customer Serv,Communications And Computing,Postage,LF111,3/29/2018,511226,316.75,REVENUE,WHISTL UK LTD,135925
North East Lincolnshire Council,http://statistics.data.gov.uk/id/local-authority/00FC),Chief Executive,Director Of Finance,Bus Support & Customer Serv,Communications And Computing,Postage,LF111,3/12/2018,506302,290.63,REVENUE,ROYAL MAIL GROUP PLC,101082
North East Lincolnshire Council,http://statistics.data.gov.uk/id/local-authority/00FC),Chief Executive,Director Of Finance,Digital Transformation,Communications And Computing,Computer S/Ware - Purchases,LF101,3/8/2018,506319,338.8,REVENUE,TRUSTMARQUE SOLUTIONS LTD,101275
North East Lincolnshire Council,http://statistics.data.gov.uk/id/local-authority/00FC),Chief Executive,Director Of Economy & Growth,Beach Safety,Indirect Employee Expenses,Staff Training,EB122,3/26/2018,508603,250,REVENUE,FOREFRONT TRAINING LTD,105501
North East Lincolnshire Council,http://statistics.data.gov.uk/id/local-authority/00FC),Chief Executive,Director Of Economy & Growth,Beach Safety,Miscellaneous Expenses,Other Expenses General,LL119,3/12/2018,506034,1545,REVENUE,KEEP BRITAIN TIDY,102368
North East Lincolnshire Council,http://statistics.data.gov.uk/id/local-authority/00FC),Chief Executive,Director Of Economy & Growth,Discovery Centre,Private Contractors,Third Party Prov - Private,PH101,3/8/2018,506119,1740,REVENUE,LINDA INGHAM,119686
North East Lincolnshire Council,http://statistics.data.gov.uk/id/local-authority/00FC),Chief Executive,Director Of Economy & Growth,Discovery Centre,Equip / Furniture / Materials,Equipment - Purchase,LA101,3/5/2018,505950,1722.24,REVENUE,SYLVESTER-KEAL LTD,100593
North East Lincolnshire Council,http://statistics.data.gov.uk/id/local-authority/00FC),Chief Executive,Director Of Economy & Growth,Discovery Centre,Equip / Furniture / Materials,Goods For Resale,LA123,3/29/2018,510188,614.92,REVENUE,JOHN TURNER,100921
North East Lincolnshire Council,http://statistics.data.gov.uk/id/local-authority/00FC),Chief Executive,Director Of Economy & Growth,Discovery Centre,Equip / Furniture / Materials,Goods For Resale,LA123,3/27/2018,510011,319.68,REVENUE,HOLDSWORTH LTD,121021
North East Lincolnshire Council,http://statistics.data.gov.uk/id/local-authority/00FC),Chief Executive,Director Of Economy & Growth,Discovery Centre,Equip / Furniture / Materials,Goods For Resale,LA123,3/27/2018,510191,269.2,REVENUE,R W STOKES & SONS LTD,123706
North East Lincolnshire Council,http://statistics.data.gov.uk/id/local-authority/00FC),Chief Executive,Director Of Economy & Growth,Discovery Centre,Equip / Furniture / Materials,Goods For Resale,LA123,3/12/2018,506714,303.65,REVENUE,TURNER BROS LTD,112906
North East Lincolnshire Council,http://statistics.data.gov.uk/id/local-authority/00FC),Chief Executive,Director Of Economy & Growth,Marketing And Promotion,Equip / Furniture / Materials,Promotions,LA124,3/29/2018,508076,490,REVENUE,LOCAL WORLD LIMITED,118774
North East Lincolnshire Council,http://statistics.data.gov.uk/id/local-authority/00FC),Chief Executive,Director Of Economy & Growth,Museums & N F Heritage Centre,Miscellaneous Expenses,Other Expenses General,LL119,3/29/2018,510833,4000,REVENUE,HULL CULTURE AND LEISURE LTD,132864
North East Lincolnshire Council,http://statistics.data.gov.uk/id/local-authority/00FC),Chief Executive,Director Of Economy & Growth,Museums & N F Heritage Centre,Equip / Furniture / Materials,Equipment - Purchase,LA101,3/5/2018,505949,485,REVENUE,SYLVESTER-KEAL LTD,100593
North East Lincolnshire Council,http://statistics.data.gov.uk/id/local-authority/00FC),Chief Executive,Director Of Economy & Growth,Museums & N F Heritage Centre,Equip / Furniture / Materials,Goods For Resale,LA123,3/13/2018,506758,396.79,REVENUE,SDL IMPORTS LTD,105518
North East Lincolnshire Council,http://statistics.data.gov.uk/id/local-authority/00FC),Chief Executive,Director Of Economy & Growth,Museums & N F Heritage Centre,Private Contractors,Third Party Prov - Private,PH101,3/19/2018,508531,529.23,REVENUE,DECK HAND KNITWEAR,139173
North East Lincolnshire Council,http://statistics.data.gov.uk/id/local-authority/00FC),Chief Executive,Director Of Economy & Growth,Museums & N F Heritage Centre,Equip / Furniture / Materials,Equipment - Purchase,LA101,3/22/2018,509304,400,REVENUE,W R CULLUM,100811
North East Lincolnshire Council,http://statistics.data.gov.uk/id/local-authority/00FC),Chief Executive,Director Of Economy & Growth,Tourist Information Centre,Miscellaneous Expenses,Other Expenses General,LL119,3/19/2018,508647,384,REVENUE,HARLEQUIN OFFICE FURNITURE LTD,103530
North East Lincolnshire Council,http://statistics.data.gov.uk/id/local-authority/00FC),Chief Executive,Director Of Economy & Growth,Tourist Information Centre,Private Contractors,Third Party Prov - Private,PH101,3/22/2018,509434,475.5,REVENUE,THE CAXTON PLAYERS,129590
North East Lincolnshire Council,http://statistics.data.gov.uk/id/local-authority/00FC),Chief Executive,Director Of Economy & Growth,Tourist Information Centre,Private Contractors,Third Party Prov - Private,PH101,3/19/2018,508532,793.5,REVENUE,THE CAXTON PLAYERS,129590
North East Lincolnshire Council,http://statistics.data.gov.uk/id/local-authority/00FC),Chief Executive,Director Of Economy & Growth,Tourist Information Centre,Private Contractors,Third Party Prov - Private,PH101,3/13/2018,507465,716,REVENUE,NATIONAL EXPRESS LTD,100835
North East Lincolnshire Council,http://statistics.data.gov.uk/id/local-authority/00FC),Chief Executive,Director Of Economy & Growth,Tourist Information Centre,Private Contractors,Third Party Prov - Private,PH101,3/19/2018,508533,289,REVENUE,NATIONAL EXPRESS LTD,100835
North East Lincolnshire Council,http://statistics.data.gov.uk/id/local-authority/00FC),Chief Executive,Director Of Economy & Growth,Highways Plan Out Of Scope,Private Contractors,Third Party Prov - Private,PH101,3/29/2018,511025,62313.94,REVENUE,THE PLANNING INSPECTORATE,131334
North East Lincolnshire Council,http://statistics.data.gov.uk/id/local-authority/00FC),Chief Executive,Director Of Economy & Growth,Community Investment Team,Private Contractors,Third Party Prov - Private,PH101,3/13/2018,507817,444,REVENUE,CENTRAL INSULATIONS LTD,116570
North East Lincolnshire Council,http://statistics.data.gov.uk/id/local-authority/00FC),Chief Executive,Director Of Economy & Growth,Community Investment Team,Other Agencies,Grants Pd Over To Third Party,PJ138,3/15/2018,507983,2319.73,REVENUE,FOX CORRUGATED MACHINERY (UK) LTD,137833
North East Lincolnshire Council,http://statistics.data.gov.uk/id/local-authority/00FC),Chief Executive,Director Of Economy & Growth,Community Investment Team,Other Agencies,Grants Pd Over To Third Party,PJ138,3/8/2018,507108,1479.51,REVENUE,PLANTAVI LTD,127880
North East Lincolnshire Council,http://statistics.data.gov.uk/id/local-authority/00FC),Chief Executive,Director Of Economy & Growth,Community Investment Team,Other Agencies,Grants Pd Over To Third Party,PJ138,3/20/2018,508675,23160.68,REVENUE,INTEGRA BUILDINGS LTD,137168
North East Lincolnshire Council,http://statistics.data.gov.uk/id/local-authority/00FC),Chief Executive,Director Of Economy & Growth,Community Investment Team,Other Agencies,Grants Pd Over To Third Party,PJ138,3/20/2018,508552,4184.27,REVENUE,LAKELAND ORTHOTICS LTD,139291
North East Lincolnshire Council,http://statistics.data.gov.uk/id/local-authority/00FC),Chief Executive,Director Of Economy & Growth,Community Investment Team,Other Agencies,Grants Pd Over To Third Party,PJ138,3/15/2018,508190,6951,REVENUE,CAMBRIDGE GLASSHOUSE LTD,127783
North East Lincolnshire Council,http://statistics.data.gov.uk/id/local-authority/00FC),Chief Executive,Director Of Economy & Growth,Community Investment Team,Other Agencies,Grants Pd Over To Third Party,PJ138,3/15/2018,508084,1800,REVENUE,SCRATCH MEALS LTD,134927
North East Lincolnshire Council,http://statistics.data.gov.uk/id/local-authority/00FC),Chief Executive,Director Of Economy & Growth,Community Investment Team,Other Agencies,Grants Pd Over To Third Party,PJ138,3/15/2018,508085,3982.31,REVENUE,SCRATCH MEALS LTD,134927
North East Lincolnshire Council,http://statistics.data.gov.uk/id/local-authority/00FC),Chief Executive,Director Of Economy & Growth,Community Investment Team,Other Agencies,Grants Pd Over To Third Party,PJ138,3/26/2018,509683,23674.56,REVENUE,360 ACCOUNTANTS LTD,138527
North East Lincolnshire Council,http://statistics.data.gov.uk/id/local-authority/00FC),Chief Executive,Director Of Economy & Growth,Community Investment Team,Private Contractors,Third Party Prov - Private,PH101,3/27/2018,510231,2000,REVENUE,ACCESS REGENERATION LTD,119929
North East Lincolnshire Council,http://statistics.data.gov.uk/id/local-authority/00FC),Chief Executive,Director Of Economy & Growth,Retained Function,Print Stationery / Gen Off Exp,Publicity,LD105,3/5/2018,505932,909.6,REVENUE,NOMADIC STRUCTURES (UK) LTD,101432
North East Lincolnshire Council,http://statistics.data.gov.uk/id/local-authority/00FC),Chief Executive,Director Of Economy & Growth,Retained Function,Communications And Computing,Computer S/Ware - Maintenance,LF102,3/29/2018,510919,1267.5,REVENUE,BLUESTORM DESIGN & MARKETING LTD,125864
North East Lincolnshire Council,http://statistics.data.gov.uk/id/local-authority/00FC),Chief Executive,Director Of Economy & Growth,Retained Function,Expenses,Course/Conf Accom - Employees,LH102,3/6/2018,506444,449.43,REVENUE,CLICK TRAVEL,127476
North East Lincolnshire Council,http://statistics.data.gov.uk/id/local-authority/00FC),Chief Executive,Director Of Economy & Growth,Retained Function,Grants And Subscriptions,Subscriptions,LJ101,3/19/2018,508657,885,REVENUE,NORTHERN HOUSING CONSORTIUM LTD,101467
North East Lincolnshire Council,http://statistics.data.gov.uk/id/local-authority/00FC),Chief Executive,Director Of Economy & Growth,Retained Function,Grants And Subscriptions,Subscriptions,LJ101,3/22/2018,508856,885,REVENUE,NORTHERN HOUSING CONSORTIUM LTD,101467
North East Lincolnshire Council,http://statistics.data.gov.uk/id/local-authority/00FC),Chief Executive,Director Of Economy & Growth,Retained Function,Private Contractors,Third Party Prov - Private,PH101,3/15/2018,508057,350,REVENUE,KERCHING RETAIL LTD,139531
North East Lincolnshire Council,http://statistics.data.gov.uk/id/local-authority/00FC),Chief Executive,Director Of Economy & Growth,Retained Function,Private Contractors,Third Party Prov - Private,PH101,3/12/2018,506772,1963.25,REVENUE,HYAS ASSOCIATES LTD,138801
North East Lincolnshire Council,http://statistics.data.gov.uk/id/local-authority/00FC),Chief Executive,Director Of Economy & Growth,Retained Function,Private Contractors,Third Party Prov - Private,PH101,3/12/2018,507398,5963.39,REVENUE,HYAS ASSOCIATES LTD,138801
North East Lincolnshire Council,http://statistics.data.gov.uk/id/local-authority/00FC),Chief Executive,Director Of Economy & Growth,Retained Function,Private Contractors,Third Party Prov - Private,PH101,3/29/2018,510478,15216,REVENUE,ATKINS LTD,101751
North East Lincolnshire Council,http://statistics.data.gov.uk/id/local-authority/00FC),Chief Executive,Director Of Economy & Growth,Retained Function,Print Stationery / Gen Off Exp,Publicity,LD105,3/5/2018,506055,1045,REVENUE,PRINTED4YOU LTD,133804
North East Lincolnshire Council,http://statistics.data.gov.uk/id/local-authority/00FC),Chief Executive,Director Of Economy & Growth,Retained Function,Print Stationery / Gen Off Exp,Publicity,LD105,3/15/2018,508077,950,REVENUE,NICK AUSTWICK PHOTOGRAPHY,139451
North East Lincolnshire Council,http://statistics.data.gov.uk/id/local-authority/00FC),Chief Executive,Director Of Economy & Growth,Retained Function,Print Stationery / Gen Off Exp,Publicity,LD105,3/29/2018,510934,1500,REVENUE,ESTUARY TV (OWNED BY GRIMSBY INSTITUTE),137899
North East Lincolnshire Council,http://statistics.data.gov.uk/id/local-authority/00FC),Chief Executive,Director Of Economy & Growth,Retained Function,Private Contractors,Third Party Prov - Private,PH101,3/15/2018,508081,900,REVENUE,SCARLETT ENTERTAINMENT & MANAGEMENT LTD,139548
North East Lincolnshire Council,http://statistics.data.gov.uk/id/local-authority/00FC),Chief Executive,Director Of Economy & Growth,Retained Function,Private Contractors,Third Party Prov - Private,PH101,3/29/2018,511004,979.6,REVENUE,FIRST MEDIA SOLUTIONS LTD,101489
North East Lincolnshire Council,http://statistics.data.gov.uk/id/local-authority/00FC),Chief Executive,Director Of Economy & Growth,Retained Function,Miscellaneous Expenses,Other Expenses General,LL119,3/20/2018,507872,1700,REVENUE,WESSEX ARCHAEOLOGY,124933
North East Lincolnshire Council,http://statistics.data.gov.uk/id/local-authority/00FC),Chief Executive,Director Of Economy & Growth,Retained Function,Miscellaneous Expenses,Other Expenses General,LL119,3/29/2018,510274,1446.46,REVENUE,ENGIE SERVICES LTD,133267
North East Lincolnshire Council,http://statistics.data.gov.uk/id/local-authority/00FC),Chief Executive,Director Of Economy & Growth,In Scope Contract,Private Contractors,Contract Payments,PH105,3/12/2018,507396,91194.33,REVENUE,ENGIE SERVICES LTD,133267
North East Lincolnshire Council,http://statistics.data.gov.uk/id/local-authority/00FC),Chief Executive,Director Of Economy & Growth,In Scope Contract,Private Contractors,Contract Payments,PH105,3/27/2018,510199,91194.33,REVENUE,ENGIE SERVICES LTD,133267
North East Lincolnshire Council,http://statistics.data.gov.uk/id/local-authority/00FC),Chief Executive,Director Of Economy & Growth,In Scope Contract,Private Contractors,Contract Payments,PH105,3/12/2018,507396,302612.06,REVENUE,ENGIE SERVICES LTD,133267
North East Lincolnshire Council,http://statistics.data.gov.uk/id/local-authority/00FC),Chief Executive,Director Of Economy & Growth,In Scope Contract,Private Contractors,Contract Payments,PH105,3/27/2018,510199,302612.06,REVENUE,ENGIE SERVICES LTD,133267
North East Lincolnshire Council,http://statistics.data.gov.uk/id/local-authority/00FC),Chief Executive,Director Of Economy & Growth,In Scope Contract,Private Contractors,Contract Payments,PH105,3/12/2018,507396,14292.9,REVENUE,ENGIE SERVICES LTD,133267
North East Lincolnshire Council,http://statistics.data.gov.uk/id/local-authority/00FC),Chief Executive,Director Of Economy & Growth,In Scope Contract,Private Contractors,Contract Payments,PH105,3/27/2018,510199,14292.9,REVENUE,ENGIE SERVICES LTD,133267
North East Lincolnshire Council,http://statistics.data.gov.uk/id/local-authority/00FC),Chief Executive,Director Of Economy & Growth,In Scope Contract,Private Contractors,Contract Payments,PH105,3/12/2018,507396,481855.2,REVENUE,ENGIE SERVICES LTD,133267
North East Lincolnshire Council,http://statistics.data.gov.uk/id/local-authority/00FC),Chief Executive,Director Of Economy & Growth,In Scope Contract,Private Contractors,Contract Payments,PH105,3/27/2018,510199,474585.21,REVENUE,ENGIE SERVICES LTD,133267
North East Lincolnshire Council,http://statistics.data.gov.uk/id/local-authority/00FC),Chief Executive,Director Of Economy & Growth,In Scope Contract,Private Contractors,Contract Payments,PH105,3/12/2018,507396,5586.38,REVENUE,ENGIE SERVICES LTD,133267
North East Lincolnshire Council,http://statistics.data.gov.uk/id/local-authority/00FC),Chief Executive,Director Of Economy & Growth,In Scope Contract,Private Contractors,Contract Payments,PH105,3/27/2018,510199,5586.38,REVENUE,ENGIE SERVICES LTD,133267
North East Lincolnshire Council,http://statistics.data.gov.uk/id/local-authority/00FC),Chief Executive,Director Of Economy & Growth,In Scope Contract,Private Contractors,Contract Payments,PH105,3/12/2018,507396,73327.11,REVENUE,ENGIE SERVICES LTD,133267
North East Lincolnshire Council,http://statistics.data.gov.uk/id/local-authority/00FC),Chief Executive,Director Of Economy & Growth,In Scope Contract,Private Contractors,Contract Payments,PH105,3/27/2018,510199,73327.11,REVENUE,ENGIE SERVICES LTD,133267
North East Lincolnshire Council,http://statistics.data.gov.uk/id/local-authority/00FC),Chief Executive,Director Of Economy & Growth,In Scope Contract,Private Contractors,Contract Payments,PH105,3/12/2018,507396,36096.39,REVENUE,ENGIE SERVICES LTD,133267
North East Lincolnshire Council,http://statistics.data.gov.uk/id/local-authority/00FC),Chief Executive,Director Of Economy & Growth,In Scope Contract,Private Contractors,Contract Payments,PH105,3/27/2018,510199,36096.39,REVENUE,ENGIE SERVICES LTD,133267
North East Lincolnshire Council,http://statistics.data.gov.uk/id/local-authority/00FC),Chief Executive,Director Of Economy & Growth,Car Parks,Miscellaneous Expenses,Other Expenses General,LL119,3/26/2018,509473,303.5,REVENUE,J MCCANN & CO LTD,100841
North East Lincolnshire Council,http://statistics.data.gov.uk/id/local-authority/00FC),Chief Executive,Director Of Economy & Growth,Drainage & Coastal Defence,Private Contractors,Third Party Prov - Private,PH101,3/5/2018,481666,2700,REVENUE,THE MARINE MANAGEMENT ORGANISATION,121622
North East Lincolnshire Council,http://statistics.data.gov.uk/id/local-authority/00FC),Chief Executive,Director Of Economy & Growth,Highways Dso,Dlo Holding,Depot Fuel Holding Account,LM101,3/8/2018,506626,17121.6,REVENUE,HARVEST ENERGY LTD,102544
North East Lincolnshire Council,http://statistics.data.gov.uk/id/local-authority/00FC),Chief Executive,Director Of Economy & Growth,Highways Dso,Dlo Holding,Depot Fuel Holding Account,LM101,3/22/2018,509043,16471.86,REVENUE,OIL NRG,138198
North East Lincolnshire Council,http://statistics.data.gov.uk/id/local-authority/00FC),Chief Executive,Director Of Economy & Growth,Highways Dso,Dlo Holding,Depot Fuel Holding Account,LM101,3/22/2018,509353,17259.27,REVENUE,OIL NRG,138198
North East Lincolnshire Council,http://statistics.data.gov.uk/id/local-authority/00FC),Chief Executive,Director Of Economy & Growth,Highways Dso,Dlo Holding,Depot Fuel Holding Account,LM101,3/29/2018,510120,1236,REVENUE,OIL NRG,138198
North East Lincolnshire Council,http://statistics.data.gov.uk/id/local-authority/00FC),Chief Executive,Director Of Economy & Growth,Highways Dso,Dlo Holding,Depot Fuel Holding Account,LM101,3/29/2018,510446,1225.74,REVENUE,OIL NRG,138198
North East Lincolnshire Council,http://statistics.data.gov.uk/id/local-authority/00FC),Chief Executive,Director Of Economy & Growth,Highways Structures,Energy Costs,Electricity,GB102,3/15/2018,508162,330,REVENUE,NPOWER,101368
North East Lincolnshire Council,http://statistics.data.gov.uk/id/local-authority/00FC),Chief Executive,Director Of Economy & Growth,Street Lighting,Private Contractors,Third Party Prov - Private,PH101,3/22/2018,509475,1051.99,REVENUE,J MCCANN & CO LTD,100841
North East Lincolnshire Council,http://statistics.data.gov.uk/id/local-authority/00FC),Chief Executive,Director Of Economy & Growth,Street Lighting,Rep Alterations Maint Building,Street Lighting - Energy,GA110,3/19/2018,508504,2808.72,REVENUE,NPOWER LIMITED,101414
North East Lincolnshire Council,http://statistics.data.gov.uk/id/local-authority/00FC),Chief Executive,Director Of Economy & Growth,Street Lighting,Rep Alterations Maint Building,Street Lighting-General Maint,GA111,3/22/2018,509475,4437.04,REVENUE,J MCCANN & CO LTD,100841
North East Lincolnshire Council,http://statistics.data.gov.uk/id/local-authority/00FC),Chief Executive,Director Of Economy & Growth,Street Lighting,Rep Alterations Maint Building,Street Lighting-General Maint,GA111,3/26/2018,509473,3897.08,REVENUE,J MCCANN & CO LTD,100841
North East Lincolnshire Council,http://statistics.data.gov.uk/id/local-authority/00FC),Chief Executive,Director Of Economy & Growth,Street Lighting,Rep Alterations Maint Building,Street Lighting-General Maint,GA111,3/22/2018,509390,456,REVENUE,SONDIA LIGHTING LTD,139588
North East Lincolnshire Council,http://statistics.data.gov.uk/id/local-authority/00FC),Chief Executive,Director Of Economy & Growth,Street Lighting,Rep Alterations Maint Building,Street Lighting - Energy,GA110,3/19/2018,508504,8075.06,REVENUE,NPOWER LIMITED,101414
North East Lincolnshire Council,http://statistics.data.gov.uk/id/local-authority/00FC),Chief Executive,Director Of Economy & Growth,Street Lighting,Rep Alterations Maint Building,Street Lighting - Energy,GA110,3/19/2018,508542,458.2,REVENUE,NPOWER LIMITED,101414
North East Lincolnshire Council,http://statistics.data.gov.uk/id/local-authority/00FC),Chief Executive,Director Of Economy & Growth,Street Lighting,Rep Alterations Maint Building,Street Lighting-General Maint,GA111,3/26/2018,509473,2130.28,REVENUE,J MCCANN & CO LTD,100841
North East Lincolnshire Council,http://statistics.data.gov.uk/id/local-authority/00FC),Chief Executive,Director Of Economy & Growth,Street Lighting,Rep Alterations Maint Building,Street Light-Irrecoverable Dam,GA112,3/26/2018,509473,1495.35,REVENUE,J MCCANN & CO LTD,100841
North East Lincolnshire Council,http://statistics.data.gov.uk/id/local-authority/00FC),Chief Executive,Director Of Economy & Growth,Street Lighting,Rep Alterations Maint Building,Traffic Signs / Signals,GA113,3/22/2018,509475,874.14,REVENUE,J MCCANN & CO LTD,100841
North East Lincolnshire Council,http://statistics.data.gov.uk/id/local-authority/00FC),Chief Executive,Director Of Economy & Growth,Street Lighting,Rep Alterations Maint Building,Traffic Signs / Signals,GA113,3/26/2018,509473,789.98,REVENUE,J MCCANN & CO LTD,100841
North East Lincolnshire Council,http://statistics.data.gov.uk/id/local-authority/00FC),Chief Executive,Director Of Economy & Growth,Street Lighting,Private Contractors,Third Party Prov - Private,PH101,3/13/2018,507442,927.85,REVENUE,NORTHERN POWERGRID (YORKSHIRE) PLC,108328
North East Lincolnshire Council,http://statistics.data.gov.uk/id/local-authority/00FC),Chief Executive,Director Of Economy & Growth,Street Lighting,Private Contractors,Third Party Prov - Private,PH101,3/22/2018,509475,1028.4,REVENUE,J MCCANN & CO LTD,100841
North East Lincolnshire Council,http://statistics.data.gov.uk/id/local-authority/00FC),Chief Executive,Director Of Economy & Growth,Street Lighting,Rep Alterations Maint Building,Street Lighting - Energy,GA110,3/19/2018,508540,1237.85,REVENUE,NPOWER LIMITED,101414
North East Lincolnshire Council,http://statistics.data.gov.uk/id/local-authority/00FC),Chief Executive,Director Of Economy & Growth,Street Lighting,Rep Alterations Maint Building,Street Lighting - Energy,GA110,3/19/2018,508504,24225.19,REVENUE,NPOWER LIMITED,101414
North East Lincolnshire Council,http://statistics.data.gov.uk/id/local-authority/00FC),Chief Executive,Director Of Economy & Growth,Street Lighting,Rep Alterations Maint Building,Street Lighting - Energy,GA110,3/19/2018,508542,1374.6,REVENUE,NPOWER LIMITED,101414
North East Lincolnshire Council,http://statistics.data.gov.uk/id/local-authority/00FC),Chief Executive,Director Of Economy & Growth,Street Lighting,Rep Alterations Maint Building,Street Lighting-General Maint,GA111,3/22/2018,509475,7700.05,REVENUE,J MCCANN & CO LTD,100841
North East Lincolnshire Council,http://statistics.data.gov.uk/id/local-authority/00FC),Chief Executive,Director Of Economy & Growth,Street Lighting,Rep Alterations Maint Building,Street Lighting-General Maint,GA111,3/26/2018,509473,4027.68,REVENUE,J MCCANN & CO LTD,100841
North East Lincolnshire Council,http://statistics.data.gov.uk/id/local-authority/00FC),Chief Executive,Director Of Economy & Growth,Street Lighting,Rep Alterations Maint Building,Street Lighting-General Maint,GA111,3/26/2018,509474,1365.57,REVENUE,J MCCANN & CO LTD,100841
North East Lincolnshire Council,http://statistics.data.gov.uk/id/local-authority/00FC),Chief Executive,Director Of Economy & Growth,Street Lighting,Rep Alterations Maint Building,Street Lighting-General Maint,GA111,3/22/2018,509475,688.49,REVENUE,J MCCANN & CO LTD,100841
North East Lincolnshire Council,http://statistics.data.gov.uk/id/local-authority/00FC),Chief Executive,Director Of Economy & Growth,Street Lighting,Rep Alterations Maint Building,Street Lighting-General Maint,GA111,3/26/2018,509473,732.37,REVENUE,J MCCANN & CO LTD,100841
North East Lincolnshire Council,http://statistics.data.gov.uk/id/local-authority/00FC),Chief Executive,Director Of Economy & Growth,Street Lighting,Rep Alterations Maint Building,Street Lighting-General Maint,GA111,3/29/2018,510816,1080.63,REVENUE,NEWBURN POWER RENTAL LTD,134135
North East Lincolnshire Council,http://statistics.data.gov.uk/id/local-authority/00FC),Chief Executive,Director Of Economy & Growth,Street Lighting,Rep Alterations Maint Building,Street Lighting-General Maint,GA111,3/29/2018,510816,479.4,REVENUE,NEWBURN POWER RENTAL LTD,134135
North East Lincolnshire Council,http://statistics.data.gov.uk/id/local-authority/00FC),Chief Executive,Director Of Economy & Growth,Street Lighting,Rep Alterations Maint Building,Street Light-Irrecoverable Dam,GA112,3/22/2018,509475,703.76,REVENUE,J MCCANN & CO LTD,100841
North East Lincolnshire Council,http://statistics.data.gov.uk/id/local-authority/00FC),Chief Executive,Director Of Economy & Growth,Street Lighting,Rep Alterations Maint Building,Traffic Mgmt-Irrecoverable Dam,GA115,3/26/2018,509473,315.98,REVENUE,J MCCANN & CO LTD,100841
North East Lincolnshire Council,http://statistics.data.gov.uk/id/local-authority/00FC),Chief Executive,Director Of Economy & Growth,Street Lighting,Rep Alterations Maint Building,Traffic Mgmt-Irrecoverable Dam,GA115,3/22/2018,509475,435.15,REVENUE,J MCCANN & CO LTD,100841
North East Lincolnshire Council,http://statistics.data.gov.uk/id/local-authority/00FC),Chief Executive,Director Of Economy & Growth,Street Lighting,Rep Alterations Maint Building,Traffic Signs / Signals,GA113,3/22/2018,509475,2653.9,REVENUE,J MCCANN & CO LTD,100841
North East Lincolnshire Council,http://statistics.data.gov.uk/id/local-authority/00FC),Chief Executive,Director Of Economy & Growth,Street Lighting,Rep Alterations Maint Building,Traffic Signs / Signals,GA113,3/26/2018,509473,1025.77,REVENUE,J MCCANN & CO LTD,100841
North East Lincolnshire Council,http://statistics.data.gov.uk/id/local-authority/00FC),Chief Executive,Director Of Economy & Growth,Street Lighting,Rep Alterations Maint Building,Traffic Signs / Signals,GA113,3/22/2018,509475,833.17,REVENUE,J MCCANN & CO LTD,100841
North East Lincolnshire Council,http://statistics.data.gov.uk/id/local-authority/00FC),Chief Executive,Director Of Economy & Growth,Street Lighting,Rep Alterations Maint Building,Traffic Signs / Signals,GA113,3/26/2018,509473,1115.91,REVENUE,J MCCANN & CO LTD,100841
North East Lincolnshire Council,http://statistics.data.gov.uk/id/local-authority/00FC),Chief Executive,Director Of Economy & Growth,Street Lighting,Private Contractors,Third Party Prov - Private,PH101,3/26/2018,509474,1014.66,REVENUE,J MCCANN & CO LTD,100841
North East Lincolnshire Council,http://statistics.data.gov.uk/id/local-authority/00FC),Chief Executive,Director Of Economy & Growth,Street Lighting,Private Contractors,Third Party Prov - Private,PH101,3/22/2018,509475,1167.56,REVENUE,J MCCANN & CO LTD,100841
North East Lincolnshire Council,http://statistics.data.gov.uk/id/local-authority/00FC),Chief Executive,Director Of Economy & Growth,Street Lighting,Private Contractors,Third Party Prov - Private,PH101,3/26/2018,509473,605.84,REVENUE,J MCCANN & CO LTD,100841
North East Lincolnshire Council,http://statistics.data.gov.uk/id/local-authority/00FC),Chief Executive,Director Of Economy & Growth,Street Lighting,Private Contractors,Third Party Prov - Private,PH101,3/12/2018,507441,1081.12,REVENUE,NORTHERN POWERGRID (YORKSHIRE) PLC,108328
North East Lincolnshire Council,http://statistics.data.gov.uk/id/local-authority/00FC),Chief Executive,Director Of Economy & Growth,Street Lighting,Private Contractors,Third Party Prov - Private,PH101,3/22/2018,509472,457.5,REVENUE,J MCCANN & CO LTD,100841
North East Lincolnshire Council,http://statistics.data.gov.uk/id/local-authority/00FC),Chief Executive,Director Of Economy & Growth,Street Lighting,Rep Alterations Maint Building,Buildings - Repairs And Maint,GA102,3/26/2018,509473,11921.78,REVENUE,J MCCANN & CO LTD,100841
North East Lincolnshire Council,http://statistics.data.gov.uk/id/local-authority/00FC),Chief Executive,Director Of Economy & Growth,Traffic Management,Private Contractors,Third Party Prov - Private,PH101,3/13/2018,507607,3920,REVENUE,LINCS INSPIRE LIMITED,129063
North East Lincolnshire Council,http://statistics.data.gov.uk/id/local-authority/00FC),Chief Executive,Director Of Economy & Growth,Traffic Management,Private Contractors,Third Party Prov - Private,PH101,3/13/2018,507608,5720,REVENUE,LINCS INSPIRE LIMITED,129063
North East Lincolnshire Council,http://statistics.data.gov.uk/id/local-authority/00FC),Chief Executive,Director Of Economy & Growth,Traffic Management,Private Contractors,Third Party Prov - Private,PH101,3/13/2018,507610,800,REVENUE,LINCS INSPIRE LIMITED,129063
North East Lincolnshire Council,http://statistics.data.gov.uk/id/local-authority/00FC),Chief Executive,Director Of Economy & Growth,Transport Policy,Private Contractors,Concessionary Fares,PH104,3/5/2018,505968,REDACTED COMMERCIALLY SENSITIVE,REVENUE,ARRIVA RAIL NORTH LTD,134093
North East Lincolnshire Council,http://statistics.data.gov.uk/id/local-authority/00FC),Chief Executive,Director Of Economy & Growth,Transport Policy,Private Contractors,Concessionary Fares,PH104,3/8/2018,506350,317.25,REVENUE,ESP SYSTEX LTD,102062
North East Lincolnshire Council,http://statistics.data.gov.uk/id/local-authority/00FC),Chief Executive,Director Of Economy & Growth,Transport Policy,Private Contractors,Concessionary Fares,PH104,3/8/2018,506323,REDACTED COMMERCIALLY SENSITIVE,REVENUE,F HUNT ( COACH HIRE) LTD,104034
North East Lincolnshire Council,http://statistics.data.gov.uk/id/local-authority/00FC),Chief Executive,Director Of Economy & Growth,Transport Policy,Private Contractors,Concessionary Fares,PH104,3/8/2018,506324,REDACTED COMMERCIALLY SENSITIVE,REVENUE,F HUNT ( COACH HIRE) LTD,104034
North East Lincolnshire Council,http://statistics.data.gov.uk/id/local-authority/00FC),Chief Executive,Director Of Economy & Growth,Transport Policy,Private Contractors,Concessionary Fares,PH104,3/27/2018,509545,REDACTED COMMERCIALLY SENSITIVE,REVENUE,GY CLPS & DISTRICT DIAL A RIDE,100980
North East Lincolnshire Council,http://statistics.data.gov.uk/id/local-authority/00FC),Chief Executive,Director Of Economy & Growth,Transport Policy,Private Contractors,Contract Payments,PH105,3/19/2018,508659,20219.53,REVENUE,ESSENTIAL FLEET SERVICES LTD,101159
North East Lincolnshire Council,http://statistics.data.gov.uk/id/local-authority/00FC),Chief Executive,Director Of Economy & Growth,Transport Policy,Private Contractors,Contract Payments,PH105,3/20/2018,508662,20256.23,REVENUE,ESSENTIAL FLEET SERVICES LTD,101159
North East Lincolnshire Council,http://statistics.data.gov.uk/id/local-authority/00FC),Chief Executive,Director Of Economy & Growth,Transport Policy,Private Contractors,Contract Payments,PH105,3/29/2018,510241,20138.93,REVENUE,ESSENTIAL FLEET SERVICES LTD,101159
North East Lincolnshire Council,http://statistics.data.gov.uk/id/local-authority/00FC),Chief Executive,Director Of Economy & Growth,Transport Policy,Consultancy,Consultancy,PL101,3/29/2018,510993,4999,REVENUE,HUMBER AND WOLDS RURAL COMMUNITY COUNCIL,134026
North East Lincolnshire Council,http://statistics.data.gov.uk/id/local-authority/00FC),Chief Executive,Director Of Economy & Growth,Transport Policy,Consultancy,Consultancy,PL101,3/29/2018,510994,4999,REVENUE,HUMBER AND WOLDS RURAL COMMUNITY COUNCIL,134026
North East Lincolnshire Council,http://statistics.data.gov.uk/id/local-authority/00FC),Chief Executive,Director Of Economy & Growth,Transport Policy,Consultancy,Consultancy,PL101,3/29/2018,510286,7650.44,REVENUE,ENGIE SERVICES LTD,133267
North East Lincolnshire Council,http://statistics.data.gov.uk/id/local-authority/00FC),Chief Executive,Director Of Economy & Growth,Transport Policy,Print Stationery / Gen Off Exp,Advertising,LD104,3/29/2018,510520,14000,REVENUE,CYCLE STREETS LTD,139402
North East Lincolnshire Council,http://statistics.data.gov.uk/id/local-authority/00FC),Chief Executive,Director Of Economy & Growth,Transport Policy,Voluntary Associations,Third Pp - Third Sector,PF101,3/8/2018,506628,1000,REVENUE,GRIMSBY CYCLE HUB,119476
North East Lincolnshire Council,http://statistics.data.gov.uk/id/local-authority/00FC),Chief Executive,Director Of Economy & Growth,Transport Policy,Voluntary Associations,Third Pp - Third Sector,PF101,3/22/2018,509334,470.77,REVENUE,IDEAS BY NET,107022
North East Lincolnshire Council,http://statistics.data.gov.uk/id/local-authority/00FC),Chief Executive,Director Of Economy & Growth,Transport Policy,Private Contractors,Contract Payments,PH105,3/13/2018,507609,4000,REVENUE,LINCS INSPIRE LIMITED,129063
North East Lincolnshire Council,http://statistics.data.gov.uk/id/local-authority/00FC),Chief Executive,Director Of Economy & Growth,Transport Policy,Private Contractors,Subsidies,PH102,3/5/2018,505649,1069.44,REVENUE,ENGIE SERVICES LTD,133267
North East Lincolnshire Council,http://statistics.data.gov.uk/id/local-authority/00FC),Chief Executive,Director Of Economy & Growth,Transport Policy,Private Contractors,Subsidies,PH102,3/26/2018,510038,21735,REVENUE,LINCOLN BUSINESS INPROVEMENT GROUP,138153
North East Lincolnshire Council,http://statistics.data.gov.uk/id/local-authority/00FC),Chief Executive,Director Of Economy & Growth,Transport Policy,Private Contractors,Subsidies,PH102,3/5/2018,494596,2000,REVENUE,THE CITY OF HULL ENVIRONMENT FORUM,108032
North East Lincolnshire Council,http://statistics.data.gov.uk/id/local-authority/00FC),Chief Executive,Director Of Economy & Growth,Transport Policy,Private Contractors,Subsidies,PH102,3/29/2018,510221,22985,REVENUE,AUTOCROSS EUROSHEL LTD,139206
North East Lincolnshire Council,http://statistics.data.gov.uk/id/local-authority/00FC),Chief Executive,Director Of Economy & Growth,Transport Policy,Private Contractors,Subsidies,PH102,3/8/2018,506320,550,REVENUE,NIMBUS JOURNEY INFORMATION LTD,124772
North East Lincolnshire Council,http://statistics.data.gov.uk/id/local-authority/00FC),Chief Executive,Director Of Economy & Growth,Transport Policy,Private Contractors,Subsidies,PH102,3/29/2018,510220,2025,REVENUE,AUTOCROSS EUROSHEL LTD,139206
North East Lincolnshire Council,http://statistics.data.gov.uk/id/local-authority/00FC),Chief Executive,Director Of Economy & Growth,Transport Policy,Consultancy,Consultancy,PL101,3/29/2018,510281,566.96,REVENUE,ENGIE SERVICES LTD,133267
North East Lincolnshire Council,http://statistics.data.gov.uk/id/local-authority/00FC),Chief Executive,Director Of Economy & Growth,Transport Policy,Consultancy,Consultancy,PL101,3/22/2018,509329,329,REVENUE,GRIMSBY CYCLE HUB,119476
North East Lincolnshire Council,http://statistics.data.gov.uk/id/local-authority/00FC),Chief Executive,Director Of Economy & Growth,Energy Project,Consultancy,Consultancy,PL101,3/12/2018,507510,24500,REVENUE,ENGIE SERVICES LTD,133267
North East Lincolnshire Council,http://statistics.data.gov.uk/id/local-authority/00FC),Chief Executive,Shared Services,Accountancy,Grants And Subscriptions,Subscriptions,LJ101,3/6/2018,506032,2167.5,REVENUE,PSTAX,139362
North East Lincolnshire Council,http://statistics.data.gov.uk/id/local-authority/00FC),Chief Executive,Shared Services,Accountancy,Government Departments,Third Party Prov - Govt Depts,PE101,3/15/2018,508091,33005.36,REVENUE,KPMG FEES ACCOUNT,101071
North East Lincolnshire Council,http://statistics.data.gov.uk/id/local-authority/00FC),Chief Executive,Shared Services,Accountancy,Communications And Computing,Computer S/Ware - Maintenance,LF102,3/13/2018,507602,676.65,REVENUE,WELCOM DIGITAL LIMITED,104463
North East Lincolnshire Council,http://statistics.data.gov.uk/id/local-authority/00FC),Chief Executive,Shared Services,Benefit Payments & Subsidy,Housing Benefit,Rent Allow General,QC101,3/19/2018,576860,570.72,REVENUE,REDACTED PERSONAL INFORMATION,REDACTED PERSONAL INFORMATION
North East Lincolnshire Council,http://statistics.data.gov.uk/id/local-authority/00FC),Chief Executive,Shared Services,Local Taxation & Benefits,Indirect Employee Expenses,Staff Training,EB122,3/12/2018,505384,6200,REVENUE,CIVICA UK LIMITED,103029
North East Lincolnshire Council,http://statistics.data.gov.uk/id/local-authority/00FC),Chief Executive,Shared Services,Local Taxation & Benefits,Communications And Computing,Computer S/Ware - Maintenance,LF102,3/12/2018,507409,1858.39,REVENUE,NORTHGATE PUBLIC SERVICES (UK) LTD,101841
North East Lincolnshire Council,http://statistics.data.gov.uk/id/local-authority/00FC),Chief Executive,Shared Services,Local Taxation & Benefits,Communications And Computing,Computer S/Ware - Maintenance,LF102,3/12/2018,507410,394.57,REVENUE,NORTHGATE PUBLIC SERVICES (UK) LTD,101841
North East Lincolnshire Council,http://statistics.data.gov.uk/id/local-authority/00FC),Chief Executive,Shared Services,Local Taxation & Benefits,Communications And Computing,Computer S/Ware - Maintenance,LF102,3/13/2018,507472,5387.04,REVENUE,NORTHGATE PUBLIC SERVICES (UK) LTD,101841
North East Lincolnshire Council,http://statistics.data.gov.uk/id/local-authority/00FC),Chief Executive,Shared Services,Local Taxation & Benefits,Communications And Computing,Computer S/Ware - Maintenance,LF102,3/22/2018,509456,5066.7,REVENUE,VICTORIA SOLUTIONS (T/A VICTORIA FORMS),129023
North East Lincolnshire Council,http://statistics.data.gov.uk/id/local-authority/00FC),Chief Executive,Shared Services,Local Taxation & Benefits,Communications And Computing,Computer S/Ware - Maintenance,LF102,3/5/2018,505383,650,REVENUE,CIVICA UK LIMITED,103029
North East Lincolnshire Council,http://statistics.data.gov.uk/id/local-authority/00FC),Chief Executive,Shared Services,Local Taxation & Benefits,Communications And Computing,Computer S/Ware - Maintenance,LF102,3/12/2018,506407,850,REVENUE,CIVICA UK LIMITED,103029
North East Lincolnshire Council,http://statistics.data.gov.uk/id/local-authority/00FC),Chief Executive,Shared Services,Local Taxation & Benefits,Communications And Computing,Computer S/Ware - Maintenance,LF102,3/15/2018,506353,2250,REVENUE,VICTORIA SOLUTIONS (T/A VICTORIA FORMS),129023
North East Lincolnshire Council,http://statistics.data.gov.uk/id/local-authority/00FC),Chief Executive,Shared Services,Local Taxation & Benefits,Communications And Computing,Postage,LF111,3/19/2018,508549,2469.99,REVENUE,CAPITA BUSINESS SERVICES LTD,102314
North East Lincolnshire Council,http://statistics.data.gov.uk/id/local-authority/00FC),Chief Executive,Shared Services,Local Taxation & Benefits,Private Contractors,External Security Services,PH103,3/12/2018,507376,1365.09,REVENUE,ALLPAY LIMITED,112919
North East Lincolnshire Council,http://statistics.data.gov.uk/id/local-authority/00FC),Chief Executive,Shared Services,Local Taxation & Benefits,Miscellaneous Expenses,Debt Recovery Costs,LL111,3/6/2018,506343,250.5,REVENUE,WILKIN CHAPMAN LLP,110675
North East Lincolnshire Council,http://statistics.data.gov.uk/id/local-authority/00FC),Chief Executive,Shared Services,Local Taxation & Benefits,Miscellaneous Expenses,Debt Recovery Costs,LL111,3/6/2018,506345,400,REVENUE,WILKIN CHAPMAN LLP,110675
North East Lincolnshire Council,http://statistics.data.gov.uk/id/local-authority/00FC),Chief Executive,Shared Services,Local Taxation & Benefits,Miscellaneous Expenses,Debt Recovery Costs,LL111,3/13/2018,507508,1403,REVENUE,WILKIN CHAPMAN LLP,110675
North East Lincolnshire Council,http://statistics.data.gov.uk/id/local-authority/00FC),Chief Executive,Shared Services,Local Taxation & Benefits,Miscellaneous Expenses,Other Supplies & Services,LL110,3/22/2018,509754,8900,REVENUE,INFORM CPI LTD,124803
North East Lincolnshire Council,http://statistics.data.gov.uk/id/local-authority/00FC),Chief Executive,Shared Services,Local Taxation & Benefits,Miscellaneous Expenses,Other Supplies & Services,LL110,3/13/2018,507466,25900,REVENUE,INFORM CPI LTD,124803
North East Lincolnshire Council,http://statistics.data.gov.uk/id/local-authority/00FC),Chief Executive,Shared Services,Local Taxation & Benefits,Miscellaneous Expenses,Other Supplies & Services,LL110,3/26/2018,510264,14950,REVENUE,INFORM CPI LTD,124803
North East Lincolnshire Council,http://statistics.data.gov.uk/id/local-authority/00FC),Chief Executive,Shared Services,Shared Services Lead,Miscellaneous Expenses,Other Expenses General,LL119,3/22/2018,509743,2000,REVENUE,MISHCON DE REYA,133532
North East Lincolnshire Council,http://statistics.data.gov.uk/id/local-authority/00FC),Chief Executive,Shared Services,Shared Services Lead,Communications And Computing,Computer S/Ware - Maintenance,LF102,3/5/2018,505761,-678.75,REVENUE,ADVANCED BUSINESS SOLUTIONS,101614
North East Lincolnshire Council,http://statistics.data.gov.uk/id/local-authority/00FC),Chief Executive,Shared Services,I.T Shared Service,Communications And Computing,Telephones,LF112,3/26/2018,509670,7818.99,REVENUE,VIRGIN MEDIA,107612
North East Lincolnshire Council,http://statistics.data.gov.uk/id/local-authority/00FC),Chief Executive,Shared Services,I.T Shared Service,Communications And Computing,Computer H/Ware - Maintenance,LF106,3/26/2018,509591,1055,REVENUE,ASSURED FIRE & SECURITY,102014
North East Lincolnshire Council,http://statistics.data.gov.uk/id/local-authority/00FC),Chief Executive,Shared Services,I.T Shared Service,Communications And Computing,Computer H/Ware - Maintenance,LF106,3/26/2018,509591,520,REVENUE,ASSURED FIRE & SECURITY,102014
North East Lincolnshire Council,http://statistics.data.gov.uk/id/local-authority/00FC),Chief Executive,Shared Services,I.T Shared Service,Communications And Computing,Computer H/Ware - Purchases,LF105,3/26/2018,510076,-7000.95,REVENUE,VIRGIN MEDIA,107612
North East Lincolnshire Council,http://statistics.data.gov.uk/id/local-authority/00FC),Chief Executive,Shared Services,I.T Shared Service,Communications And Computing,Computer H/Ware - Purchases,LF105,3/29/2018,510946,2913.78,REVENUE,INSIGHT DIRECT (UK) LTD,101011
North East Lincolnshire Council,http://statistics.data.gov.uk/id/local-authority/00FC),Chief Executive,Shared Services,I.T Shared Service,Communications And Computing,Computer H/Ware - Purchases,LF105,3/29/2018,510983,1995,REVENUE,XMA LIMITED,100699
North East Lincolnshire Council,http://statistics.data.gov.uk/id/local-authority/00FC),Chief Executive,Shared Services,I.T Shared Service,Communications And Computing,Computer H/Ware - Purchases,LF105,3/27/2018,510161,731.56,REVENUE,TRUSTMARQUE SOLUTIONS LTD,101275
North East Lincolnshire Council,http://statistics.data.gov.uk/id/local-authority/00FC),Chief Executive,Shared Services,I.T Shared Service,Communications And Computing,Computer H/Ware - Purchases,LF105,3/29/2018,510178,546.63,REVENUE,INSIGHT DIRECT (UK) LTD,101011
North East Lincolnshire Council,http://statistics.data.gov.uk/id/local-authority/00FC),Chief Executive,Shared Services,I.T Shared Service,Communications And Computing,Computer H/Ware - Purchases,LF105,3/29/2018,510822,507.36,REVENUE,EDEN TELECOM LTD,135601
North East Lincolnshire Council,http://statistics.data.gov.uk/id/local-authority/00FC),Chief Executive,Shared Services,I.T Shared Service,Communications And Computing,Computer S/Ware - Licences,LF103,3/29/2018,510240,1317.5,REVENUE,PHOENIX SOFTWARE LTD,100753
North East Lincolnshire Council,http://statistics.data.gov.uk/id/local-authority/00FC),Chief Executive,Shared Services,I.T Shared Service,Communications And Computing,Computer S/Ware - Licences,LF103,3/29/2018,510240,31041.96,REVENUE,PHOENIX SOFTWARE LTD,100753
North East Lincolnshire Council,http://statistics.data.gov.uk/id/local-authority/00FC),Chief Executive,Shared Services,I.T Shared Service,Communications And Computing,Computer S/Ware - Licences,LF103,3/29/2018,510240,479.88,REVENUE,PHOENIX SOFTWARE LTD,100753
North East Lincolnshire Council,http://statistics.data.gov.uk/id/local-authority/00FC),Chief Executive,Shared Services,I.T Shared Service,Communications And Computing,Computer S/Ware - Licences,LF103,3/29/2018,510238,1106.56,REVENUE,PHOENIX SOFTWARE LTD,100753
North East Lincolnshire Council,http://statistics.data.gov.uk/id/local-authority/00FC),Chief Executive,Shared Services,I.T Shared Service,Communications And Computing,Computer S/Ware - Maintenance,LF102,3/8/2018,507126,1087.59,REVENUE,MICROGEN BANKING SYSTEMS LIMITED,119325
North East Lincolnshire Council,http://statistics.data.gov.uk/id/local-authority/00FC),Chief Executive,Shared Services,I.T Shared Service,Communications And Computing,Computer S/Ware - Maintenance,LF102,3/22/2018,508685,999.23,REVENUE,NATIONAL CONSORTIUM FOR EXAMINATION RESULTS,110067
North East Lincolnshire Council,http://statistics.data.gov.uk/id/local-authority/00FC),Chief Executive,Shared Services,I.T Shared Service,Communications And Computing,Computer S/Ware - Maintenance,LF102,3/22/2018,508685,4331.87,REVENUE,NATIONAL CONSORTIUM FOR EXAMINATION RESULTS,110067
North East Lincolnshire Council,http://statistics.data.gov.uk/id/local-authority/00FC),Chief Executive,Shared Services,I.T Shared Service,Communications And Computing,Computer S/Ware - Maintenance,LF102,3/15/2018,507522,52204.44,REVENUE,ORACLE CORPORATION UK LTD,100696
North East Lincolnshire Council,http://statistics.data.gov.uk/id/local-authority/00FC),Chief Executive,Shared Services,I.T Shared Service,Communications And Computing,Computer S/Ware - Maintenance,LF102,3/8/2018,505922,375,REVENUE,AUDITWARE SYSTEMS LIMITED,109453
North East Lincolnshire Council,http://statistics.data.gov.uk/id/local-authority/00FC),Chief Executive,Shared Services,I.T Shared Service,Communications And Computing,Computer S/Ware - Maintenance,LF102,3/8/2018,505922,335,REVENUE,AUDITWARE SYSTEMS LIMITED,109453
North East Lincolnshire Council,http://statistics.data.gov.uk/id/local-authority/00FC),Chief Executive,Shared Services,I.T Shared Service,Communications And Computing,Computer S/Ware - Maintenance,LF102,3/26/2018,509246,15917.34,REVENUE,MIDLAND SOFTWARE LTD,102633
North East Lincolnshire Council,http://statistics.data.gov.uk/id/local-authority/00FC),Chief Executive,Shared Services,I.T Shared Service,Communications And Computing,Computer S/Ware - Maintenance,LF102,3/22/2018,509558,2722.44,REVENUE,ADVANCED BUSINESS SOLUTIONS,101614
North East Lincolnshire Council,http://statistics.data.gov.uk/id/local-authority/00FC),Chief Executive,Shared Services,I.T Shared Service,Communications And Computing,Computer S/Ware - Maintenance,LF102,3/22/2018,509558,2929.23,REVENUE,ADVANCED BUSINESS SOLUTIONS,101614
North East Lincolnshire Council,http://statistics.data.gov.uk/id/local-authority/00FC),Chief Executive,Shared Services,I.T Shared Service,Communications And Computing,Computer S/Ware - Maintenance,LF102,3/22/2018,509558,28131.85,REVENUE,ADVANCED BUSINESS SOLUTIONS,101614
North East Lincolnshire Council,http://statistics.data.gov.uk/id/local-authority/00FC),Chief Executive,Shared Services,I.T Shared Service,Communications And Computing,Computer S/Ware - Maintenance,LF102,3/22/2018,509558,3633.69,REVENUE,ADVANCED BUSINESS SOLUTIONS,101614
North East Lincolnshire Council,http://statistics.data.gov.uk/id/local-authority/00FC),Chief Executive,Shared Services,I.T Shared Service,Communications And Computing,Computer S/Ware - Maintenance,LF102,3/22/2018,509558,10315.02,REVENUE,ADVANCED BUSINESS SOLUTIONS,101614
North East Lincolnshire Council,http://statistics.data.gov.uk/id/local-authority/00FC),Chief Executive,Shared Services,I.T Shared Service,Communications And Computing,Computer S/Ware - Purchases,LF101,3/12/2018,507011,7607.5,REVENUE,IMERJA LTD,102238
North East Lincolnshire Council,http://statistics.data.gov.uk/id/local-authority/00FC),Chief Executive,Shared Services,Human Resources,Direct Employee Expenses,Agency Staff,EA105,3/19/2018,508655,18199.27,REVENUE,MATRIX SCM LTD,108117
North East Lincolnshire Council,http://statistics.data.gov.uk/id/local-authority/00FC),Chief Executive,Shared Services,Human Resources,Direct Employee Expenses,Agency Staff,EA105,3/29/2018,511002,18601.3,REVENUE,MATRIX SCM LTD,108117
North East Lincolnshire Council,http://statistics.data.gov.uk/id/local-authority/00FC),Chief Executive,Shared Services,Human Resources,Direct Employee Expenses,Agency Staff,EA105,3/5/2018,506054,20875.11,REVENUE,MATRIX SCM LTD,108117
North East Lincolnshire Council,http://statistics.data.gov.uk/id/local-authority/00FC),Chief Executive,Shared Services,Human Resources,Direct Employee Expenses,Agency Staff,EA105,3/13/2018,507653,16255.62,REVENUE,MATRIX SCM LTD,108117
North East Lincolnshire Council,http://statistics.data.gov.uk/id/local-authority/00FC),Chief Executive,Shared Services,Human Resources,Direct Employee Expenses,Agency Staff,EA105,3/15/2018,508138,19948.96,REVENUE,MATRIX SCM LTD,108117
North East Lincolnshire Council,http://statistics.data.gov.uk/id/local-authority/00FC),Chief Executive,Shared Services,Human Resources,Direct Employee Expenses,Agency Staff,EA105,3/26/2018,510012,15619.96,REVENUE,MATRIX SCM LTD,108117
North East Lincolnshire Council,http://statistics.data.gov.uk/id/local-authority/00FC),Chief Executive,Shared Services,Human Resources,Indirect Employee Expenses,Disclosure Checks,EB124,3/8/2018,506689,5720,REVENUE,DISCLOSURE & BARRING SERVICE,119180
North East Lincolnshire Council,http://statistics.data.gov.uk/id/local-authority/00FC),Chief Executive,Shared Services,Human Resources,Indirect Employee Expenses,Staff Training,EB122,3/20/2018,577629,1416.64,REVENUE,REDACTED PERSONAL INFORMATION,REDACTED PERSONAL INFORMATION
North East Lincolnshire Council,http://statistics.data.gov.uk/id/local-authority/00FC),Chief Executive,Shared Services,Human Resources,Indirect Employee Expenses,Staff Training,EB122,3/20/2018,577627,1416.64,REVENUE,REDACTED PERSONAL INFORMATION,REDACTED PERSONAL INFORMATION
North East Lincolnshire Council,http://statistics.data.gov.uk/id/local-authority/00FC),Chief Executive,Shared Services,Human Resources,Indirect Employee Expenses,Staff Training,EB122,3/20/2018,577628,1416.64,REVENUE,REDACTED PERSONAL INFORMATION,REDACTED PERSONAL INFORMATION
North East Lincolnshire Council,http://statistics.data.gov.uk/id/local-authority/00FC),Chief Executive,Shared Services,Human Resources,Indirect Employee Expenses,Staff Training,EB122,3/12/2018,507458,303,REVENUE,CHARTERED INSTITUTE OF,100641
North East Lincolnshire Council,http://statistics.data.gov.uk/id/local-authority/00FC),Chief Executive,Shared Services,Human Resources,Indirect Employee Expenses,Staff Training,EB122,3/12/2018,506771,1050,REVENUE,MRS S BARNSLEY,101143
North East Lincolnshire Council,http://statistics.data.gov.uk/id/local-authority/00FC),Chief Executive,Shared Services,Human Resources,Indirect Employee Expenses,Staff Training,EB122,3/29/2018,510932,450,REVENUE,THE GRIMSBY INSTITUTE OF FURTHER,102742
North East Lincolnshire Council,http://statistics.data.gov.uk/id/local-authority/00FC),Chief Executive,Shared Services,Human Resources,Indirect Employee Expenses,Staff Training,EB122,3/15/2018,508123,427.99,REVENUE,STEAMING LTD,101698
North East Lincolnshire Council,http://statistics.data.gov.uk/id/local-authority/00FC),Chief Executive,Shared Services,Human Resources,Indirect Employee Expenses,Staff Training,EB122,3/20/2018,508266,3000,REVENUE,VIRTUAL COLLEGE LTD,105926
North East Lincolnshire Council,http://statistics.data.gov.uk/id/local-authority/00FC),Chief Executive,Shared Services,Human Resources,Indirect Employee Expenses,Staff Training,EB122,3/15/2018,507574,600,REVENUE,WOMENS AID,100326
North East Lincolnshire Council,http://statistics.data.gov.uk/id/local-authority/00FC),Chief Executive,Shared Services,Human Resources,Consultancy,Consultancy,PL101,3/22/2018,508869,3261.42,REVENUE,YORKSHIRE AND HUMBER LA EMPLOYERS ASSOCIATION,136781
North East Lincolnshire Council,http://statistics.data.gov.uk/id/local-authority/00FC),Chief Executive,Shared Services,Human Resources,Equip / Furniture / Materials,Equipment - Maintenance,LA104,3/6/2018,505563,1565,REVENUE,ANV MEASUREMENT SYSTEMS,139292
North East Lincolnshire Council,http://statistics.data.gov.uk/id/local-authority/00FC),Chief Executive,Shared Services,Human Resources,Indirect Employee Expenses,Staff Advertising,EB113,3/29/2018,510852,13892,REVENUE,JGP RESOURCING LIMITED,109278
North East Lincolnshire Council,http://statistics.data.gov.uk/id/local-authority/00FC),Chief Executive,Shared Services,Human Resources,Indirect Employee Expenses,Staff Training,EB122,3/12/2018,507138,269.4,REVENUE,CITY OF BRADFORD MDC,121133
North East Lincolnshire Council,http://statistics.data.gov.uk/id/local-authority/00FC),Chief Executive,Shared Services,Shared Print Hub,Equip / Furniture / Materials,Equipment - Purchase,LA101,3/27/2018,508885,660,REVENUE,PITNEY BOWES LIMITED,101236
North East Lincolnshire Council,http://statistics.data.gov.uk/id/local-authority/00FC),Chief Executive,Shared Services,Shared Print Hub,Equip / Furniture / Materials,Equipment - Purchase,LA101,3/26/2018,507564,250.43,REVENUE,ELLIOTT BAXTER & COMPANY LIMITED,101996
North East Lincolnshire Council,http://statistics.data.gov.uk/id/local-authority/00FC),Chief Executive,Shared Services,Shared Print Hub,Equip / Furniture / Materials,Equipment - Purchase,LA101,3/29/2018,510093,260,REVENUE,MURODIGITAL,126649
North East Lincolnshire Council,http://statistics.data.gov.uk/id/local-authority/00FC),Chief Executive,Shared Services,Shared Print Hub,Private Contractors,Third Party Prov - Private,PH101,3/15/2018,507982,1348,REVENUE,DONCASTER METROPOLITAN BOROUGH COUNCIL,103098
North East Lincolnshire Council,http://statistics.data.gov.uk/id/local-authority/00FC),Chief Executive,Shared Services,Shared Print Hub,Private Contractors,Third Party Prov - Private,PH101,3/29/2018,510947,563.5,REVENUE,HOUND ENVELOPES LTD,110120
North East Lincolnshire Council,http://statistics.data.gov.uk/id/local-authority/00FC),Chief Executive,Shared Services,Shared Print Hub,Print Stationery / Gen Off Exp,Photocopier - Running Costs,LD102,3/15/2018,508074,306.68,REVENUE,XEROX (UK) LIMITED,100953
North East Lincolnshire Council,http://statistics.data.gov.uk/id/local-authority/00FC),Chief Executive,Shared Services,Shared Print Hub,Print Stationery / Gen Off Exp,Printing And Stationery,LD103,3/15/2018,498567,1456,REVENUE,ELLIOTT BAXTER & COMPANY LIMITED,101996
North East Lincolnshire Council,http://statistics.data.gov.uk/id/local-authority/00FC),Chief Executive,Shared Services,Shared Print Hub,Print Stationery / Gen Off Exp,Printing And Stationery,LD103,3/8/2018,506377,366,REVENUE,ANTALIS LTD,124930
North East Lincolnshire Council,http://statistics.data.gov.uk/id/local-authority/00FC),Chief Executive,Shared Services,Shared Print Hub,Print Stationery / Gen Off Exp,Printing And Stationery,LD103,3/15/2018,508067,288.92,REVENUE,UNITED CARLTON OFFICE SYSTEMS LTD,101652
North East Lincolnshire Council,http://statistics.data.gov.uk/id/local-authority/00FC),Chief Executive,Shared Services,Shared Print Hub,Print Stationery / Gen Off Exp,Printing And Stationery,LD103,3/15/2018,508065,352.23,REVENUE,UNITED CARLTON OFFICE SYSTEMS LTD,101652
North East Lincolnshire Council,http://statistics.data.gov.uk/id/local-authority/00FC),Chief Executive,Shared Services,Shared Print Hub,Print Stationery / Gen Off Exp,Printing And Stationery,LD103,3/22/2018,509051,2869.18,REVENUE,XEROX (UK) LIMITED,100953
North East Lincolnshire Council,http://statistics.data.gov.uk/id/local-authority/00FC),Chief Executive,Ad Governance And Democracy,Registrars & Civic Services,Catering,Provisions,LB101,3/15/2018,507660,264.54,REVENUE,HOLDSWORTH LTD,121021
North East Lincolnshire Council,http://statistics.data.gov.uk/id/local-authority/00FC),Chief Executive,Ad Governance And Democracy,Registrars & Civic Services,Miscellaneous Expenses,Civic Regalia And Events,LL117,3/20/2018,508805,275,REVENUE,AISTRUP-HIND LTD  PIPE ORGAN BUILDERS,110009
North East Lincolnshire Council,http://statistics.data.gov.uk/id/local-authority/00FC),Chief Executive,Ad Governance And Democracy,Registrars & Civic Services,Miscellaneous Expenses,Civic Regalia And Events,LL117,3/20/2018,508801,280,REVENUE,AISTRUP-HIND LTD  PIPE ORGAN BUILDERS,110009
North East Lincolnshire Council,http://statistics.data.gov.uk/id/local-authority/00FC),Chief Executive,Ad Governance And Democracy,Registrars & Civic Services,Miscellaneous Expenses,Hospitality,LL112,3/5/2018,505067,260,REVENUE,UK VENDING LTD,138592
North East Lincolnshire Council,http://statistics.data.gov.uk/id/local-authority/00FC),Chief Executive,Ad Governance And Democracy,Ad Governance & Democracy,Miscellaneous Expenses,Other Supplies & Services,LL110,3/19/2018,508506,2000,REVENUE,HYMANS ROBERTSON LLP,107021
North East Lincolnshire Council,http://statistics.data.gov.uk/id/local-authority/00FC),Chief Executive,Ad Governance And Democracy,Ad Governance & Democracy,Government Grants,Grants,VA101,3/5/2018,506056,17500,REVENUE,JOINT SERVICES MAJOR EVENTS TEAM N E LINCS,109747
North East Lincolnshire Council,http://statistics.data.gov.uk/id/local-authority/00FC),Chief Executive,Ad Governance And Democracy,Communications And Marketing,Print Stationery / Gen Off Exp,Printing And Stationery,LD103,3/15/2018,508062,2500,REVENUE,PRGLOO LTD,139538
North East Lincolnshire Council,http://statistics.data.gov.uk/id/local-authority/00FC),Chief Executive,Ad Governance And Democracy,Elections & Complaints,Print Stationery / Gen Off Exp,Printing And Stationery,LD103,3/8/2018,506751,2367.53,REVENUE,PRINT IMAGE NETWORK LTD,103724
North East Lincolnshire Council,http://statistics.data.gov.uk/id/local-authority/00FC),Chief Executive,Ad Governance And Democracy,Elections & Complaints,Print Stationery / Gen Off Exp,Printing And Stationery,LD103,3/29/2018,510224,1858.74,REVENUE,PRINT IMAGE NETWORK LTD,103724
North East Lincolnshire Council,http://statistics.data.gov.uk/id/local-authority/00FC),Chief Executive,Ad Governance And Democracy,Elections & Complaints,Communications And Computing,Postage,LF111,3/5/2018,505752,1967.2,REVENUE,PRINT IMAGE FACILITIES LLP,125574
North East Lincolnshire Council,http://statistics.data.gov.uk/id/local-authority/00FC),Chief Executive,Ad Governance And Democracy,Elections & Complaints,Grants And Subscriptions,Subscriptions,LJ101,3/29/2018,510223,426,REVENUE,LEXISNEXIS UK,101447
North East Lincolnshire Council,http://statistics.data.gov.uk/id/local-authority/00FC),Chief Executive,Ad Governance And Democracy,Elections & Complaints,Print Stationery / Gen Off Exp,Printing And Stationery,LD103,3/29/2018,510222,797,REVENUE,PRINT IMAGE NETWORK LTD,103724
North East Lincolnshire Council,http://statistics.data.gov.uk/id/local-authority/00FC),Chief Executive,Ad Governance And Democracy,Elections & Complaints,Communications And Computing,Postage,LF111,3/5/2018,505756,824.73,REVENUE,PRINT IMAGE FACILITIES LLP,125574
North East Lincolnshire Council,http://statistics.data.gov.uk/id/local-authority/00FC),Chief Executive,Ad Governance And Democracy,Elections & Complaints,Communications And Computing,Postage,LF111,3/8/2018,506748,26125,REVENUE,PRINT IMAGE FACILITIES LLP,125574
North East Lincolnshire Council,http://statistics.data.gov.uk/id/local-authority/00FC),Chief Executive,Ad Law,Coroners,Rents,Room Hire,GC103,3/15/2018,508219,297.5,REVENUE,CLEETHORPES CHARTER TRUSTEES,101604
North East Lincolnshire Council,http://statistics.data.gov.uk/id/local-authority/00FC),Chief Executive,Ad Law,Coroners,Communications And Computing,Computer S/Ware - Licences,LF103,3/15/2018,508217,2556.09,REVENUE,ADVANCED BUSINESS SOLUTIONS,101614
North East Lincolnshire Council,http://statistics.data.gov.uk/id/local-authority/00FC),Chief Executive,Ad Law,Coroners,Miscellaneous Expenses,Legal Fees - General,LL103,3/8/2018,506314,1620,REVENUE,THE EGLESTON PARTNERSHIP,139437
North East Lincolnshire Council,http://statistics.data.gov.uk/id/local-authority/00FC),Chief Executive,Ad Law,Coroners,Other Agencies,Conveyance Bodies,PJ149,3/19/2018,508581,366.5,REVENUE,ALEXANDERS,108144
North East Lincolnshire Council,http://statistics.data.gov.uk/id/local-authority/00FC),Chief Executive,Ad Law,Coroners,Other Agencies,Mortuary Storage Charges,PJ156,3/22/2018,509061,1210,REVENUE,SHEFFIELD CHILDREN'S NHS TRUST,100955
North East Lincolnshire Council,http://statistics.data.gov.uk/id/local-authority/00FC),Chief Executive,Ad Law,Coroners,Other Agencies,Mortuary Storage Charges,PJ156,3/8/2018,506027,4540,REVENUE,N LINCS & GOOLE HOSPITALS NHS,111074
North East Lincolnshire Council,http://statistics.data.gov.uk/id/local-authority/00FC),Chief Executive,Ad Law,Coroners,Other Agencies,Mortuary Storage Charges,PJ156,3/8/2018,506028,5593,REVENUE,N LINCS & GOOLE HOSPITALS NHS,111074
North East Lincolnshire Council,http://statistics.data.gov.uk/id/local-authority/00FC),Chief Executive,Ad Law,Coroners,Other Agencies,Mortuary Storage Charges,PJ156,3/12/2018,506311,10881,REVENUE,N LINCS & GOOLE HOSPITALS NHS,111074
North East Lincolnshire Council,http://statistics.data.gov.uk/id/local-authority/00FC),Chief Executive,Ad Law,Coroners,Other Agencies,Mortuary Storage Charges,PJ156,3/15/2018,507527,8775,REVENUE,N LINCS & GOOLE HOSPITALS NHS,111074
North East Lincolnshire Council,http://statistics.data.gov.uk/id/local-authority/00FC),Chief Executive,Ad Law,Coroners,Other Agencies,Post Mortems,PJ148,3/5/2018,505964,521.9,REVENUE,REDACTED PERSONAL INFORMATION,REDACTED PERSONAL INFORMATION
North East Lincolnshire Council,http://statistics.data.gov.uk/id/local-authority/00FC),Chief Executive,Ad Law,Coroners,Other Agencies,Post Mortems,PJ148,3/15/2018,507650,556.9,REVENUE,REDACTED PERSONAL INFORMATION,REDACTED PERSONAL INFORMATION
North East Lincolnshire Council,http://statistics.data.gov.uk/id/local-authority/00FC),Chief Executive,Ad Law,Coroners,Other Agencies,Post Mortems,PJ148,3/15/2018,508154,4601.95,REVENUE,UNIVERSITY HOSPITALS OF LEICESTER NHS TRUST,107238
North East Lincolnshire Council,http://statistics.data.gov.uk/id/local-authority/00FC),Chief Executive,Ad Law,Coroners,Other Agencies,Post Mortems,PJ148,3/19/2018,508322,346.9,REVENUE,REDACTED PERSONAL INFORMATION,REDACTED PERSONAL INFORMATION
North East Lincolnshire Council,http://statistics.data.gov.uk/id/local-authority/00FC),Chief Executive,Ad Law,Coroners,Other Agencies,Post Mortems,PJ148,3/5/2018,505928,2399.2,REVENUE,REDACTED PERSONAL INFORMATION,REDACTED PERSONAL INFORMATION
North East Lincolnshire Council,http://statistics.data.gov.uk/id/local-authority/00FC),Chief Executive,Ad Law,Coroners,Other Agencies,Post Mortems,PJ148,3/15/2018,508216,1248,REVENUE,REDACTED PERSONAL INFORMATION,REDACTED PERSONAL INFORMATION
North East Lincolnshire Council,http://statistics.data.gov.uk/id/local-authority/00FC),Chief Executive,Ad Law,Coroners,Other Agencies,Post Mortems,PJ148,3/29/2018,510987,1433.4,REVENUE,REDACTED PERSONAL INFORMATION,REDACTED PERSONAL INFORMATION
North East Lincolnshire Council,http://statistics.data.gov.uk/id/local-authority/00FC),Chief Executive,Ad Law,Coroners,Other Agencies,Post Mortems,PJ148,3/22/2018,509130,276.9,REVENUE,MARTA COHEN LTD,110632
North East Lincolnshire Council,http://statistics.data.gov.uk/id/local-authority/00FC),Chief Executive,Ad Law,Coroners,Other Agencies,Post Mortems,PJ148,3/5/2018,505926,387.2,REVENUE,REDACTED PERSONAL INFORMATION,REDACTED PERSONAL INFORMATION
North East Lincolnshire Council,http://statistics.data.gov.uk/id/local-authority/00FC),Chief Executive,Ad Law,Coroners,Other Agencies,Post Mortems,PJ148,3/5/2018,505962,1307.6,REVENUE,REDACTED PERSONAL INFORMATION,REDACTED PERSONAL INFORMATION
North East Lincolnshire Council,http://statistics.data.gov.uk/id/local-authority/00FC),Chief Executive,Ad Law,Coroners,Other Agencies,Post Mortems,PJ148,3/5/2018,505963,667.2,REVENUE,REDACTED PERSONAL INFORMATION,REDACTED PERSONAL INFORMATION
North East Lincolnshire Council,http://statistics.data.gov.uk/id/local-authority/00FC),Chief Executive,Ad Law,Coroners,Other Agencies,Post Mortems,PJ148,3/29/2018,510984,290.4,REVENUE,REDACTED PERSONAL INFORMATION,REDACTED PERSONAL INFORMATION
North East Lincolnshire Council,http://statistics.data.gov.uk/id/local-authority/00FC),Chief Executive,Ad Law,Legal Services,Miscellaneous Expenses,Legal Fees - General,LL103,3/22/2018,509273,14564.75,REVENUE,DAVID LOCK QC,134884
North East Lincolnshire Council,http://statistics.data.gov.uk/id/local-authority/00FC),Chief Executive,Ad Law,Legal Services,Miscellaneous Expenses,Legal Fees - General,LL103,3/22/2018,509366,330,REVENUE,WILKIN CHAPMAN LLP,110675
North East Lincolnshire Council,http://statistics.data.gov.uk/id/local-authority/00FC),Chief Executive,Ad Law,Legal Services,Miscellaneous Expenses,Legal Fees - General,LL103,3/29/2018,510880,562.5,REVENUE,WEIGHTMANS LLP,124689
North East Lincolnshire Council,http://statistics.data.gov.uk/id/local-authority/00FC),Chief Executive,Ad Law,Legal Services,Miscellaneous Expenses,Legal Fees - General,LL103,3/29/2018,510458,1790,REVENUE,11 KBW LTD,135795
North East Lincolnshire Council,http://statistics.data.gov.uk/id/local-authority/00FC),Chief Executive,Ad Law,Legal Services,Consultancy,Consultancy,PL101,3/12/2018,506697,273,REVENUE,WOMBLE BOND DICKINSON (UK) LLP,121775
North East Lincolnshire Council,http://statistics.data.gov.uk/id/local-authority/00FC),Chief Executive,Ad Law,Legal Services,Miscellaneous Expenses,Legal Fees - General,LL103,3/12/2018,507404,2605,REVENUE,BATES & MOUNTAIN SOLICITORS,104183
North East Lincolnshire Council,http://statistics.data.gov.uk/id/local-authority/00FC),Chief Executive,Ad Law,Legal Services,Miscellaneous Expenses,Legal Fees - General,LL103,3/12/2018,506696,277.25,REVENUE,LEXTOX DRUG & ALCOHOL TESTING,125634
North East Lincolnshire Council,http://statistics.data.gov.uk/id/local-authority/00FC),Chief Executive,Ad Law,Legal Services,Miscellaneous Expenses,Legal Fees - General,LL103,3/5/2018,505952,399.6,REVENUE,DR F R J HINDE,139359
North East Lincolnshire Council,http://statistics.data.gov.uk/id/local-authority/00FC),Chief Executive,Ad Law,Legal Services,Miscellaneous Expenses,Legal Fees - General,LL103,3/8/2018,506698,440,REVENUE,BG SOLICITORS LLP,100514
North East Lincolnshire Council,http://statistics.data.gov.uk/id/local-authority/00FC),Chief Executive,Ad Law,Legal Services,Miscellaneous Expenses,Legal Fees - General,LL103,3/20/2018,508519,528,REVENUE,MR JONATHAN C WILSON,123960
North East Lincolnshire Council,http://statistics.data.gov.uk/id/local-authority/00FC),Chief Executive,Ad Law,Legal Services,Miscellaneous Expenses,Legal Fees - General,LL103,3/20/2018,508518,758,REVENUE,LEXTOX DRUG & ALCOHOL TESTING,125634
North East Lincolnshire Council,http://statistics.data.gov.uk/id/local-authority/00FC),Chief Executive,Ad Law,Legal Services,Miscellaneous Expenses,Legal Fees - General,LL103,3/6/2018,505725,868.25,REVENUE,DR ANAND K SAGGAR,132758
North East Lincolnshire Council,http://statistics.data.gov.uk/id/local-authority/00FC),Chief Executive,Ad Law,Legal Services,Miscellaneous Expenses,Legal Fees - General,LL103,3/5/2018,505920,991,REVENUE,HCA HEALTHCARE UK,139383
North East Lincolnshire Council,http://statistics.data.gov.uk/id/local-authority/00FC),Chief Executive,Ad Law,Legal Services,Miscellaneous Expenses,Legal Fees - General,LL103,3/20/2018,508522,320,REVENUE,MENDES INVESTIGATION SERVICES LIMITED,130979
North East Lincolnshire Council,http://statistics.data.gov.uk/id/local-authority/00FC),Chief Executive,Ad Law,Legal Services,Miscellaneous Expenses,Legal Fees - General,LL103,3/13/2018,507438,570,REVENUE,MR JONATHAN C WILSON,123960
North East Lincolnshire Council,http://statistics.data.gov.uk/id/local-authority/00FC),Chief Executive,Ad Law,Legal Services,Miscellaneous Expenses,Legal Fees - General,LL103,3/20/2018,508517,520,REVENUE,MR MARK WATTERSON,109973
North East Lincolnshire Council,http://statistics.data.gov.uk/id/local-authority/00FC),Chief Executive,Ad Law,Legal Services,Miscellaneous Expenses,Legal Fees - General,LL103,3/12/2018,507400,3996,REVENUE,AZTEC TRANSLATIONS,106512
North East Lincolnshire Council,http://statistics.data.gov.uk/id/local-authority/00FC),Chief Executive,Ad Law,Legal Services,Miscellaneous Expenses,Legal Fees - General,LL103,3/12/2018,507132,612,REVENUE,HARPHAMS MEDIA TRANSCRIBERS,112780
North East Lincolnshire Council,http://statistics.data.gov.uk/id/local-authority/00FC),Chief Executive,Ad Law,Legal Services,Miscellaneous Expenses,Legal Fees - General,LL103,3/20/2018,508513,770,REVENUE,LAURA TWIST,139045
North East Lincolnshire Council,http://statistics.data.gov.uk/id/local-authority/00FC),Chief Executive,Ad Law,Legal Services,Miscellaneous Expenses,Legal Fees - General,LL103,3/22/2018,508527,1100,REVENUE,AJ STEPHENSON,108904
North East Lincolnshire Council,http://statistics.data.gov.uk/id/local-authority/00FC),Chief Executive,Ad Law,Legal Services,Miscellaneous Expenses,Legal Fees - General,LL103,3/20/2018,508515,2300,REVENUE,DR P T SALEEM,137828
North East Lincolnshire Council,http://statistics.data.gov.uk/id/local-authority/00FC),Chief Executive,Ad Law,Legal Services,Miscellaneous Expenses,Legal Fees - General,LL103,3/20/2018,508516,850,REVENUE,NICHOLAS WADSWORTH,139209
North East Lincolnshire Council,http://statistics.data.gov.uk/id/local-authority/00FC),Chief Executive,Ad Law,Legal Services,Miscellaneous Expenses,Legal Fees - General,LL103,3/15/2018,507525,431.6,REVENUE,DR CHRISTINE BASSINDALE,139489
North East Lincolnshire Council,http://statistics.data.gov.uk/id/local-authority/00FC),Chief Executive,Ad Law,Legal Services,Miscellaneous Expenses,Legal Fees - General,LL103,3/29/2018,510619,403.92,REVENUE,HARPHAMS MEDIA TRANSCRIBERS,112780
North East Lincolnshire Council,http://statistics.data.gov.uk/id/local-authority/00FC),Chief Executive,Ad Law,Legal Services,Miscellaneous Expenses,Legal Fees - General,LL103,3/20/2018,508557,584.9,REVENUE,CARTER BROWN THE EXPERT SERVICE,106320
North East Lincolnshire Council,http://statistics.data.gov.uk/id/local-authority/00FC),Chief Executive,Ad Law,Legal Services,Miscellaneous Expenses,Legal Fees - General,LL103,3/26/2018,509655,331.31,REVENUE,MR J JAYAMOHAN (CONSULTANT NEUROSURGEON),129266
North East Lincolnshire Council,http://statistics.data.gov.uk/id/local-authority/00FC),Chief Executive,Ad Law,Legal Services,Miscellaneous Expenses,Legal Fees - General,LL103,3/26/2018,509656,812.25,REVENUE,MR J JAYAMOHAN (CONSULTANT NEUROSURGEON),129266
North East Lincolnshire Council,http://statistics.data.gov.uk/id/local-authority/00FC),Chief Executive,Ad Law,Legal Services,Miscellaneous Expenses,Legal Fees - General,LL103,3/23/2018,510042,432,REVENUE,DR ALUN C ELIAS-JONES,136743
North East Lincolnshire Council,http://statistics.data.gov.uk/id/local-authority/00FC),Chief Executive,Ad Law,Legal Services,Miscellaneous Expenses,Legal Fees - General,LL103,3/29/2018,510857,540,REVENUE,DR ALUN C ELIAS-JONES,136743
North East Lincolnshire Council,http://statistics.data.gov.uk/id/local-authority/00FC),Chief Executive,Ad Law,Legal Services,Miscellaneous Expenses,Legal Fees - General,LL103,3/29/2018,510894,2953.66,REVENUE,AZTEC TRANSLATIONS,106512
North East Lincolnshire Council,http://statistics.data.gov.uk/id/local-authority/00FC),Chief Executive,Ad Law,Legal Services,Miscellaneous Expenses,Legal Fees - General,LL103,3/29/2018,510896,592.5,REVENUE,DR RACHEL MCMAHON,139522
North East Lincolnshire Council,http://statistics.data.gov.uk/id/local-authority/00FC),Chief Executive,Ad Law,Legal Services,Miscellaneous Expenses,Legal Fees - General,LL103,3/29/2018,510900,285.5,REVENUE,DR ANAND K SAGGAR,132758
North East Lincolnshire Council,http://statistics.data.gov.uk/id/local-authority/00FC),Chief Executive,Ad Law,Legal Services,Miscellaneous Expenses,Legal Fees - General,LL103,3/29/2018,510901,320,REVENUE,MENDES INVESTIGATION SERVICES LIMITED,130979
North East Lincolnshire Council,http://statistics.data.gov.uk/id/local-authority/00FC),Chief Executive,Ad Law,Legal Services,Miscellaneous Expenses,Legal Fees - General,LL103,3/29/2018,510903,455,REVENUE,FRANCESCA VICTORIA STEELS,138116
North East Lincolnshire Council,http://statistics.data.gov.uk/id/local-authority/00FC),Chief Executive,Ad Law,Legal Services,Miscellaneous Expenses,Legal Fees - General,LL103,3/29/2018,510553,610,REVENUE,MISS J C BAGGS,112233
North East Lincolnshire Council,http://statistics.data.gov.uk/id/local-authority/00FC),Chief Executive,Ad Law,Legal Services,Miscellaneous Expenses,Legal Fees - General,LL103,3/29/2018,510541,1048.32,REVENUE,JOHN BARKERS SOLICITORS,100928
